Workbook

Sheet List
A1: Country | B1: Region
A2: United States | B2: All Regions
A3: Germany | B3: The West
A4: United Kingdom | B4: The South
A5: France | B5: The North-East
A6: Spain | B6: The Mid-West
A7: Russia
A8: Greece
A9: Netherlands
A10: Brazil
A11: Argentina
A12: Japan
A13: China
A14: Australia
A15: Indonesia
A16: Mexico
A17: Canada
A18: South Africa
A19: Croatia
A20: Italy
A21: Switzerland

Sheet SocialData
A1: Country | B1: Year | C1: Facebook | D1: Twitter | E1: Google + | F1: Linkedin | G1: YouTube | H1: Page Views | I1: Avg Visitors Per Day | J1: Average Visit Duration | K1: Returning Visitors | L1: Year | M1: Search Engines | N1: % Split
A2: United States | B2: 2010 | C2: 1033.8 | D2: 775 | E2: 1007 | F2: 790 | G2: 982 | H2: 9459 | I2: 25 | J2: 1.25 | K2: 5202 | L2: 2010 | M2: Google | N2: 0.6
A3: Germany | B3: 2010 | C3: 745 | D3: 447 | E3: 581 | F3: 412 | G3: 707 | H3: 6816 | I3: 18 | J3: 1.27 | K3: 3748 | L3: 2010 | M3: Bing | N3: 0.26
A4: United Kingdom | B4: 2010 | C4: 674.6 | D4: 337 | E4: 438 | F4: 283 | G4: 640 | H4: 6172 | I4: 16 | J4: 1.29 | K4: 3147 | L4: 2010 | M4: Other | N4: 0.14
A5: France | B5: 2010 | C5: 796.2 | D5: 597 | E5: 776 | F5: 587 | G5: 756 | H5: 7285 | I5: 19 | J5: 1.06 | K5: 4298 | L5: 2011 | M5: Google | N5: 0.65
A6: Spain | B6: 2010 | C6: 1389.4 | D6: 833 | E6: 1124 | F6: 895 | G6: 2361 | H6: 12713 | I6: 34 | J6: 1.08 | K6: 6610 | L6: 2011 | M6: Bing | N6: 0.2
A7: Russia | B7: 2010 | C7: 551.2 | D7: 413 | E7: 557 | F7: 390 | G7: 937 | H7: 5043 | I7: 13 | J7: 1.05 | K7: 2773 | L7: 2011 | M7: Other | N7: 0.15
A8: Greece | B8: 2010 | C8: 307.4 | D8: 230 | E8: 310 | F8: 168 | G8: 522 | H8: 2812 | I8: 7 | J8: 1.35 | K8: 1096 | L8: 2012 | M8: Google | N8: 0.7
A9: Netherlands | B9: 2010 | C9: 743.8 | D9: 632 | E9: 853 | F9: 657 | G9: 1264 | H9: 6805 | I9: 18 | J9: 1.35 | K9: 3742 | L9: 2012 | M9: Bing | N9: 0.15
A10: Brazil | B10: 2010 | C10: 643.8 | D10: 386 | E10: 521 | F10: 358 | G10: 1094 | H10: 5890 | I10: 16 | J10: 1.36 | K10: 3239 | L10: 2012 | M10: Other | N10: 0.15
A11: Argentina | B11: 2010 | C11: 459.8 | D11: 390 | E11: 526 | F11: 357 | G11: 781 | H11: 4207 | I11: 11 | J11: 1.39 | K11: 2313 | L11: 2013 | M11: Google | N11: 0.65
A12: Japan | B12: 2010 | C12: 403.4 | D12: 242 | E12: 326 | F12: 180 | G12: 685 | H12: 3691 | I12: 10 | J12: 1.39 | K12: 2030 | L12: 2013 | M12: Bing | N12: 0.18
A13: China | B13: 2010 | C13: 231.2 | D13: 196 | E13: 264 | F13: 125 | G13: 393 | H13: 2115 | I13: 5 | J13: 2.03 | K13: 1078 | L13: 2013 | M13: Other | N13: 0.17
A14: Australia | B14: 2010 | C14: 581.8 | D14: 494 | E14: 666 | F14: 486 | G14: 989 | H14: 5323 | I14: 14 | J14: 2.03 | K14: 3140
A15: Indonesia | B15: 2010 | C15: 191 | D15: 181 | E15: 251 | F15: 790 | G15: 324 | H15: 1747 | I15: 4 | J15: 1.54 | K15: 593
A16: Mexico | B16: 2010 | C16: 233.2 | D16: 139 | E16: 193 | F16: 61 | G16: 699 | H16: 2133 | I16: 5 | J16: 2.13 | K16: 1173
A17: Canada | B17: 2010 | C17: 199.2 | D17: 99 | E17: 137 | F17: 10 | G17: 597 | H17: 1822 | I17: 4 | J17: 1.2 | K17: 619
A18: South Africa | B18: 2010 | C18: 190.6 | D18: 181 | E18: 251 | F18: 109 | G18: 571 | H18: 1743 | I18: 4 | J18: 1.27 | K18: 958
A19: Croatia | B19: 2010 | C19: 269.4 | D19: 255 | E19: 354 | F19: 168 | G19: 808 | H19: 2465 | I19: 6 | J19: 1.54 | K19: 961
A20: Italy | B20: 2010 | C20: 336.2 | D20: 168 | E20: 233 | F20: 59 | G20: 1008 | H20: 3076 | I20: 8 | J20: 1.25 | K20: 1814
A21: Switzerland | B21: 2010 | C21: 134 | D21: 67 | E21: 93 | F21: 49 | G21: 402 | H21: 1226 | I21: 3 | J21: 1.28 | K21: 416
A22: United States | B22: 2011 | C22: 1059 | D22: 809 | E22: 1022 | F22: 849 | G22: 996 | H22: 9689 | I22: 26 | J22: 1.22 | K22: 5328
A23: Germany | B23: 2011 | C23: 763 | D23: 467 | E23: 589 | F23: 442 | G23: 717 | H23: 6981 | I23: 19 | J23: 1.24 | K23: 3839
A24: United Kingdom | B24: 2011 | C24: 691 | D24: 352 | E24: 444 | F24: 304 | G24: 649 | H24: 6322 | I24: 17 | J24: 1.26 | K24: 2465
A25: France | B25: 2011 | C25: 816 | D25: 623 | E25: 787 | F25: 631 | G25: 767 | H25: 7466 | I25: 20 | J25: 1.03 | K25: 4106
A26: Spain | B26: 2011 | C26: 1424 | D26: 870 | E26: 1140 | F26: 962 | G26: 2396 | H26: 13029 | I26: 35 | J26: 1.05 | K26: 4429
A27: Russia | B27: 2011 | C27: 564 | D27: 431 | E27: 565 | F27: 419 | G27: 951 | H27: 5160 | I27: 14 | J27: 1.02 | K27: 3044
A28: Greece | B28: 2011 | C28: 315 | D28: 240 | E28: 314 | F28: 180 | G28: 529 | H28: 2882 | I28: 7 | J28: 1.32 | K28: 1498
A29: Netherlands | B29: 2011 | C29: 762 | D29: 660 | E29: 865 | F29: 706 | G29: 1282 | H29: 6972 | I29: 19 | J29: 1.32 | K29: 3834
A30: Brazil | B30: 2011 | C30: 659 | D30: 403 | E30: 528 | F30: 384 | G30: 1110 | H30: 6029 | I30: 16 | J30: 1.33 | K30: 3315
A31: Argentina | B31: 2011 | C31: 471 | D31: 407 | E31: 533 | F31: 383 | G31: 792 | H31: 4309 | I31: 11 | J31: 1.36 | K31: 2369
A32: Japan | B32: 2011 | C32: 413 | D32: 252 | E32: 330 | F32: 193 | G32: 695 | H32: 3778 | I32: 10 | J32: 1.36 | K32: 2077
A33: China | B33: 2011 | C33: 236 | D33: 204 | E33: 267 | F33: 134 | G33: 398 | H33: 2159 | I33: 5 | J33: 2 | K33: 842
A34: Australia | B34: 2011 | C34: 596 | D34: 516 | E34: 675 | F34: 522 | G34: 1003 | H34: 5453 | I34: 14 | J34: 2 | K34: 2126
A35: Indonesia | B35: 2011 | C35: 195 | D35: 189 | E35: 254 | F35: 849 | G35: 328 | H35: 1784 | I35: 4 | J35: 1.52 | K35: 909
A36: Mexico | B36: 2011 | C36: 239 | D36: 145 | E36: 195 | F36: 65 | G36: 709 | H36: 2186 | I36: 5 | J36: 2.06 | K36: 1289
A37: Canada | B37: 2011 | C37: 204 | D37: 103 | E37: 139 | F37: 10 | G37: 605 | H37: 1866 | I37: 5 | J37: 1.11 | K37: 970
A38: South Africa | B38: 2011 | C38: 195 | D38: 189 | E38: 254 | F38: 117 | G38: 579 | H38: 1784 | I38: 4 | J38: 1.19 | K38: 981
A39: Croatia | B39: 2011 | C39: 276 | D39: 266 | E39: 359 | F39: 180 | G39: 820 | H39: 2525 | I39: 6 | J39: 1.43 | K39: 1287
A40: Italy | B40: 2011 | C40: 344 | D40: 175 | E40: 236 | F40: 63 | G40: 1023 | H40: 3147 | I40: 8 | J40: 1.22 | K40: 1856
A41: Switzerland | B41: 2011 | C41: 137 | D41: 70 | E41: 94 | F41: 52 | G41: 408 | H41: 1253 | I41: 3 | J41: 1.25 | K41: 488
A42: United States | B42: 2012 | C42: 1085 | D42: 845 | E42: 1037 | F42: 912 | G42: 1010 | H42: 9927 | I42: 27 | J42: 1.19 | K42: 5459
A43: Germany | B43: 2012 | C43: 782 | D43: 488 | E43: 597 | F43: 475 | G43: 727 | H43: 7155 | I43: 19 | J43: 1.29 | K43: 3935
A44: United Kingdom | B44: 2012 | C44: 708 | D44: 367 | E44: 450 | F44: 326 | G44: 658 | H44: 6478 | I44: 17 | J44: 1.31 | K44: 2202
A45: France | B45: 2012 | C45: 836 | D45: 651 | E45: 798 | F45: 678 | G45: 778 | H45: 7649 | I45: 20 | J45: 1.08 | K45: 4206
A46: Spain | B46: 2012 | C46: 1459 | D46: 909 | E46: 1157 | F46: 1034 | G46: 2431 | H46: 13349 | I46: 36 | J46: 1.1 | K46: 7341
A47: Russia | B47: 2012 | C47: 578 | D47: 450 | E47: 573 | F47: 450 | G47: 965 | H47: 5288 | I47: 14 | J47: 1.07 | K47: 1797
A48: Greece | B48: 2012 | C48: 322 | D48: 250 | E48: 318 | F48: 193 | G48: 536 | H48: 2946 | I48: 8 | J48: 1.29 | K48: 1620
A49: Netherlands | B49: 2012 | C49: 781 | D49: 689 | E49: 877 | F49: 758 | G49: 1301 | H49: 7146 | I49: 19 | J49: 1.29 | K49: 3930
A50: Brazil | B50: 2012 | C50: 675 | D50: 421 | E50: 535 | F50: 412 | G50: 1126 | H50: 6176 | I50: 16 | J50: 1.24 | K50: 3396
A51: Argentina | B51: 2012 | C51: 482 | D51: 425 | E51: 540 | F51: 411 | G51: 803 | H51: 4410 | I51: 12 | J51: 1.27 | K51: 2425
A52: Japan | B52: 2012 | C52: 423 | D52: 263 | E52: 334 | F52: 207 | G52: 705 | H52: 3870 | I52: 10 | J52: 1.27 | K52: 1973
A53: China | B53: 2012 | C53: 241 | D53: 213 | E53: 271 | F53: 144 | G53: 403 | H53: 2205 | I53: 6 | J53: 1.91 | K53: 1300
A54: Australia | B54: 2012 | C54: 610 | D54: 539 | E54: 685 | F54: 561 | G54: 1018 | H54: 5581 | I54: 15 | J54: 1.91 | K54: 1897
A55: Indonesia | B55: 2012 | C55: 199 | D55: 197 | E55: 257 | F55: 912 | G55: 332 | H55: 1820 | I55: 4 | J55: 1.43 | K55: 1001
A56: Mexico | B56: 2012 | C56: 244 | D56: 151 | E56: 197 | F56: 69 | G56: 719 | H56: 2232 | I56: 6 | J56: 1.97 | K56: 1227
A57: Canada | B57: 2012 | C57: 209 | D57: 107 | E57: 141 | F57: 10 | G57: 614 | H57: 1912 | I57: 5 | J57: 1.08 | K57: 975
A58: South Africa | B58: 2012 | C58: 199 | D58: 197 | E58: 257 | F58: 125 | G58: 587 | H58: 1820 | I58: 4 | J58: 1.16 | K58: 782
A59: Croatia | B59: 2012 | C59: 282 | D59: 277 | E59: 364 | F59: 193 | G59: 832 | H59: 2580 | I59: 7 | J59: 1.41 | K59: 1341
A60: Italy | B60: 2012 | C60: 352 | D60: 182 | E60: 239 | F60: 67 | G60: 1038 | H60: 3220 | I60: 8 | J60: 1.15 | K60: 1771
A61: Switzerland | B61: 2012 | C61: 140 | D61: 73 | E61: 95 | F61: 55 | G61: 414 | H61: 1281 | I61: 3 | J61: 1.16 | K61: 704
A62: United States | B62: 2013 | C62: 855 | D62: 883 | E62: 1052 | F62: 980 | G62: 1025 | H62: 10174 | I62: 27 | J62: 1.11 | K62: 5595
A63: Germany | B63: 2013 | C63: 801 | D63: 509 | E63: 605 | F63: 510 | G63: 737 | H63: 7329 | I63: 20 | J63: 1.18 | K63: 3737
A64: United Kingdom | B64: 2013 | C64: 725 | D64: 383 | E64: 456 | F64: 350 | G64: 667 | H64: 6633 | I64: 18 | J64: 1.34 | K64: 2852
A65: France | B65: 2013 | C65: 856 | D65: 680 | E65: 809 | F65: 728 | G65: 789 | H65: 7832 | I65: 21 | J65: 1.03 | K65: 3367
A66: Spain | B66: 2013 | C66: 1495 | D66: 949 | E66: 1174 | F66: 1111 | G66: 2467 | H66: 13679 | I66: 37 | J66: 1.05 | K66: 7523
A67: Russia | B67: 2013 | C67: 592 | D67: 470 | E67: 581 | F67: 483 | G67: 979 | H67: 5416 | I67: 14 | J67: 1.04 | K67: 2978
A68: Greece | B68: 2013 | C68: 330 | D68: 261 | E68: 322 | F68: 207 | G68: 544 | H68: 3019 | I68: 8 | J68: 1.26 | K68: 1660
A69: Netherlands | B69: 2013 | C69: 800 | D69: 720 | E69: 890 | F69: 814 | G69: 1320 | H69: 7320 | I69: 20 | J69: 1.27 | K69: 4026
A70: Brazil | B70: 2013 | C70: 691 | D70: 439 | E70: 543 | F70: 442 | G70: 1142 | H70: 6322 | I70: 17 | J70: 1.17 | K70: 3477
A71: Argentina | B71: 2013 | C71: 390.83 | D71: 331.5 | E71: 447.1 | F71: 303.45 | G71: 663.85 | H71: 3575.95 | I71: 12 | J71: 1.18 | K71: 2486
A72: Japan | B72: 2013 | C72: 342.89 | D72: 205.7 | E72: 277.1 | F72: 153 | G72: 582.25 | H72: 3137.35 | I72: 10 | J72: 1.19 | K72: 2178
A73: China | B73: 2013 | C73: 196.52 | D73: 166.6 | E73: 224.4 | F73: 106.25 | G73: 334.05 | H73: 1797.75 | I73: 6 | J73: 1.8 | K73: 971
A74: Australia | B74: 2013 | C74: 494.53 | D74: 419.9 | E74: 566.1 | F74: 413.1 | G74: 840.65 | H74: 4524.55 | I74: 15 | J74: 1.82 | K74: 3373
A75: Indonesia | B75: 2013 | C75: 187.18 | D75: 177.38 | E75: 245.98 | F75: 774.2 | G75: 317.52 | H75: 1712.06 | I75: 5 | J75: 1.34 | K75: 965
A76: Mexico | B76: 2013 | C76: 228.536 | D76: 136.22 | E76: 189.14 | F76: 59.78 | G76: 685.02 | H76: 2090.34 | I76: 6 | J76: 1.88 | K76: 1257
A77: Canada | B77: 2013 | C77: 195.216 | D77: 97.02 | E77: 134.26 | F77: 9.8 | G77: 585.06 | H77: 1785.56 | I77: 5 | J77: 0.99 | K77: 1076
A78: South Africa | B78: 2013 | C78: 186.788 | D78: 177.38 | E78: 245.98 | F78: 106.82 | G78: 559.58 | H78: 1708.14 | I78: 5 | J78: 1.07 | K78: 798
A79: Croatia | B79: 2013 | C79: 264.012 | D79: 249.9 | E79: 346.92 | F79: 164.64 | G79: 791.84 | H79: 2415.7 | I79: 7 | J79: 1.32 | K79: 1559
A80: Italy | B80: 2013 | C80: 329.476 | D80: 164.64 | E80: 228.34 | F80: 57.82 | G80: 987.84 | H80: 3014.48 | I80: 9 | J80: 1.06 | K80: 1712
A81: Switzerland | B81: 2013 | C81: 131.32 | D81: 65.66 | E81: 91.14 | F81: 48.02 | G81: 393.96 | H81: 1201.48 | I81: 3 | J81: 1.21 | K81: 719

Sheet Data
B1: State | C1: Region | D1: Revenue 2010 | E1: Revenue 2011 | F1: Revenue 2012 | G1: Revenue 2013 | H1: Expenses 2010 | I1: Expenses 2011 | J1: Expenses 2012 | K1: Expenses 2013 | L1: Late Debtors | M1: Staff | N1: % of US | O1: Staff Rank Reg | P1: Rev Rank | Q1: Exp Rank | R1: Late Debtors Rank Reg
A2: 1 | B2: California | C2: The West | D2: 1787984.729 | E2: 2340508.592 | F2: 2410723.85 | G2: 2483045.565 | H2: 1089787.013 | I2: 1122480.624 | J2: 1156155.042 | K2: 1167716.593 | L2: 0.087 | M2: 244.2 | N2: 0.1191 | O2: =SUMPRODUCT((C$2:C$601=$C2)*(M$2:M$601>M2))+1 -> 1 | P2: =SUMPRODUCT(($C$2:$C$601=$C2)*(G$2:G$601>G2))+1 -> 1 | Q2: =SUMPRODUCT(($C$2:$C$601=$C2)*(K$2:K$601>K2))+1 -> 1 | R2: =COUNTIFS($C:$C,$C2,$L:$L,">"&$L2)+COUNTIFS($C$2:$C2,$C2,$L$2:$L2,$L2) -> 2
A3: 2 | B3: Texas | C3: The South | D3: 1676519.846 | E3: 2194598.78 | F3: =E3*0.95 -> 2084868.841 | G3: =F3*1.03 -> 2147414.906 | H3: 1174893.007 | I3: =H3*0.95 -> 1116148.356 | J3: =I3*1.03 -> 1149632.807 | K3: =J3*1.01 -> 1161129.135 | L3: 0.062 | M3: 98.07 | N3: 0.0804 | O3: 9 | P3: =SUMPRODUCT(($C$2:$C$601=$C3)*(G$2:G$601>G3))+1 -> 1 | Q3: =SUMPRODUCT(($C$2:$C$601=$C3)*(K$2:K$601>K3))+1 -> 1 | R3: =COUNTIFS($C:$C,$C3,$L:$L,">"&$L3)+COUNTIFS($C$2:$C3,$C3,$L$2:$L3,$L3) -> 11
A4: 3 | B4: New York | C4: The North-East | D4: 1536782.351 | E4: 2011679.54 | F4: 1911095.563 | G4: =F4*1.07 -> 2044872.252 | H4: 904550.7105 | I4: 859323.175 | J4: =I4*1.07 -> 919475.7972 | K4: =J4*1.01 -> 928670.5552 | L4: 0.077 | M4: 415.3 | N4: 0.0619 | O4: 5 | P4: 1 | Q4: 1 | R4: =COUNTIFS($C:$C,$C4,$L:$L,">"&$L4)+COUNTIFS($C$2:$C4,$C4,$L$2:$L4,$L4) -> 4
A5: 4 | B5: Florida | C5: The South | D5: 933901.6367 | E5: 1222496.35 | F5: 1161371.532 | G5: =F5*1.07 -> 1242667.54 | H5: 878247.1357 | I5: 834334.7789 | J5: =I5*1.07 -> 892738.2134 | K5: =J5*1.01 -> 901665.5956 | L5: 0.067 | M5: 360.2 | N5: 0.0601 | O5: 1 | P5: 2 | Q5: 2 | R5: =COUNTIFS($C:$C,$C5,$L:$L,">"&$L5)+COUNTIFS($C$2:$C5,$C5,$L$2:$L5,$L5) -> 8
A6: 5 | B6: Illinois | C6: The Mid-West | D6: 950567.4724 | E6: 1244312.27 | F6: 1182096.657 | G6: =F6*1.07 -> 1264843.422 | H6: 599136.9811 | I6: 569180.132 | J6: =I6*1.07 -> 609022.7413 | K6: =J6*1.095 -> 666879.9017 | L6: 0.089 | M6: 231.9 | N6: 0.041 | O6: 2 | P6: 1 | Q6: 1 | R6: =COUNTIFS($C:$C,$C6,$L:$L,">"&$L6)+COUNTIFS($C$2:$C6,$C6,$L$2:$L6,$L6) -> 2
A7: 6 | B7: Pennsylvania | C7: The North-East | D7: 832389.7015 | E7: 1089615.15 | F7: 1035134.392 | G7: =F7*1.07 -> 1107593.8 | H7: 593291.7423 | I7: 563627.1551 | J7: =I7*1.07 -> 603081.056 | K7: =J7*0.8 -> 482464.8448 | L7: 0.075 | M7: 285.3 | N7: 0.0406 | O7: 6 | P7: 3 | Q7: 2 | R7: =COUNTIFS($C:$C,$C7,$L:$L,">"&$L7)+COUNTIFS($C$2:$C7,$C7,$L$2:$L7,$L7) -> 5
A8: 7 | B8: Ohio | C8: The Mid-West | D8: 848682.5026 | E8: 1110942.76 | F8: 1055395.622 | G8: =F8*0.95 -> 1002625.841 | H8: 539223.283 | I8: 512262.1188 | J8: =I8*0.95 -> 486649.0129 | K8: =J8*0.96 -> 467183.0524 | L8: 0.075 | M8: 282.5 | N8: 0.0369 | O8: 1 | P8: 2 | Q8: 3 | R8: =COUNTIFS($C:$C,$C8,$L:$L,">"&$L8)+COUNTIFS($C$2:$C8,$C8,$L$2:$L8,$L8) -> 3
A9: 8 | B9: Georgia | C9: The South | D9: 500361.2243 | E9: 654983.08 | F9: =E9*0.96 -> 628783.7568 | G9: =F9*0.95 -> 597344.569 | H9: 453006.0101 | I9: =H9*0.96 -> 434885.7697 | J9: =I9*0.95 -> 413141.4812 | K9: =J9*0.97 -> 400747.2368 | L9: 0.081 | M9: 172.5 | N9: 0.031 | O9: 4 | P9: 5 | Q9: 4 | R9: =COUNTIFS($C:$C,$C9,$L:$L,">"&$L9)+COUNTIFS($C$2:$C9,$C9,$L$2:$L9,$L9) -> 4
A10: 9 | B10: Michigan | C10: The Mid-West | D10: 452324.16 | E10: 592101.58 | F10: =E10*0.97 -> 574338.5326 | G10: =F10*0.96 -> 551364.9913 | H10: 461773.8684 | I10: =H10*0.97 -> 447920.6523 | J10: =I10*0.96 -> 430003.8262 | K10: =J10*1.095 -> 470854.1897 | L10: 0.09 | M10: 174.8 | N10: 0.0316 | O10: 4 | P10: 4 | Q10: 2 | R10: =COUNTIFS($C:$C,$C10,$L:$L,">"&$L10)+COUNTIFS($C$2:$C10,$C10,$L$2:$L10,$L10) -> 1
A11: 10 | B11: North Carolina | C11: The South | D11: 470581.3689 | E11: 616000.64 | F11: =E11*1.095 -> 674520.7008 | G11: =F11*0.95 -> 640794.6658 | H11: 445699.4616 | I11: =H11*1.095 -> 488040.9104 | J11: =I11*0.95 -> 463638.8649 | K11: =J11*0.95 -> 440456.9216 | L11: 0.08 | M11: 200.6 | N11: 0.0305 | O11: 3 | P11: 4 | Q11: 3 | R11: =COUNTIFS($C:$C,$C11,$L:$L,">"&$L11)+COUNTIFS($C$2:$C11,$C11,$L$2:$L11,$L11) -> 5
A12: 11 | B12: New Jersey | C12: The North-East | D12: 871083.3493 | E12: 1113774.9 | F12: =E12*0.95 -> 1058086.155 | G12: =F12*1.095 -> 1158604.34 | H12: 410628.0285 | I12: =H12*0.95 -> 390096.6271 | J12: =I12*1.095 -> 427155.8067 | K12: =J12*0.95 -> 405798.0163 | L12: 0.084 | M12: 204 | N12: 0.0281 | O12: 7 | P12: 2 | Q12: 3 | R12: =COUNTIFS($C:$C,$C12,$L:$L,">"&$L12)+COUNTIFS($C$2:$C12,$C12,$L$2:$L12,$L12) -> 2
A13: 12 | B13: Virginia | C13: The South | D13: 502869.9654 | E13: 642974 | F13: =E13*0.95 -> 610825.3 | G13: =F13*1.07 -> 653583.071 | H13: 374095.2858 | I13: =H13*0.95 -> 355390.5215 | J13: =I13*1.07 -> 380267.858 | K13: =J13*0.95 -> 361254.4651 | L13: 0.056 | M13: 207.3 | N13: 0.0256 | O13: 2 | P13: 3 | Q13: 5 | R13: =COUNTIFS($C:$C,$C13,$L:$L,">"&$L13)+COUNTIFS($C$2:$C13,$C13,$L$2:$L13,$L13) -> 13
A14: 13 | B14: Washington | C14: The West | D14: 820326.8894 | E14: 1048877.24 | F14: 996433.378 | G14: 1066183.714 | H14: 628363.1753 | I14: 596945.0165 | J14: 638731.1677 | K14: 606794.6093 | L14: 0.07 | M14: 102.6 | N14: 0.0215 | O14: 3 | P14: 2 | Q14: 2 | R14: =COUNTIFS($C:$C,$C14,$L:$L,">"&$L14)+COUNTIFS($C$2:$C14,$C14,$L$2:$L14,$L14) -> 5
A15: 14 | B15: Massachusetts | C15: The North-East | D15: 624326.7793 | E15: 798269.76 | F15: =E15*0.95 -> 758356.272 | G15: =F15*1.03 -> 781106.9602 | H15: 305413.7294 | I15: =H15*0.95 -> 290143.0429 | J15: =I15*1.03 -> 298847.3342 | K15: =J15*0.95 -> 283904.9675 | L15: 0.072 | M15: 852.1 | N15: 0.0209 | O15: 1 | P15: 4 | Q15: 4 | R15: =COUNTIFS($C:$C,$C15,$L:$L,">"&$L15)+COUNTIFS($C$2:$C15,$C15,$L$2:$L15,$L15) -> 6
A16: 15 | B16: Arizona | C16: The West | D16: 545130.5199 | E16: 697008.72 | F16: 717918.9816 | G16: 682023.0325 | H16: 596214.3617 | I16: 614100.7925 | J16: 583395.7529 | K16: =J16*0.8 -> 466716.6023 | L16: 0.082 | M16: 57.05 | N16: 0.0204 | O16: 4 | P16: 4 | Q16: 3 | R16: =COUNTIFS($C:$C,$C16,$L:$L,">"&$L16)+COUNTIFS($C$2:$C16,$C16,$L$2:$L16,$L16) -> 3
A17: 16 | B17: Indiana | C17: The Mid-West | D17: 400736.4024 | E17: 512385.12 | F17: =E17*0.95 -> 486765.864 | G17: =F17*0.95 -> 462427.5708 | H17: 302491.11 | I17: =H17*0.95 -> 287366.5545 | J17: =I17*0.95 -> 272998.2267 | K17: =J17*0.97 -> 264808.2799 | L17: 0.075 | M17: 182.5 | N17: 0.0207 | O17: 3 | P17: 6 | Q17: 5 | R17: =COUNTIFS($C:$C,$C17,$L:$L,">"&$L17)+COUNTIFS($C$2:$C17,$C17,$L$2:$L17,$L17) -> 4
A18: 17 | B18: Tennessee | C18: The South | D18: 367667.5798 | E18: 470103.03 | F18: =E18*0.95 -> 446597.8785 | G18: =F18*1.03 -> 459995.8149 | H18: 296645.8711 | I18: =H18*0.95 -> 281813.5776 | J18: =I18*0.96 -> 270541.0345 | K18: =J18*1.095 -> 296242.4327 | L18: 0.084 | M18: 156.6 | N18: 0.0203 | O18: 6 | P18: 6 | Q18: 6 | R18: =COUNTIFS($C:$C,$C18,$L:$L,">"&$L18)+COUNTIFS($C$2:$C18,$C18,$L$2:$L18,$L18) -> 2
A19: 18 | B19: Missouri | C19: The Mid-West | D19: 378640.0048 | E19: 484132.47 | F19: =E19*0.96 -> 464767.1712 | G19: =F19*0.97 -> 450824.1561 | H19: 279110.1546 | I19: =H19*0.96 -> 267945.7484 | J19: =I19*0.97 -> 259907.376 | K19: =J19*0.95 -> 246912.0072 | L19: 0.065 | M19: 87.26 | N19: 0.0191 | O19: 6 | P19: 7 | Q19: 6 | R19: =COUNTIFS($C:$C,$C19,$L:$L,">"&$L19)+COUNTIFS($C$2:$C19,$C19,$L$2:$L19,$L19) -> 5
A20: 19 | B20: Maryland | C20: The North-East | D20: 376244.8626 | E20: 481070.02 | F20: =E20*0.97 -> 466637.9194 | G20: =F20*1.095 -> 510968.5217 | H20: 270342.2964 | I20: =H20*0.97 -> 262232.0275 | J20: =I20*1.095 -> 287144.0701 | K20: =J20*0.97 -> 278529.748 | L20: 0.067 | M20: 606.2 | N20: 0.0185 | O20: 3 | P20: 6 | Q20: 5 | R20: =COUNTIFS($C:$C,$C20,$L:$L,">"&$L20)+COUNTIFS($C$2:$C20,$C20,$L$2:$L20,$L20) -> 8
A21: 20 | B21: Wisconsin | C21: The Mid-West | D21: 324556.1161 | E21: 414980.33 | F21: =E21*1.095 -> 454403.4613 | G21: =F21*1.03 -> 468035.5652 | H21: 265958.3672 | I21: =H21*1.095 -> 291224.4121 | J21: =I21*0.95 -> 276663.1915 | K21: =J21*1.095 -> 302946.1947 | L21: 0.065 | M21: 105.2 | N21: 0.0182 | O21: 5 | P21: 5 | Q21: 4 | R21: =COUNTIFS($C:$C,$C21,$L:$L,">"&$L21)+COUNTIFS($C$2:$C21,$C21,$L$2:$L21,$L21) -> 6
A22: 21 | B22: Minnesota | C22: The Mid-West | D22: 615398.529 | E22: 786854.02 | F22: =E22*1.03 -> 810459.6406 | G22: =F22*0.95 -> 769936.6586 | H22: 248422.6507 | I22: =H22*1.03 -> 255875.3302 | J22: =I22*0.95 -> 243081.5637 | K22: =J22*0.95 -> 230927.4855 | L22: 0.048 | M22: 67.14 | N22: 0.017 | O22: 7 | P22: 3 | Q22: 7 | R22: =COUNTIFS($C:$C,$C22,$L:$L,">"&$L22)+COUNTIFS($C$2:$C22,$C22,$L$2:$L22,$L22) -> 8
A23: 22 | B23: Colorado | C23: The West | D23: 645274.749 | E23: 825054.02 | F23: 849805.6406 | G23: 807315.3586 | H23: 235270.8633 | I23: =H23*1.03 -> 242328.9892 | J23: =I23*0.95 -> 230212.5397 | K23: =J23*0.96 -> 221004.0382 | L23: 0.068 | M23: 49.33 | N23: 0.0161 | O23: 5 | P23: 3 | Q23: 5 | R23: =COUNTIFS($C:$C,$C23,$L:$L,">"&$L23)+COUNTIFS($C$2:$C23,$C23,$L$2:$L23,$L23) -> 6
A24: 23 | B24: Alabama | C24: The South | D24: 163325.5441 | E24: 208829.49 | F24: =E24*1.03 -> 215094.3747 | G24: =F24*0.95 -> 204339.656 | H24: 223580.3856 | I24: =H24*1.03 -> 230287.7972 | J24: =I24*0.95 -> 218773.4073 | K24: =J24*0.97 -> 212210.2051 | L24: 0.065 | M24: 94.65 | N24: 0.0153 | O24: 10 | P24: 11 | Q24: 8 | R24: =COUNTIFS($C:$C,$C24,$L:$L,">"&$L24)+COUNTIFS($C$2:$C24,$C24,$L$2:$L24,$L24) -> 9
A25: 24 | B25: South Carolina | C25: The South | D25: 145135.5953 | E25: 185571.66 | F25: =E25*1.03 -> 191138.8098 | G25: =F25*1.03 -> 196872.9741 | H25: 216273.8371 | I25: =H25*1.03 -> 222762.0522 | J25: =I25*1.03 -> 229444.9138 | K25: =J25*1.095 -> 251242.1806 | L25: 0.075 | M25: 157.1 | N25: 0.0148 | O25: 5 | P25: 12 | Q25: 7 | R25: =COUNTIFS($C:$C,$C25,$L:$L,">"&$L25)+COUNTIFS($C$2:$C25,$C25,$L$2:$L25,$L25) -> 6
A26: 25 | B26: Louisiana | C26: The South | D26: 272257.3941 | E26: 348110.72 | F26: =E26*0.95 -> 330705.184 | G26: =F26*0.97 -> 320784.0285 | H26: 211889.9079 | I26: =H26*0.95 -> 201295.4126 | J26: =I26*0.97 -> 195256.5502 | K26: =J26*0.95 -> 185493.7227 | L26: 0.065 | M26: 105 | N26: 0.0145 | O26: 8 | P26: 7 | Q26: 9 | R26: =COUNTIFS($C:$C,$C26,$L:$L,">"&$L26)+COUNTIFS($C$2:$C26,$C26,$L$2:$L26,$L26) -> 10
A27: 26 | B27: Kentucky | C27: The South | D27: 196196.1435 | E27: 250858.13 | F27: =E27*0.95 -> 238315.2235 | G27: =F27*1.095 -> 260955.1697 | H27: 203122.0497 | I27: =H27*0.95 -> 192965.9472 | J27: =I27*1.095 -> 211297.7122 | K27: =J27*0.8 -> 169038.1698 | L27: 0.084 | M27: 110 | N27: 0.0139 | O27: 7 | P27: 10 | Q27: 11 | R27: =COUNTIFS($C:$C,$C27,$L:$L,">"&$L27)+COUNTIFS($C$2:$C27,$C27,$L$2:$L27,$L27) -> 3
A28: 27 | B28: Oregon | C28: The West | D28: 177666.5442 | E28: 227166.02 | F28: =E28*0.96 -> 218079.3792 | G28: =F28*1.03 -> 224621.7606 | H28: 356559.5692 | I28: 342297.1865 | J28: 352566.1021 | K28: 338463.458 | L28: 0.077 | M28: 40.33 | N28: 0.0122 | O28: 6 | P28: 6 | Q28: 4 | R28: =COUNTIFS($C:$C,$C28,$L:$L,">"&$L28)+COUNTIFS($C$2:$C28,$C28,$L$2:$L28,$L28) -> 4
A29: 28 | B29: Oklahoma | C29: The South | D29: 209709.5979 | E29: 270872.64 | F29: =E29*0.97 -> 262746.4608 | G29: 270628.8546 | H29: 175357.1652 | I29: =H29*0.97 -> 170096.4502 | J29: =I29*1.03 -> 175199.3438 | K29: =J29*0.97 -> 169943.3634 | L29: 0.055 | M29: 55.22 | N29: 0.012 | O29: 14 | P29: 8 | Q29: 10 | R29: =COUNTIFS($C:$C,$C29,$L:$L,">"&$L29)+COUNTIFS($C$2:$C29,$C29,$L$2:$L29,$L29) -> 14
A30: 29 | B30: Connecticut | C30: The North-East | D30: 365907.8389 | E30: 472627.02 | F30: =E30*1.095 -> 517526.5869 | G30: 533052.3845 | H30: 166589.3069 | I30: =H30*1.095 -> 182415.2911 | J30: 187887.7498 | K30: =J30*0.95 -> 178493.3623 | L30: 0.079 | M30: 741.4 | N30: 0.0114 | O30: 2 | P30: 5 | Q30: 6 | R30: =COUNTIFS($C:$C,$C30,$L:$L,">"&$L30)+COUNTIFS($C$2:$C30,$C30,$L$2:$L30,$L30) -> 3
A31: 30 | B31: Iowa | C31: The Mid-West | D31: 145190.3402 | E31: 187535.96 | F31: =E31*1.03 -> 193162.0388 | G31: 198956.9 | H31: 141747.0419 | I31: =H31*1.03 -> 145999.4531 | J31: 150379.4367 | K31: =J31*0.96 -> 144364.2593 | L31: 0.046 | M31: 54.81 | N31: 0.0097 | O31: 8 | P31: 9 | Q31: 8 | R31: =COUNTIFS($C:$C,$C31,$L:$L,">"&$L31)+COUNTIFS($C$2:$C31,$C31,$L$2:$L31,$L31) -> 9
A32: 31 | B32: Mississippi | C32: The South | D32: 80970.08636 | E32: 104585.49 | F32: 107723.0547 | G32: 110954.7463 | H32: 138824.4225 | I32: 142989.1551 | J32: 147278.8298 | K32: =J32*0.97 -> 142860.4649 | L32: 0.085 | M32: 63.5 | N32: 0.0095 | O32: 12 | P32: 13 | Q32: 13 | R32: =COUNTIFS($C:$C,$C32,$L:$L,">"&$L32)+COUNTIFS($C$2:$C32,$C32,$L$2:$L32,$L32) -> 1
A33: 32 | B33: Arkansas | C33: The South | D33: 195871.2993 | E33: 252998.32 | F33: 260588.2696 | G33: 268405.9177 | H33: 135901.803 | I33: 139978.8571 | J33: 144178.2228 | K33: =J33*1.095 -> 157875.154 | L33: 0.075 | M33: 56.43 | N33: 0.0093 | O33: 13 | P33: 9 | Q33: 12 | R33: =COUNTIFS($C:$C,$C33,$L:$L,">"&$L33)+COUNTIFS($C$2:$C33,$C33,$L$2:$L33,$L33) -> 7
A34: 33 | B34: Kansas | C34: The Mid-West | D34: 169585.5293 | E34: 219046.15 | F34: 225617.5345 | G34: 232386.0605 | H34: 132979.1836 | I34: 136968.5591 | J34: 141077.6159 | K34: =J34*0.8 -> 112862.0927 | L34: 0.056 | M34: 35.09 | N34: 0.0091 | O34: =SUMPRODUCT((C$2:C$601=$C34)*(M$2:M$601>M34))+1 -> 9 | P34: 8 | Q34: 9 | R34: =COUNTIFS($C:$C,$C34,$L:$L,">"&$L34)+COUNTIFS($C$2:$C34,$C34,$L$2:$L34,$L34) -> 7
A35: 34 | B35: Utah | C35: The West | D35: 121101.3627 | E35: 156421.29 | F35: 161113.9287 | G35: 165947.3466 | H35: 128595.2545 | I35: 132453.1121 | J35: 136426.7055 | K35: =J35*1.03 -> 140519.5066 | L35: 0.046 | M35: 34.3 | N35: 0.0088 | O35: 7 | P35: 10 | Q35: 6 | R35: =COUNTIFS($C:$C,$C35,$L:$L,">"&$L35)+COUNTIFS($C$2:$C35,$C35,$L$2:$L35,$L35) -> 11
A36: 35 | B36: Nevada | C36: The West | D36: 106277.7243 | E36: 137274.25 | F36: 141392.4775 | G36: 145634.2518 | H36: 125672.6351 | I36: 129442.8141 | J36: 133326.0985 | K36: =J36*1.03 -> 137325.8815 | L36: 0.093 | M36: 24.8 | N36: 0.0086 | O36: 8 | P36: 11 | Q36: 7 | R36: =COUNTIFS($C:$C,$C36,$L:$L,">"&$L36)+COUNTIFS($C$2:$C36,$C36,$L$2:$L36,$L36) -> 1
A37: 36 | B37: New Mexico | C37: The West | D37: 182700.5006 | E37: 235986.18 | F37: 224186.871 | G37: 212977.5274 | H37: 96446.44086 | I37: =H37*0.95 -> 91624.11882 | J37: 87042.91288 | K37: 82690.76723 | L37: 0.066 | M37: 17.16 | N37: 0.0066 | O37: 10 | P37: 8 | Q37: 8 | R37: =COUNTIFS($C:$C,$C37,$L:$L,">"&$L37)+COUNTIFS($C$2:$C37,$C37,$L$2:$L37,$L37) -> 8
A38: 37 | B38: Nebraska | C38: The Mid-West | D38: 153254.8565 | E38: 197952.54 | F38: =E38*0.95 -> 188054.913 | G38: =F38*0.95 -> 178652.1674 | H38: 84755.96318 | I38: 80518.16502 | J38: 76492.25677 | K38: 72667.64393 | L38: 0.039 | M38: 23.97 | N38: 0.0058 | O38: 10 | P38: 10 | Q38: 10 | R38: =COUNTIFS($C:$C,$C38,$L:$L,">"&$L38)+COUNTIFS($C$2:$C38,$C38,$L$2:$L38,$L38) -> 10
A39: 38 | B39: West Virginia | C39: The South | D39: 50311.40248 | E39: 64985.02 | F39: =E39*0.96 -> 62385.6192 | G39: =F39*0.96 -> 59890.19443 | H39: 86217.27289 | I39: =H39*0.96 -> 82768.58197 | J39: =I39*0.96 -> 79457.8387 | K39: =J39*0.96 -> 76279.52515 | L39: 0.062 | M39: 77.06 | N39: 0.0059 | O39: 11 | P39: 14 | Q39: 14 | R39: =COUNTIFS($C:$C,$C39,$L:$L,">"&$L39)+COUNTIFS($C$2:$C39,$C39,$L$2:$L39,$L39) -> 12
A40: 39 | B40: Idaho | C40: The West | D40: 184266.0733 | E40: 228674.7 | F40: 221814.459 | G40: 215160.0252 | H40: 74526.79521 | I40: =H40*0.97 -> 72290.99135 | J40: =I40*0.97 -> 70122.26161 | K40: =J40*0.95 -> 66616.14853 | L40: 0.067 | M40: 19.5 | N40: 0.0051 | O40: 9 | P40: 7 | Q40: 10 | R40: =COUNTIFS($C:$C,$C40,$L:$L,">"&$L40)+COUNTIFS($C$2:$C40,$C40,$L$2:$L40,$L40) -> 7
A41: 40 | B41: Hawaii | C41: The West | D41: 157410.8866 | E41: 195347.34 | F41: 213905.3373 | G41: 207488.1772 | H41: 62836.31753 | I41: =H41*1.095 -> 68805.7677 | J41: =I41*1.095 -> 75342.31563 | K41: =J41*0.97 -> 73082.04616 | L41: 0.044 | M41: 216.8 | N41: 0.0043 | O41: 2 | P41: 9 | Q41: 9 | R41: =COUNTIFS($C:$C,$C41,$L:$L,">"&$L41)+COUNTIFS($C$2:$C41,$C41,$L$2:$L41,$L41) -> 13
A42: 41 | B42: Maine | C42: The North-East | D42: 50194.80496 | E42: 62291.89 | F42: =E42*1.03 -> 64160.6467 | G42: =F42*1.095 -> 70255.90814 | H42: 61375.00782 | I42: =H42*1.03 -> 63216.25805 | J42: =I42*0.95 -> 60055.44515 | K42: =J42*1.095 -> 65760.71244 | L42: 0.067 | M42: 43.04 | N42: 0.0042 | O42: 11 | P42: 10 | Q42: 8 | R42: =COUNTIFS($C:$C,$C42,$L:$L,">"&$L42)+COUNTIFS($C$2:$C42,$C42,$L$2:$L42,$L42) -> 9
A43: 42 | B43: New Hampshire | C43: The North-East | D43: 70972.37408 | E43: 88076.91 | F43: =E43*1.03 -> 90719.2173 | G43: =F43*1.03 -> 93440.79382 | H43: 61375.00782 | I43: =H43*1.03 -> 63216.25805 | J43: =I43*1.03 -> 65112.7458 | K43: =J43*1.03 -> 67066.12817 | L43: 0.051 | M43: 147 | N43: 0.0042 | O43: 8 | P43: 9 | Q43: 7 | R43: =COUNTIFS($C:$C,$C43,$L:$L,">"&$L43)+COUNTIFS($C$2:$C43,$C43,$L$2:$L43,$L43) -> 10
A44: 43 | B44: Rhode Island | C44: The North-East | D44: 88576.2596 | E44: 109923.38 | F44: =E44*1.03 -> 113221.0814 | G44: =F44*1.03 -> 116617.7138 | H44: 49684.53014 | I44: =H44*1.03 -> 51175.06604 | J44: =I44*1.03 -> 52710.31803 | K44: =J44*0.95 -> 50074.80212 | L44: 0.092 | M44: 100.6 | N44: 0.0034 | O44: 9 | P44: 8 | Q44: 9 | R44: =COUNTIFS($C:$C,$C44,$L:$L,">"&$L44)+COUNTIFS($C$2:$C44,$C44,$L$2:$L44,$L44) -> 1
A45: 44 | B45: Montana | C45: The West | D45: 552798.2198 | E45: 686024.1 | F45: 665443.377 | G45: 645480.0757 | H45: 46761.91072 | I45: =H45*0.95 -> 44423.81518 | J45: =I45*1.03 -> 45756.52964 | K45: =J45*0.96 -> 43926.26845 | L45: 0.052 | M45: 6.858 | N45: 0.0032 | O45: 11 | P45: 5 | Q45: 11 | R45: =COUNTIFS($C:$C,$C45,$L:$L,">"&$L45)+COUNTIFS($C$2:$C45,$C45,$L$2:$L45,$L45) -> 10
A46: 45 | B46: Delaware | C46: The North-East | D46: 175949.7499 | E46: 218354.12 | F46: =E46*0.95 -> 207436.414 | G46: =F46*0.97 -> 201213.3216 | H46: 42377.98159 | I46: =H46*0.95 -> 40259.08251 | J46: =I46*0.97 -> 39051.31004 | K46: =J46*0.95 -> 37098.74453 | L46: 0.068 | M46: 470.7 | N46: 0.0029 | O46: 4 | P46: 7 | Q46: 10 | R46: =COUNTIFS($C:$C,$C46,$L:$L,">"&$L46)+COUNTIFS($C$2:$C46,$C46,$L$2:$L46,$L46) -> 7
A47: 46 | B47: South Dakota | C47: The Mid-West | D47: 41387.89444 | E47: 51362.49 | F47: =E47*0.96 -> 49307.9904 | G47: =F47*1.095 -> 53992.24949 | H47: 37994.05246 | I47: =H47*0.96 -> 36474.29036 | J47: =I47*1.095 -> 39939.34795 | K47: =J47*0.8 -> 31951.47836 | L47: 0.037 | M47: 10.86 | N47: 0.0026 | O47: 11 | P47: 12 | Q47: 12 | R47: =COUNTIFS($C:$C,$C47,$L:$L,">"&$L47)+COUNTIFS($C$2:$C47,$C47,$L$2:$L47,$L47) -> 11
A48: 47 | B48: Alaska | C48: The West | D48: 39474.36924 | E48: 48987.8 | F48: =E48*0.97 -> 47518.166 | G48: =F48*1.03 -> 48943.71098 | H48: 33610.12333 | I48: =H48*0.97 -> 32601.81963 | J48: =I48*1.03 -> 33579.87422 | K48: =J48*0.97 -> 32572.47799 | L48: 0.065 | M48: 1.264 | N48: 0.0023 | O48: 13 | P48: 12 | Q48: 12 | R48: =COUNTIFS($C:$C,$C48,$L:$L,">"&$L48)+COUNTIFS($C$2:$C48,$C48,$L$2:$L48,$L48) -> 9
A49: 48 | B49: North Dakota | C49: The Mid-West | D49: 45647.44188 | E49: 56648.6 | F49: =E49*1.095 -> 62030.217 | G49: =F49*1.03 -> 63891.12351 | H49: 30687.50391 | I49: =H49*1.095 -> 33602.81678 | J49: =I49*0.95 -> 31922.67594 | K49: =J49*1.095 -> 34955.33016 | L49: 0.027 | M49: 9.916 | N49: 0.0021 | O49: 12 | P49: 11 | Q49: 11 | R49: =COUNTIFS($C:$C,$C49,$L:$L,">"&$L49)+COUNTIFS($C$2:$C49,$C49,$L$2:$L49,$L49) -> 12
A50: 49 | B50: Vermont | C50: The North-East | D50: 28403.53945 | E50: 35248.87 | F50: =E50*1.03 -> 36306.3361 | G50: =F50*1.03 -> 37395.52618 | H50: 29226.1942 | I50: =H50*1.03 -> 30102.98003 | J50: =I50*0.96 -> 28898.86082 | K50: =J50*1.03 -> 29765.82665 | L50: 0.045 | M50: 67.73 | N50: 0.002 | O50: 10 | P50: 11 | Q50: 11 | R50: =COUNTIFS($C:$C,$C50,$L:$L,">"&$L50)+COUNTIFS($C$2:$C50,$C50,$L$2:$L50,$L50) -> 11
A51: 50 | B51: Wyoming | C51: The West | D51: 30849.07798 | E51: 38283.79 | F51: =E51*1.03 -> 39432.3037 | G51: =F51*1.03 -> 40615.27281 | H51: 26303.57478 | I51: =H51*1.03 -> 27092.68202 | J51: =I51*0.97 -> 26279.90156 | K51: =J51*1.03 -> 27068.29861 | L51: 0.046 | M51: 5.851 | N51: 0.0018 | O51: 12 | P51: 13 | Q51: 13 | R51: =COUNTIFS($C:$C,$C51,$L:$L,">"&$L51)+COUNTIFS($C$2:$C51,$C51,$L$2:$L51,$L51) -> 12

Sheet Calcs
A1: Top 10 | B1: Revenue Region | C1: Revenue State | D1: Revenue 10 | E1: Revenue 11 | F1: Revenue 12 | G1: Revenue 13 | H1: Expense Region | I1: Expense State | J1: Expenses 10 | K1: Expenses 11 | L1: Expenses 12 | M1: Expenses 13 | N1: Staff | O1: State | P1: FTE by City | Q1: Late Debt | R1: State | S1: Late Debt
A2: 1 | B2: The West | C2: =INDEX(Data!$B$2:$B$51,MATCH(1,INDEX((Data!$C$2:$C$51=B2)*(Data!$P$2:$P$51=A2),0),0)) -> California | D2: =SUMPRODUCT((Data!$B$2:$B$51=C2)*(Data!$C$2:$C$51=B2)*(Data!$D$2:$D$51)) -> 1787984.729 | E2: =SUMPRODUCT((Data!$B$2:$B$51=$C2)*(Data!$C$2:$C$51=$B2)*(Data!E$2:E$51)) -> 2340508.592 | F2: =SUMPRODUCT((Data!$B$2:$B$51=$C2)*(Data!$C$2:$C$51=$B2)*(Data!F$2:F$51)) -> 2410723.85 | G2: =SUMPRODUCT((Data!$B$2:$B$51=$C2)*(Data!$C$2:$C$51=$B2)*(Data!G$2:G$51)) -> 2483045.565 | H2: The West | I2: =INDEX(Data!$B$2:$B$51,MATCH(1,INDEX((Data!$C$2:$C$51=B2)*(Data!$Q$2:$Q$51=A2),0),0)) -> California | J2: =SUMPRODUCT((Data!$B$2:$B$51=$I2)*(Data!$C$2:$C$51=$H2)*(Data!H$2:H$51)) -> 1089787.013 | K2: =SUMPRODUCT((Data!$B$2:$B$51=$I2)*(Data!$C$2:$C$51=$H2)*(Data!I$2:I$51)) -> 1122480.624 | L2: =SUMPRODUCT((Data!$B$2:$B$51=$I2)*(Data!$C$2:$C$51=$H2)*(Data!J$2:J$51)) -> 1156155.042 | M2: =SUMPRODUCT((Data!$B$2:$B$51=$I2)*(Data!$C$2:$C$51=$H2)*(Data!K$2:K$51)) -> 1167716.593 | N2: The West | O2: =INDEX(Data!$B$2:$B$51,MATCH(1,INDEX((Data!$C$2:$C$51=N2)*(Data!$O$2:$O$51=A2),0),0)) -> California | P2: =SUMPRODUCT((Data!$B$2:$B$51=O2)*(Data!$C$2:$C$51=N2)*(Data!$M$2:$M$51)) -> 244.2 | Q2: The West | R2: =INDEX(Data!$B$2:$B$51,MATCH(1,INDEX((Data!$C$2:$C$51=Q2)*(Data!$R$2:$R$51=A2),0),0)) -> Nevada | S2: =SUMPRODUCT((Data!$B$2:$B$51=R2)*(Data!$C$2:$C$51=Q2)*(Data!$L$2:$L$51)) -> 0.093
A3: 2 | B3: The West | C3: =INDEX(Data!$B$2:$B$51,MATCH(1,INDEX((Data!$C$2:$C$51=B3)*(Data!$P$2:$P$51=A3),0),0)) -> Washington | D3: =SUMPRODUCT((Data!$B$2:$B$51=C3)*(Data!$C$2:$C$51=B3)*(Data!$D$2:$D$51)) -> 820326.8894 | E3: =SUMPRODUCT((Data!$B$2:$B$51=$C3)*(Data!$C$2:$C$51=$B3)*(Data!E$2:E$51)) -> 1048877.24 | F3: =SUMPRODUCT((Data!$B$2:$B$51=$C3)*(Data!$C$2:$C$51=$B3)*(Data!F$2:F$51)) -> 996433.378 | G3: =SUMPRODUCT((Data!$B$2:$B$51=$C3)*(Data!$C$2:$C$51=$B3)*(Data!G$2:G$51)) -> 1066183.714 | H3: The West | I3: =INDEX(Data!$B$2:$B$51,MATCH(1,INDEX((Data!$C$2:$C$51=B3)*(Data!$Q$2:$Q$51=A3),0),0)) -> Washington | J3: =SUMPRODUCT((Data!$B$2:$B$51=$I3)*(Data!$C$2:$C$51=$H3)*(Data!H$2:H$51)) -> 628363.1753 | K3: =SUMPRODUCT((Data!$B$2:$B$51=$I3)*(Data!$C$2:$C$51=$H3)*(Data!I$2:I$51)) -> 596945.0165 | L3: =SUMPRODUCT((Data!$B$2:$B$51=$I3)*(Data!$C$2:$C$51=$H3)*(Data!J$2:J$51)) -> 638731.1677 | M3: =SUMPRODUCT((Data!$B$2:$B$51=$I3)*(Data!$C$2:$C$51=$H3)*(Data!K$2:K$51)) -> 606794.6093 | N3: The West | O3: =INDEX(Data!$B$2:$B$51,MATCH(1,INDEX((Data!$C$2:$C$51=N3)*(Data!$O$2:$O$51=A3),0),0)) -> Hawaii | P3: =SUMPRODUCT((Data!$B$2:$B$51=O3)*(Data!$C$2:$C$51=N3)*(Data!$M$2:$M$51)) -> 216.8 | Q3: The West | R3: =INDEX(Data!$B$2:$B$51,MATCH(1,INDEX((Data!$C$2:$C$51=Q3)*(Data!$R$2:$R$51=A3),0),0)) -> California | S3: =SUMPRODUCT((Data!$B$2:$B$51=R3)*(Data!$C$2:$C$51=Q3)*(Data!$L$2:$L$51)) -> 0.087
A4: 3 | B4: The West | C4: =INDEX(Data!$B$2:$B$51,MATCH(1,INDEX((Data!$C$2:$C$51=B4)*(Data!$P$2:$P$51=A4),0),0)) -> Colorado | D4: =SUMPRODUCT((Data!$B$2:$B$51=C4)*(Data!$C$2:$C$51=B4)*(Data!$D$2:$D$51)) -> 645274.749 | E4: =SUMPRODUCT((Data!$B$2:$B$51=$C4)*(Data!$C$2:$C$51=$B4)*(Data!E$2:E$51)) -> 825054.02 | F4: =SUMPRODUCT((Data!$B$2:$B$51=$C4)*(Data!$C$2:$C$51=$B4)*(Data!F$2:F$51)) -> 849805.6406 | G4: =SUMPRODUCT((Data!$B$2:$B$51=$C4)*(Data!$C$2:$C$51=$B4)*(Data!G$2:G$51)) -> 807315.3586 | H4: The West | I4: =INDEX(Data!$B$2:$B$51,MATCH(1,INDEX((Data!$C$2:$C$51=B4)*(Data!$Q$2:$Q$51=A4),0),0)) -> Arizona | J4: =SUMPRODUCT((Data!$B$2:$B$51=$I4)*(Data!$C$2:$C$51=$H4)*(Data!H$2:H$51)) -> 596214.3617 | K4: =SUMPRODUCT((Data!$B$2:$B$51=$I4)*(Data!$C$2:$C$51=$H4)*(Data!I$2:I$51)) -> 614100.7925 | L4: =SUMPRODUCT((Data!$B$2:$B$51=$I4)*(Data!$C$2:$C$51=$H4)*(Data!J$2:J$51)) -> 583395.7529 | M4: =SUMPRODUCT((Data!$B$2:$B$51=$I4)*(Data!$C$2:$C$51=$H4)*(Data!K$2:K$51)) -> 466716.6023 | N4: The West | O4: =INDEX(Data!$B$2:$B$51,MATCH(1,INDEX((Data!$C$2:$C$51=N4)*(Data!$O$2:$O$51=A4),0),0)) -> Washington | P4: =SUMPRODUCT((Data!$B$2:$B$51=O4)*(Data!$C$2:$C$51=N4)*(Data!$M$2:$M$51)) -> 102.6 | Q4: The West | R4: =INDEX(Data!$B$2:$B$51,MATCH(1,INDEX((Data!$C$2:$C$51=Q4)*(Data!$R$2:$R$51=A4),0),0)) -> Arizona | S4: =SUMPRODUCT((Data!$B$2:$B$51=R4)*(Data!$C$2:$C$51=Q4)*(Data!$L$2:$L$51)) -> 0.082
A5: 4 | B5: The West | C5: =INDEX(Data!$B$2:$B$51,MATCH(1,INDEX((Data!$C$2:$C$51=B5)*(Data!$P$2:$P$51=A5),0),0)) -> Arizona | D5: =SUMPRODUCT((Data!$B$2:$B$51=C5)*(Data!$C$2:$C$51=B5)*(Data!$D$2:$D$51)) -> 545130.5199 | E5: =SUMPRODUCT((Data!$B$2:$B$51=$C5)*(Data!$C$2:$C$51=$B5)*(Data!E$2:E$51)) -> 697008.72 | F5: =SUMPRODUCT((Data!$B$2:$B$51=$C5)*(Data!$C$2:$C$51=$B5)*(Data!F$2:F$51)) -> 717918.9816 | G5: =SUMPRODUCT((Data!$B$2:$B$51=$C5)*(Data!$C$2:$C$51=$B5)*(Data!G$2:G$51)) -> 682023.0325 | H5: The West | I5: =INDEX(Data!$B$2:$B$51,MATCH(1,INDEX((Data!$C$2:$C$51=B5)*(Data!$Q$2:$Q$51=A5),0),0)) -> Oregon | J5: =SUMPRODUCT((Data!$B$2:$B$51=$I5)*(Data!$C$2:$C$51=$H5)*(Data!H$2:H$51)) -> 356559.5692 | K5: =SUMPRODUCT((Data!$B$2:$B$51=$I5)*(Data!$C$2:$C$51=$H5)*(Data!I$2:I$51)) -> 342297.1865 | L5: =SUMPRODUCT((Data!$B$2:$B$51=$I5)*(Data!$C$2:$C$51=$H5)*(Data!J$2:J$51)) -> 352566.1021 | M5: =SUMPRODUCT((Data!$B$2:$B$51=$I5)*(Data!$C$2:$C$51=$H5)*(Data!K$2:K$51)) -> 338463.458 | N5: The West | O5: =INDEX(Data!$B$2:$B$51,MATCH(1,INDEX((Data!$C$2:$C$51=N5)*(Data!$O$2:$O$51=A5),0),0)) -> Arizona | P5: =SUMPRODUCT((Data!$B$2:$B$51=O5)*(Data!$C$2:$C$51=N5)*(Data!$M$2:$M$51)) -> 57.05 | Q5: The West | R5: =INDEX(Data!$B$2:$B$51,MATCH(1,INDEX((Data!$C$2:$C$51=Q5)*(Data!$R$2:$R$51=A5),0),0)) -> Oregon | S5: =SUMPRODUCT((Data!$B$2:$B$51=R5)*(Data!$C$2:$C$51=Q5)*(Data!$L$2:$L$51)) -> 0.077
A6: 5 | B6: The West | C6: =INDEX(Data!$B$2:$B$51,MATCH(1,INDEX((Data!$C$2:$C$51=B6)*(Data!$P$2:$P$51=A6),0),0)) -> Montana | D6: =SUMPRODUCT((Data!$B$2:$B$51=C6)*(Data!$C$2:$C$51=B6)*(Data!$D$2:$D$51)) -> 552798.2198 | E6: =SUMPRODUCT((Data!$B$2:$B$51=$C6)*(Data!$C$2:$C$51=$B6)*(Data!E$2:E$51)) -> 686024.1 | F6: =SUMPRODUCT((Data!$B$2:$B$51=$C6)*(Data!$C$2:$C$51=$B6)*(Data!F$2:F$51)) -> 665443.377 | G6: =SUMPRODUCT((Data!$B$2:$B$51=$C6)*(Data!$C$2:$C$51=$B6)*(Data!G$2:G$51)) -> 645480.0757 | H6: The West | I6: =INDEX(Data!$B$2:$B$51,MATCH(1,INDEX((Data!$C$2:$C$51=B6)*(Data!$Q$2:$Q$51=A6),0),0)) -> Colorado | J6: =SUMPRODUCT((Data!$B$2:$B$51=$I6)*(Data!$C$2:$C$51=$H6)*(Data!H$2:H$51)) -> 235270.8633 | K6: =SUMPRODUCT((Data!$B$2:$B$51=$I6)*(Data!$C$2:$C$51=$H6)*(Data!I$2:I$51)) -> 242328.9892 | L6: =SUMPRODUCT((Data!$B$2:$B$51=$I6)*(Data!$C$2:$C$51=$H6)*(Data!J$2:J$51)) -> 230212.5397 | M6: =SUMPRODUCT((Data!$B$2:$B$51=$I6)*(Data!$C$2:$C$51=$H6)*(Data!K$2:K$51)) -> 221004.0382 | N6: The West | O6: =INDEX(Data!$B$2:$B$51,MATCH(1,INDEX((Data!$C$2:$C$51=N6)*(Data!$O$2:$O$51=A6),0),0)) -> Colorado | P6: =SUMPRODUCT((Data!$B$2:$B$51=O6)*(Data!$C$2:$C$51=N6)*(Data!$M$2:$M$51)) -> 49.33 | Q6: The West | R6: =INDEX(Data!$B$2:$B$51,MATCH(1,INDEX((Data!$C$2:$C$51=Q6)*(Data!$R$2:$R$51=A6),0),0)) -> Washington | S6: =SUMPRODUCT((Data!$B$2:$B$51=R6)*(Data!$C$2:$C$51=Q6)*(Data!$L$2:$L$51)) -> 0.07
A7: 6 | B7: The West | C7: =INDEX(Data!$B$2:$B$51,MATCH(1,INDEX((Data!$C$2:$C$51=B7)*(Data!$P$2:$P$51=A7),0),0)) -> Oregon | D7: =SUMPRODUCT((Data!$B$2:$B$51=C7)*(Data!$C$2:$C$51=B7)*(Data!$D$2:$D$51)) -> 177666.5442 | E7: =SUMPRODUCT((Data!$B$2:$B$51=$C7)*(Data!$C$2:$C$51=$B7)*(Data!E$2:E$51)) -> 227166.02 | F7: =SUMPRODUCT((Data!$B$2:$B$51=$C7)*(Data!$C$2:$C$51=$B7)*(Data!F$2:F$51)) -> 218079.3792 | G7: =SUMPRODUCT((Data!$B$2:$B$51=$C7)*(Data!$C$2:$C$51=$B7)*(Data!G$2:G$51)) -> 224621.7606 | H7: The West | I7: =INDEX(Data!$B$2:$B$51,MATCH(1,INDEX((Data!$C$2:$C$51=B7)*(Data!$Q$2:$Q$51=A7),0),0)) -> Utah | J7: =SUMPRODUCT((Data!$B$2:$B$51=$I7)*(Data!$C$2:$C$51=$H7)*(Data!H$2:H$51)) -> 128595.2545 | K7: =SUMPRODUCT((Data!$B$2:$B$51=$I7)*(Data!$C$2:$C$51=$H7)*(Data!I$2:I$51)) -> 132453.1121 | L7: =SUMPRODUCT((Data!$B$2:$B$51=$I7)*(Data!$C$2:$C$51=$H7)*(Data!J$2:J$51)) -> 136426.7055 | M7: =SUMPRODUCT((Data!$B$2:$B$51=$I7)*(Data!$C$2:$C$51=$H7)*(Data!K$2:K$51)) -> 140519.5066 | N7: The West | O7: =INDEX(Data!$B$2:$B$51,MATCH(1,INDEX((Data!$C$2:$C$51=N7)*(Data!$O$2:$O$51=A7),0),0)) -> Oregon | P7: =SUMPRODUCT((Data!$B$2:$B$51=O7)*(Data!$C$2:$C$51=N7)*(Data!$M$2:$M$51)) -> 40.33 | Q7: The West | R7: =INDEX(Data!$B$2:$B$51,MATCH(1,INDEX((Data!$C$2:$C$51=Q7)*(Data!$R$2:$R$51=A7),0),0)) -> Colorado | S7: =SUMPRODUCT((Data!$B$2:$B$51=R7)*(Data!$C$2:$C$51=Q7)*(Data!$L$2:$L$51)) -> 0.068
A8: 7 | B8: The West | C8: =INDEX(Data!$B$2:$B$51,MATCH(1,INDEX((Data!$C$2:$C$51=B8)*(Data!$P$2:$P$51=A8),0),0)) -> Idaho | D8: =SUMPRODUCT((Data!$B$2:$B$51=C8)*(Data!$C$2:$C$51=B8)*(Data!$D$2:$D$51)) -> 184266.0733 | E8: =SUMPRODUCT((Data!$B$2:$B$51=$C8)*(Data!$C$2:$C$51=$B8)*(Data!E$2:E$51)) -> 228674.7 | F8: =SUMPRODUCT((Data!$B$2:$B$51=$C8)*(Data!$C$2:$C$51=$B8)*(Data!F$2:F$51)) -> 221814.459 | G8: =SUMPRODUCT((Data!$B$2:$B$51=$C8)*(Data!$C$2:$C$51=$B8)*(Data!G$2:G$51)) -> 215160.0252 | H8: The West | I8: =INDEX(Data!$B$2:$B$51,MATCH(1,INDEX((Data!$C$2:$C$51=B8)*(Data!$Q$2:$Q$51=A8),0),0)) -> Nevada | J8: =SUMPRODUCT((Data!$B$2:$B$51=$I8)*(Data!$C$2:$C$51=$H8)*(Data!H$2:H$51)) -> 125672.6351 | K8: =SUMPRODUCT((Data!$B$2:$B$51=$I8)*(Data!$C$2:$C$51=$H8)*(Data!I$2:I$51)) -> 129442.8141 | L8: =SUMPRODUCT((Data!$B$2:$B$51=$I8)*(Data!$C$2:$C$51=$H8)*(Data!J$2:J$51)) -> 133326.0985 | M8: =SUMPRODUCT((Data!$B$2:$B$51=$I8)*(Data!$C$2:$C$51=$H8)*(Data!K$2:K$51)) -> 137325.8815 | N8: The West | O8: =INDEX(Data!$B$2:$B$51,MATCH(1,INDEX((Data!$C$2:$C$51=N8)*(Data!$O$2:$O$51=A8),0),0)) -> Utah | P8: =SUMPRODUCT((Data!$B$2:$B$51=O8)*(Data!$C$2:$C$51=N8)*(Data!$M$2:$M$51)) -> 34.3 | Q8: The West | R8: =INDEX(Data!$B$2:$B$51,MATCH(1,INDEX((Data!$C$2:$C$51=Q8)*(Data!$R$2:$R$51=A8),0),0)) -> Idaho | S8: =SUMPRODUCT((Data!$B$2:$B$51=R8)*(Data!$C$2:$C$51=Q8)*(Data!$L$2:$L$51)) -> 0.067
A9: 8 | B9: The West | C9: =INDEX(Data!$B$2:$B$51,MATCH(1,INDEX((Data!$C$2:$C$51=B9)*(Data!$P$2:$P$51=A9),0),0)) -> New Mexico | D9: =SUMPRODUCT((Data!$B$2:$B$51=C9)*(Data!$C$2:$C$51=B9)*(Data!$D$2:$D$51)) -> 182700.5006 | E9: =SUMPRODUCT((Data!$B$2:$B$51=$C9)*(Data!$C$2:$C$51=$B9)*(Data!E$2:E$51)) -> 235986.18 | F9: =SUMPRODUCT((Data!$B$2:$B$51=$C9)*(Data!$C$2:$C$51=$B9)*(Data!F$2:F$51)) -> 224186.871 | G9: =SUMPRODUCT((Data!$B$2:$B$51=$C9)*(Data!$C$2:$C$51=$B9)*(Data!G$2:G$51)) -> 212977.5274 | H9: The West | I9: =INDEX(Data!$B$2:$B$51,MATCH(1,INDEX((Data!$C$2:$C$51=B9)*(Data!$Q$2:$Q$51=A9),0),0)) -> New Mexico | J9: =SUMPRODUCT((Data!$B$2:$B$51=$I9)*(Data!$C$2:$C$51=$H9)*(Data!H$2:H$51)) -> 96446.44086 | K9: =SUMPRODUCT((Data!$B$2:$B$51=$I9)*(Data!$C$2:$C$51=$H9)*(Data!I$2:I$51)) -> 91624.11882 | L9: =SUMPRODUCT((Data!$B$2:$B$51=$I9)*(Data!$C$2:$C$51=$H9)*(Data!J$2:J$51)) -> 87042.91288 | M9: =SUMPRODUCT((Data!$B$2:$B$51=$I9)*(Data!$C$2:$C$51=$H9)*(Data!K$2:K$51)) -> 82690.76723 | N9: The West | O9: =INDEX(Data!$B$2:$B$51,MATCH(1,INDEX((Data!$C$2:$C$51=N9)*(Data!$O$2:$O$51=A9),0),0)) -> Nevada | P9: =SUMPRODUCT((Data!$B$2:$B$51=O9)*(Data!$C$2:$C$51=N9)*(Data!$M$2:$M$51)) -> 24.8 | Q9: The West | R9: =INDEX(Data!$B$2:$B$51,MATCH(1,INDEX((Data!$C$2:$C$51=Q9)*(Data!$R$2:$R$51=A9),0),0)) -> New Mexico | S9: =SUMPRODUCT((Data!$B$2:$B$51=R9)*(Data!$C$2:$C$51=Q9)*(Data!$L$2:$L$51)) -> 0.066
A10: 9 | B10: The West | C10: =INDEX(Data!$B$2:$B$51,MATCH(1,INDEX((Data!$C$2:$C$51=B10)*(Data!$P$2:$P$51=A10),0),0)) -> Hawaii | D10: =SUMPRODUCT((Data!$B$2:$B$51=C10)*(Data!$C$2:$C$51=B10)*(Data!$D$2:$D$51)) -> 157410.8866 | E10: =SUMPRODUCT((Data!$B$2:$B$51=$C10)*(Data!$C$2:$C$51=$B10)*(Data!E$2:E$51)) -> 195347.34 | F10: =SUMPRODUCT((Data!$B$2:$B$51=$C10)*(Data!$C$2:$C$51=$B10)*(Data!F$2:F$51)) -> 213905.3373 | G10: =SUMPRODUCT((Data!$B$2:$B$51=$C10)*(Data!$C$2:$C$51=$B10)*(Data!G$2:G$51)) -> 207488.1772 | H10: The West | I10: =INDEX(Data!$B$2:$B$51,MATCH(1,INDEX((Data!$C$2:$C$51=B10)*(Data!$Q$2:$Q$51=A10),0),0)) -> Hawaii | J10: =SUMPRODUCT((Data!$B$2:$B$51=$I10)*(Data!$C$2:$C$51=$H10)*(Data!H$2:H$51)) -> 62836.31753 | K10: =SUMPRODUCT((Data!$B$2:$B$51=$I10)*(Data!$C$2:$C$51=$H10)*(Data!I$2:I$51)) -> 68805.7677 | L10: =SUMPRODUCT((Data!$B$2:$B$51=$I10)*(Data!$C$2:$C$51=$H10)*(Data!J$2:J$51)) -> 75342.31563 | M10: =SUMPRODUCT((Data!$B$2:$B$51=$I10)*(Data!$C$2:$C$51=$H10)*(Data!K$2:K$51)) -> 73082.04616 | N10: The West | O10: =INDEX(Data!$B$2:$B$51,MATCH(1,INDEX((Data!$C$2:$C$51=N10)*(Data!$O$2:$O$51=A10),0),0)) -> Idaho | P10: =SUMPRODUCT((Data!$B$2:$B$51=O10)*(Data!$C$2:$C$51=N10)*(Data!$M$2:$M$51)) -> 19.5 | Q10: The West | R10: =INDEX(Data!$B$2:$B$51,MATCH(1,INDEX((Data!$C$2:$C$51=Q10)*(Data!$R$2:$R$51=A10),0),0)) -> Alaska | S10: =SUMPRODUCT((Data!$B$2:$B$51=R10)*(Data!$C$2:$C$51=Q10)*(Data!$L$2:$L$51)) -> 0.065
A11: 10 | B11: The West | C11: =INDEX(Data!$B$2:$B$51,MATCH(1,INDEX((Data!$C$2:$C$51=B11)*(Data!$P$2:$P$51=A11),0),0)) -> Utah | D11: =SUMPRODUCT((Data!$B$2:$B$51=C11)*(Data!$C$2:$C$51=B11)*(Data!$D$2:$D$51)) -> 121101.3627 | E11: =SUMPRODUCT((Data!$B$2:$B$51=$C11)*(Data!$C$2:$C$51=$B11)*(Data!E$2:E$51)) -> 156421.29 | F11: =SUMPRODUCT((Data!$B$2:$B$51=$C11)*(Data!$C$2:$C$51=$B11)*(Data!F$2:F$51)) -> 161113.9287 | G11: =SUMPRODUCT((Data!$B$2:$B$51=$C11)*(Data!$C$2:$C$51=$B11)*(Data!G$2:G$51)) -> 165947.3466 | H11: The West | I11: =INDEX(Data!$B$2:$B$51,MATCH(1,INDEX((Data!$C$2:$C$51=B11)*(Data!$Q$2:$Q$51=A11),0),0)) -> Idaho | J11: =SUMPRODUCT((Data!$B$2:$B$51=$I11)*(Data!$C$2:$C$51=$H11)*(Data!H$2:H$51)) -> 74526.79521 | K11: =SUMPRODUCT((Data!$B$2:$B$51=$I11)*(Data!$C$2:$C$51=$H11)*(Data!I$2:I$51)) -> 72290.99135 | L11: =SUMPRODUCT((Data!$B$2:$B$51=$I11)*(Data!$C$2:$C$51=$H11)*(Data!J$2:J$51)) -> 70122.26161 | M11: =SUMPRODUCT((Data!$B$2:$B$51=$I11)*(Data!$C$2:$C$51=$H11)*(Data!K$2:K$51)) -> 66616.14853 | N11: The West | O11: =INDEX(Data!$B$2:$B$51,MATCH(1,INDEX((Data!$C$2:$C$51=N11)*(Data!$O$2:$O$51=A11),0),0)) -> New Mexico | P11: =SUMPRODUCT((Data!$B$2:$B$51=O11)*(Data!$C$2:$C$51=N11)*(Data!$M$2:$M$51)) -> 17.16 | Q11: The West | R11: =INDEX(Data!$B$2:$B$51,MATCH(1,INDEX((Data!$C$2:$C$51=Q11)*(Data!$R$2:$R$51=A11),0),0)) -> Montana | S11: =SUMPRODUCT((Data!$B$2:$B$51=R11)*(Data!$C$2:$C$51=Q11)*(Data!$L$2:$L$51)) -> 0.052
A12: 1 | B12: The South | C12: =INDEX(Data!$B$2:$B$51,MATCH(1,INDEX((Data!$C$2:$C$51=B12)*(Data!$P$2:$P$51=A12),0),0)) -> Texas | D12: =SUMPRODUCT((Data!$B$2:$B$51=C12)*(Data!$C$2:$C$51=B12)*(Data!$D$2:$D$51)) -> 1676519.846 | E12: =SUMPRODUCT((Data!$B$2:$B$51=$C12)*(Data!$C$2:$C$51=$B12)*(Data!E$2:E$51)) -> 2194598.78 | F12: =SUMPRODUCT((Data!$B$2:$B$51=$C12)*(Data!$C$2:$C$51=$B12)*(Data!F$2:F$51)) -> 2084868.841 | G12: =SUMPRODUCT((Data!$B$2:$B$51=$C12)*(Data!$C$2:$C$51=$B12)*(Data!G$2:G$51)) -> 2147414.906 | H12: The South | I12: =INDEX(Data!$B$2:$B$51,MATCH(1,INDEX((Data!$C$2:$C$51=B12)*(Data!$Q$2:$Q$51=A12),0),0)) -> Texas | J12: =SUMPRODUCT((Data!$B$2:$B$51=$I12)*(Data!$C$2:$C$51=$H12)*(Data!H$2:H$51)) -> 1174893.007 | K12: =SUMPRODUCT((Data!$B$2:$B$51=$I12)*(Data!$C$2:$C$51=$H12)*(Data!I$2:I$51)) -> 1116148.356 | L12: =SUMPRODUCT((Data!$B$2:$B$51=$I12)*(Data!$C$2:$C$51=$H12)*(Data!J$2:J$51)) -> 1149632.807 | M12: =SUMPRODUCT((Data!$B$2:$B$51=$I12)*(Data!$C$2:$C$51=$H12)*(Data!K$2:K$51)) -> 1161129.135 | N12: The South | O12: =INDEX(Data!$B$2:$B$51,MATCH(1,INDEX((Data!$C$2:$C$51=N12)*(Data!$O$2:$O$51=A12),0),0)) -> Florida | P12: =SUMPRODUCT((Data!$B$2:$B$51=O12)*(Data!$C$2:$C$51=N12)*(Data!$M$2:$M$51)) -> 360.2 | Q12: The South | R12: =INDEX(Data!$B$2:$B$51,MATCH(1,INDEX((Data!$C$2:$C$51=Q12)*(Data!$R$2:$R$51=A12),0),0)) -> Mississippi | S12: =SUMPRODUCT((Data!$B$2:$B$51=R12)*(Data!$C$2:$C$51=Q12)*(Data!$L$2:$L$51)) -> 0.085
A13: 2 | B13: The South | C13: =INDEX(Data!$B$2:$B$51,MATCH(1,INDEX((Data!$C$2:$C$51=B13)*(Data!$P$2:$P$51=A13),0),0)) -> Florida | D13: =SUMPRODUCT((Data!$B$2:$B$51=C13)*(Data!$C$2:$C$51=B13)*(Data!$D$2:$D$51)) -> 933901.6367 | E13: =SUMPRODUCT((Data!$B$2:$B$51=$C13)*(Data!$C$2:$C$51=$B13)*(Data!E$2:E$51)) -> 1222496.35 | F13: =SUMPRODUCT((Data!$B$2:$B$51=$C13)*(Data!$C$2:$C$51=$B13)*(Data!F$2:F$51)) -> 1161371.532 | G13: =SUMPRODUCT((Data!$B$2:$B$51=$C13)*(Data!$C$2:$C$51=$B13)*(Data!G$2:G$51)) -> 1242667.54 | H13: The South | I13: =INDEX(Data!$B$2:$B$51,MATCH(1,INDEX((Data!$C$2:$C$51=B13)*(Data!$Q$2:$Q$51=A13),0),0)) -> Florida | J13: =SUMPRODUCT((Data!$B$2:$B$51=$I13)*(Data!$C$2:$C$51=$H13)*(Data!H$2:H$51)) -> 878247.1357 | K13: =SUMPRODUCT((Data!$B$2:$B$51=$I13)*(Data!$C$2:$C$51=$H13)*(Data!I$2:I$51)) -> 834334.7789 | L13: =SUMPRODUCT((Data!$B$2:$B$51=$I13)*(Data!$C$2:$C$51=$H13)*(Data!J$2:J$51)) -> 892738.2134 | M13: =SUMPRODUCT((Data!$B$2:$B$51=$I13)*(Data!$C$2:$C$51=$H13)*(Data!K$2:K$51)) -> 901665.5956 | N13: The South | O13: =INDEX(Data!$B$2:$B$51,MATCH(1,INDEX((Data!$C$2:$C$51=N13)*(Data!$O$2:$O$51=A13),0),0)) -> Virginia | P13: =SUMPRODUCT((Data!$B$2:$B$51=O13)*(Data!$C$2:$C$51=N13)*(Data!$M$2:$M$51)) -> 207.3 | Q13: The South | R13: =INDEX(Data!$B$2:$B$51,MATCH(1,INDEX((Data!$C$2:$C$51=Q13)*(Data!$R$2:$R$51=A13),0),0)) -> Tennessee | S13: =SUMPRODUCT((Data!$B$2:$B$51=R13)*(Data!$C$2:$C$51=Q13)*(Data!$L$2:$L$51)) -> 0.084
A14: 3 | B14: The South | C14: =INDEX(Data!$B$2:$B$51,MATCH(1,INDEX((Data!$C$2:$C$51=B14)*(Data!$P$2:$P$51=A14),0),0)) -> Virginia | D14: =SUMPRODUCT((Data!$B$2:$B$51=C14)*(Data!$C$2:$C$51=B14)*(Data!$D$2:$D$51)) -> 502869.9654 | E14: =SUMPRODUCT((Data!$B$2:$B$51=$C14)*(Data!$C$2:$C$51=$B14)*(Data!E$2:E$51)) -> 642974 | F14: =SUMPRODUCT((Data!$B$2:$B$51=$C14)*(Data!$C$2:$C$51=$B14)*(Data!F$2:F$51)) -> 610825.3 | G14: =SUMPRODUCT((Data!$B$2:$B$51=$C14)*(Data!$C$2:$C$51=$B14)*(Data!G$2:G$51)) -> 653583.071 | H14: The South | I14: =INDEX(Data!$B$2:$B$51,MATCH(1,INDEX((Data!$C$2:$C$51=B14)*(Data!$Q$2:$Q$51=A14),0),0)) -> North Carolina | J14: =SUMPRODUCT((Data!$B$2:$B$51=$I14)*(Data!$C$2:$C$51=$H14)*(Data!H$2:H$51)) -> 445699.4616 | K14: =SUMPRODUCT((Data!$B$2:$B$51=$I14)*(Data!$C$2:$C$51=$H14)*(Data!I$2:I$51)) -> 488040.9104 | L14: =SUMPRODUCT((Data!$B$2:$B$51=$I14)*(Data!$C$2:$C$51=$H14)*(Data!J$2:J$51)) -> 463638.8649 | M14: =SUMPRODUCT((Data!$B$2:$B$51=$I14)*(Data!$C$2:$C$51=$H14)*(Data!K$2:K$51)) -> 440456.9216 | N14: The South | O14: =INDEX(Data!$B$2:$B$51,MATCH(1,INDEX((Data!$C$2:$C$51=N14)*(Data!$O$2:$O$51=A14),0),0)) -> North Carolina | P14: =SUMPRODUCT((Data!$B$2:$B$51=O14)*(Data!$C$2:$C$51=N14)*(Data!$M$2:$M$51)) -> 200.6 | Q14: The South | R14: =INDEX(Data!$B$2:$B$51,MATCH(1,INDEX((Data!$C$2:$C$51=Q14)*(Data!$R$2:$R$51=A14),0),0)) -> Kentucky | S14: =SUMPRODUCT((Data!$B$2:$B$51=R14)*(Data!$C$2:$C$51=Q14)*(Data!$L$2:$L$51)) -> 0.084
A15: 4 | B15: The South | C15: =INDEX(Data!$B$2:$B$51,MATCH(1,INDEX((Data!$C$2:$C$51=B15)*(Data!$P$2:$P$51=A15),0),0)) -> North Carolina | D15: =SUMPRODUCT((Data!$B$2:$B$51=C15)*(Data!$C$2:$C$51=B15)*(Data!$D$2:$D$51)) -> 470581.3689 | E15: =SUMPRODUCT((Data!$B$2:$B$51=$C15)*(Data!$C$2:$C$51=$B15)*(Data!E$2:E$51)) -> 616000.64 | F15: =SUMPRODUCT((Data!$B$2:$B$51=$C15)*(Data!$C$2:$C$51=$B15)*(Data!F$2:F$51)) -> 674520.7008 | G15: =SUMPRODUCT((Data!$B$2:$B$51=$C15)*(Data!$C$2:$C$51=$B15)*(Data!G$2:G$51)) -> 640794.6658 | H15: The South | I15: =INDEX(Data!$B$2:$B$51,MATCH(1,INDEX((Data!$C$2:$C$51=B15)*(Data!$Q$2:$Q$51=A15),0),0)) -> Georgia | J15: =SUMPRODUCT((Data!$B$2:$B$51=$I15)*(Data!$C$2:$C$51=$H15)*(Data!H$2:H$51)) -> 453006.0101 | K15: =SUMPRODUCT((Data!$B$2:$B$51=$I15)*(Data!$C$2:$C$51=$H15)*(Data!I$2:I$51)) -> 434885.7697 | L15: =SUMPRODUCT((Data!$B$2:$B$51=$I15)*(Data!$C$2:$C$51=$H15)*(Data!J$2:J$51)) -> 413141.4812 | M15: =SUMPRODUCT((Data!$B$2:$B$51=$I15)*(Data!$C$2:$C$51=$H15)*(Data!K$2:K$51)) -> 400747.2368 | N15: The South | O15: =INDEX(Data!$B$2:$B$51,MATCH(1,INDEX((Data!$C$2:$C$51=N15)*(Data!$O$2:$O$51=A15),0),0)) -> Georgia | P15: =SUMPRODUCT((Data!$B$2:$B$51=O15)*(Data!$C$2:$C$51=N15)*(Data!$M$2:$M$51)) -> 172.5 | Q15: The South | R15: =INDEX(Data!$B$2:$B$51,MATCH(1,INDEX((Data!$C$2:$C$51=Q15)*(Data!$R$2:$R$51=A15),0),0)) -> Georgia | S15: =SUMPRODUCT((Data!$B$2:$B$51=R15)*(Data!$C$2:$C$51=Q15)*(Data!$L$2:$L$51)) -> 0.081
A16: 5 | B16: The South | C16: =INDEX(Data!$B$2:$B$51,MATCH(1,INDEX((Data!$C$2:$C$51=B16)*(Data!$P$2:$P$51=A16),0),0)) -> Georgia | D16: =SUMPRODUCT((Data!$B$2:$B$51=C16)*(Data!$C$2:$C$51=B16)*(Data!$D$2:$D$51)) -> 500361.2243 | E16: =SUMPRODUCT((Data!$B$2:$B$51=$C16)*(Data!$C$2:$C$51=$B16)*(Data!E$2:E$51)) -> 654983.08 | F16: =SUMPRODUCT((Data!$B$2:$B$51=$C16)*(Data!$C$2:$C$51=$B16)*(Data!F$2:F$51)) -> 628783.7568 | G16: =SUMPRODUCT((Data!$B$2:$B$51=$C16)*(Data!$C$2:$C$51=$B16)*(Data!G$2:G$51)) -> 597344.569 | H16: The South | I16: =INDEX(Data!$B$2:$B$51,MATCH(1,INDEX((Data!$C$2:$C$51=B16)*(Data!$Q$2:$Q$51=A16),0),0)) -> Virginia | J16: =SUMPRODUCT((Data!$B$2:$B$51=$I16)*(Data!$C$2:$C$51=$H16)*(Data!H$2:H$51)) -> 374095.2858 | K16: =SUMPRODUCT((Data!$B$2:$B$51=$I16)*(Data!$C$2:$C$51=$H16)*(Data!I$2:I$51)) -> 355390.5215 | L16: =SUMPRODUCT((Data!$B$2:$B$51=$I16)*(Data!$C$2:$C$51=$H16)*(Data!J$2:J$51)) -> 380267.858 | M16: =SUMPRODUCT((Data!$B$2:$B$51=$I16)*(Data!$C$2:$C$51=$H16)*(Data!K$2:K$51)) -> 361254.4651 | N16: The South | O16: =INDEX(Data!$B$2:$B$51,MATCH(1,INDEX((Data!$C$2:$C$51=N16)*(Data!$O$2:$O$51=A16),0),0)) -> South Carolina | P16: =SUMPRODUCT((Data!$B$2:$B$51=O16)*(Data!$C$2:$C$51=N16)*(Data!$M$2:$M$51)) -> 157.1 | Q16: The South | R16: =INDEX(Data!$B$2:$B$51,MATCH(1,INDEX((Data!$C$2:$C$51=Q16)*(Data!$R$2:$R$51=A16),0),0)) -> North Carolina | S16: =SUMPRODUCT((Data!$B$2:$B$51=R16)*(Data!$C$2:$C$51=Q16)*(Data!$L$2:$L$51)) -> 0.08
A17: 6 | B17: The South | C17: =INDEX(Data!$B$2:$B$51,MATCH(1,INDEX((Data!$C$2:$C$51=B17)*(Data!$P$2:$P$51=A17),0),0)) -> Tennessee | D17: =SUMPRODUCT((Data!$B$2:$B$51=C17)*(Data!$C$2:$C$51=B17)*(Data!$D$2:$D$51)) -> 367667.5798 | E17: =SUMPRODUCT((Data!$B$2:$B$51=$C17)*(Data!$C$2:$C$51=$B17)*(Data!E$2:E$51)) -> 470103.03 | F17: =SUMPRODUCT((Data!$B$2:$B$51=$C17)*(Data!$C$2:$C$51=$B17)*(Data!F$2:F$51)) -> 446597.8785 | G17: =SUMPRODUCT((Data!$B$2:$B$51=$C17)*(Data!$C$2:$C$51=$B17)*(Data!G$2:G$51)) -> 459995.8149 | H17: The South | I17: =INDEX(Data!$B$2:$B$51,MATCH(1,INDEX((Data!$C$2:$C$51=B17)*(Data!$Q$2:$Q$51=A17),0),0)) -> Tennessee | J17: =SUMPRODUCT((Data!$B$2:$B$51=$I17)*(Data!$C$2:$C$51=$H17)*(Data!H$2:H$51)) -> 296645.8711 | K17: =SUMPRODUCT((Data!$B$2:$B$51=$I17)*(Data!$C$2:$C$51=$H17)*(Data!I$2:I$51)) -> 281813.5776 | L17: =SUMPRODUCT((Data!$B$2:$B$51=$I17)*(Data!$C$2:$C$51=$H17)*(Data!J$2:J$51)) -> 270541.0345 | M17: =SUMPRODUCT((Data!$B$2:$B$51=$I17)*(Data!$C$2:$C$51=$H17)*(Data!K$2:K$51)) -> 296242.4327 | N17: The South | O17: =INDEX(Data!$B$2:$B$51,MATCH(1,INDEX((Data!$C$2:$C$51=N17)*(Data!$O$2:$O$51=A17),0),0)) -> Tennessee | P17: =SUMPRODUCT((Data!$B$2:$B$51=O17)*(Data!$C$2:$C$51=N17)*(Data!$M$2:$M$51)) -> 156.6 | Q17: The South | R17: =INDEX(Data!$B$2:$B$51,MATCH(1,INDEX((Data!$C$2:$C$51=Q17)*(Data!$R$2:$R$51=A17),0),0)) -> South Carolina | S17: =SUMPRODUCT((Data!$B$2:$B$51=R17)*(Data!$C$2:$C$51=Q17)*(Data!$L$2:$L$51)) -> 0.075
A18: 7 | B18: The South | C18: =INDEX(Data!$B$2:$B$51,MATCH(1,INDEX((Data!$C$2:$C$51=B18)*(Data!$P$2:$P$51=A18),0),0)) -> Louisiana | D18: =SUMPRODUCT((Data!$B$2:$B$51=C18)*(Data!$C$2:$C$51=B18)*(Data!$D$2:$D$51)) -> 272257.3941 | E18: =SUMPRODUCT((Data!$B$2:$B$51=$C18)*(Data!$C$2:$C$51=$B18)*(Data!E$2:E$51)) -> 348110.72 | F18: =SUMPRODUCT((Data!$B$2:$B$51=$C18)*(Data!$C$2:$C$51=$B18)*(Data!F$2:F$51)) -> 330705.184 | G18: =SUMPRODUCT((Data!$B$2:$B$51=$C18)*(Data!$C$2:$C$51=$B18)*(Data!G$2:G$51)) -> 320784.0285 | H18: The South | I18: =INDEX(Data!$B$2:$B$51,MATCH(1,INDEX((Data!$C$2:$C$51=B18)*(Data!$Q$2:$Q$51=A18),0),0)) -> South Carolina | J18: =SUMPRODUCT((Data!$B$2:$B$51=$I18)*(Data!$C$2:$C$51=$H18)*(Data!H$2:H$51)) -> 216273.8371 | K18: =SUMPRODUCT((Data!$B$2:$B$51=$I18)*(Data!$C$2:$C$51=$H18)*(Data!I$2:I$51)) -> 222762.0522 | L18: =SUMPRODUCT((Data!$B$2:$B$51=$I18)*(Data!$C$2:$C$51=$H18)*(Data!J$2:J$51)) -> 229444.9138 | M18: =SUMPRODUCT((Data!$B$2:$B$51=$I18)*(Data!$C$2:$C$51=$H18)*(Data!K$2:K$51)) -> 251242.1806 | N18: The South | O18: =INDEX(Data!$B$2:$B$51,MATCH(1,INDEX((Data!$C$2:$C$51=N18)*(Data!$O$2:$O$51=A18),0),0)) -> Kentucky | P18: =SUMPRODUCT((Data!$B$2:$B$51=O18)*(Data!$C$2:$C$51=N18)*(Data!$M$2:$M$51)) -> 110 | Q18: The South | R18: =INDEX(Data!$B$2:$B$51,MATCH(1,INDEX((Data!$C$2:$C$51=Q18)*(Data!$R$2:$R$51=A18),0),0)) -> Arkansas | S18: =SUMPRODUCT((Data!$B$2:$B$51=R18)*(Data!$C$2:$C$51=Q18)*(Data!$L$2:$L$51)) -> 0.075
A19: 8 | B19: The South | C19: =INDEX(Data!$B$2:$B$51,MATCH(1,INDEX((Data!$C$2:$C$51=B19)*(Data!$P$2:$P$51=A19),0),0)) -> Oklahoma | D19: =SUMPRODUCT((Data!$B$2:$B$51=C19)*(Data!$C$2:$C$51=B19)*(Data!$D$2:$D$51)) -> 209709.5979 | E19: =SUMPRODUCT((Data!$B$2:$B$51=$C19)*(Data!$C$2:$C$51=$B19)*(Data!E$2:E$51)) -> 270872.64 | F19: =SUMPRODUCT((Data!$B$2:$B$51=$C19)*(Data!$C$2:$C$51=$B19)*(Data!F$2:F$51)) -> 262746.4608 | G19: =SUMPRODUCT((Data!$B$2:$B$51=$C19)*(Data!$C$2:$C$51=$B19)*(Data!G$2:G$51)) -> 270628.8546 | H19: The South | I19: =INDEX(Data!$B$2:$B$51,MATCH(1,INDEX((Data!$C$2:$C$51=B19)*(Data!$Q$2:$Q$51=A19),0),0)) -> Alabama | J19: =SUMPRODUCT((Data!$B$2:$B$51=$I19)*(Data!$C$2:$C$51=$H19)*(Data!H$2:H$51)) -> 223580.3856 | K19: =SUMPRODUCT((Data!$B$2:$B$51=$I19)*(Data!$C$2:$C$51=$H19)*(Data!I$2:I$51)) -> 230287.7972 | L19: =SUMPRODUCT((Data!$B$2:$B$51=$I19)*(Data!$C$2:$C$51=$H19)*(Data!J$2:J$51)) -> 218773.4073 | M19: =SUMPRODUCT((Data!$B$2:$B$51=$I19)*(Data!$C$2:$C$51=$H19)*(Data!K$2:K$51)) -> 212210.2051 | N19: The South | O19: =INDEX(Data!$B$2:$B$51,MATCH(1,INDEX((Data!$C$2:$C$51=N19)*(Data!$O$2:$O$51=A19),0),0)) -> Louisiana | P19: =SUMPRODUCT((Data!$B$2:$B$51=O19)*(Data!$C$2:$C$51=N19)*(Data!$M$2:$M$51)) -> 105 | Q19: The South | R19: =INDEX(Data!$B$2:$B$51,MATCH(1,INDEX((Data!$C$2:$C$51=Q19)*(Data!$R$2:$R$51=A19),0),0)) -> Florida | S19: =SUMPRODUCT((Data!$B$2:$B$51=R19)*(Data!$C$2:$C$51=Q19)*(Data!$L$2:$L$51)) -> 0.067
A20: 9 | B20: The South | C20: =INDEX(Data!$B$2:$B$51,MATCH(1,INDEX((Data!$C$2:$C$51=B20)*(Data!$P$2:$P$51=A20),0),0)) -> Arkansas | D20: =SUMPRODUCT((Data!$B$2:$B$51=C20)*(Data!$C$2:$C$51=B20)*(Data!$D$2:$D$51)) -> 195871.2993 | E20: =SUMPRODUCT((Data!$B$2:$B$51=$C20)*(Data!$C$2:$C$51=$B20)*(Data!E$2:E$51)) -> 252998.32 | F20: =SUMPRODUCT((Data!$B$2:$B$51=$C20)*(Data!$C$2:$C$51=$B20)*(Data!F$2:F$51)) -> 260588.2696 | G20: =SUMPRODUCT((Data!$B$2:$B$51=$C20)*(Data!$C$2:$C$51=$B20)*(Data!G$2:G$51)) -> 268405.9177 | H20: The South | I20: =INDEX(Data!$B$2:$B$51,MATCH(1,INDEX((Data!$C$2:$C$51=B20)*(Data!$Q$2:$Q$51=A20),0),0)) -> Louisiana | J20: =SUMPRODUCT((Data!$B$2:$B$51=$I20)*(Data!$C$2:$C$51=$H20)*(Data!H$2:H$51)) -> 211889.9079 | K20: =SUMPRODUCT((Data!$B$2:$B$51=$I20)*(Data!$C$2:$C$51=$H20)*(Data!I$2:I$51)) -> 201295.4126 | L20: =SUMPRODUCT((Data!$B$2:$B$51=$I20)*(Data!$C$2:$C$51=$H20)*(Data!J$2:J$51)) -> 195256.5502 | M20: =SUMPRODUCT((Data!$B$2:$B$51=$I20)*(Data!$C$2:$C$51=$H20)*(Data!K$2:K$51)) -> 185493.7227 | N20: The South | O20: =INDEX(Data!$B$2:$B$51,MATCH(1,INDEX((Data!$C$2:$C$51=N20)*(Data!$O$2:$O$51=A20),0),0)) -> Texas | P20: =SUMPRODUCT((Data!$B$2:$B$51=O20)*(Data!$C$2:$C$51=N20)*(Data!$M$2:$M$51)) -> 98.07 | Q20: The South | R20: =INDEX(Data!$B$2:$B$51,MATCH(1,INDEX((Data!$C$2:$C$51=Q20)*(Data!$R$2:$R$51=A20),0),0)) -> Alabama | S20: =SUMPRODUCT((Data!$B$2:$B$51=R20)*(Data!$C$2:$C$51=Q20)*(Data!$L$2:$L$51)) -> 0.065
A21: 10 | B21: The South | C21: =INDEX(Data!$B$2:$B$51,MATCH(1,INDEX((Data!$C$2:$C$51=B21)*(Data!$P$2:$P$51=A21),0),0)) -> Kentucky | D21: =SUMPRODUCT((Data!$B$2:$B$51=C21)*(Data!$C$2:$C$51=B21)*(Data!$D$2:$D$51)) -> 196196.1435 | E21: =SUMPRODUCT((Data!$B$2:$B$51=$C21)*(Data!$C$2:$C$51=$B21)*(Data!E$2:E$51)) -> 250858.13 | F21: =SUMPRODUCT((Data!$B$2:$B$51=$C21)*(Data!$C$2:$C$51=$B21)*(Data!F$2:F$51)) -> 238315.2235 | G21: =SUMPRODUCT((Data!$B$2:$B$51=$C21)*(Data!$C$2:$C$51=$B21)*(Data!G$2:G$51)) -> 260955.1697 | H21: The South | I21: =INDEX(Data!$B$2:$B$51,MATCH(1,INDEX((Data!$C$2:$C$51=B21)*(Data!$Q$2:$Q$51=A21),0),0)) -> Oklahoma | J21: =SUMPRODUCT((Data!$B$2:$B$51=$I21)*(Data!$C$2:$C$51=$H21)*(Data!H$2:H$51)) -> 175357.1652 | K21: =SUMPRODUCT((Data!$B$2:$B$51=$I21)*(Data!$C$2:$C$51=$H21)*(Data!I$2:I$51)) -> 170096.4502 | L21: =SUMPRODUCT((Data!$B$2:$B$51=$I21)*(Data!$C$2:$C$51=$H21)*(Data!J$2:J$51)) -> 175199.3438 | M21: =SUMPRODUCT((Data!$B$2:$B$51=$I21)*(Data!$C$2:$C$51=$H21)*(Data!K$2:K$51)) -> 169943.3634 | N21: The South | O21: =INDEX(Data!$B$2:$B$51,MATCH(1,INDEX((Data!$C$2:$C$51=N21)*(Data!$O$2:$O$51=A21),0),0)) -> Alabama | P21: =SUMPRODUCT((Data!$B$2:$B$51=O21)*(Data!$C$2:$C$51=N21)*(Data!$M$2:$M$51)) -> 94.65 | Q21: The South | R21: =INDEX(Data!$B$2:$B$51,MATCH(1,INDEX((Data!$C$2:$C$51=Q21)*(Data!$R$2:$R$51=A21),0),0)) -> Louisiana | S21: =SUMPRODUCT((Data!$B$2:$B$51=R21)*(Data!$C$2:$C$51=Q21)*(Data!$L$2:$L$51)) -> 0.065
A22: 1 | B22: The North-East | C22: =INDEX(Data!$B$2:$B$51,MATCH(1,INDEX((Data!$C$2:$C$51=B22)*(Data!$P$2:$P$51=A22),0),0)) -> New York | D22: =SUMPRODUCT((Data!$B$2:$B$51=C22)*(Data!$C$2:$C$51=B22)*(Data!$D$2:$D$51)) -> 1536782.351 | E22: =SUMPRODUCT((Data!$B$2:$B$51=$C22)*(Data!$C$2:$C$51=$B22)*(Data!E$2:E$51)) -> 2011679.54 | F22: =SUMPRODUCT((Data!$B$2:$B$51=$C22)*(Data!$C$2:$C$51=$B22)*(Data!F$2:F$51)) -> 1911095.563 | G22: =SUMPRODUCT((Data!$B$2:$B$51=$C22)*(Data!$C$2:$C$51=$B22)*(Data!G$2:G$51)) -> 2044872.252 | H22: The North-East | I22: =INDEX(Data!$B$2:$B$51,MATCH(1,INDEX((Data!$C$2:$C$51=B22)*(Data!$Q$2:$Q$51=A22),0),0)) -> New York | J22: =SUMPRODUCT((Data!$B$2:$B$51=$I22)*(Data!$C$2:$C$51=$H22)*(Data!H$2:H$51)) -> 904550.7105 | K22: =SUMPRODUCT((Data!$B$2:$B$51=$I22)*(Data!$C$2:$C$51=$H22)*(Data!I$2:I$51)) -> 859323.175 | L22: =SUMPRODUCT((Data!$B$2:$B$51=$I22)*(Data!$C$2:$C$51=$H22)*(Data!J$2:J$51)) -> 919475.7972 | M22: =SUMPRODUCT((Data!$B$2:$B$51=$I22)*(Data!$C$2:$C$51=$H22)*(Data!K$2:K$51)) -> 928670.5552 | N22: The North-East | O22: =INDEX(Data!$B$2:$B$51,MATCH(1,INDEX((Data!$C$2:$C$51=N22)*(Data!$O$2:$O$51=A22),0),0)) -> Massachusetts | P22: =SUMPRODUCT((Data!$B$2:$B$51=O22)*(Data!$C$2:$C$51=N22)*(Data!$M$2:$M$51)) -> 852.1 | Q22: The North-East | R22: =INDEX(Data!$B$2:$B$51,MATCH(1,INDEX((Data!$C$2:$C$51=Q22)*(Data!$R$2:$R$51=A22),0),0)) -> Rhode Island | S22: =SUMPRODUCT((Data!$B$2:$B$51=R22)*(Data!$C$2:$C$51=Q22)*(Data!$L$2:$L$51)) -> 0.092
A23: 2 | B23: The North-East | C23: =INDEX(Data!$B$2:$B$51,MATCH(1,INDEX((Data!$C$2:$C$51=B23)*(Data!$P$2:$P$51=A23),0),0)) -> New Jersey | D23: =SUMPRODUCT((Data!$B$2:$B$51=C23)*(Data!$C$2:$C$51=B23)*(Data!$D$2:$D$51)) -> 871083.3493 | E23: =SUMPRODUCT((Data!$B$2:$B$51=$C23)*(Data!$C$2:$C$51=$B23)*(Data!E$2:E$51)) -> 1113774.9 | F23: =SUMPRODUCT((Data!$B$2:$B$51=$C23)*(Data!$C$2:$C$51=$B23)*(Data!F$2:F$51)) -> 1058086.155 | G23: =SUMPRODUCT((Data!$B$2:$B$51=$C23)*(Data!$C$2:$C$51=$B23)*(Data!G$2:G$51)) -> 1158604.34 | H23: The North-East | I23: =INDEX(Data!$B$2:$B$51,MATCH(1,INDEX((Data!$C$2:$C$51=B23)*(Data!$Q$2:$Q$51=A23),0),0)) -> Pennsylvania | J23: =SUMPRODUCT((Data!$B$2:$B$51=$I23)*(Data!$C$2:$C$51=$H23)*(Data!H$2:H$51)) -> 593291.7423 | K23: =SUMPRODUCT((Data!$B$2:$B$51=$I23)*(Data!$C$2:$C$51=$H23)*(Data!I$2:I$51)) -> 563627.1551 | L23: =SUMPRODUCT((Data!$B$2:$B$51=$I23)*(Data!$C$2:$C$51=$H23)*(Data!J$2:J$51)) -> 603081.056 | M23: =SUMPRODUCT((Data!$B$2:$B$51=$I23)*(Data!$C$2:$C$51=$H23)*(Data!K$2:K$51)) -> 482464.8448 | N23: The North-East | O23: =INDEX(Data!$B$2:$B$51,MATCH(1,INDEX((Data!$C$2:$C$51=N23)*(Data!$O$2:$O$51=A23),0),0)) -> Connecticut | P23: =SUMPRODUCT((Data!$B$2:$B$51=O23)*(Data!$C$2:$C$51=N23)*(Data!$M$2:$M$51)) -> 741.4 | Q23: The North-East | R23: =INDEX(Data!$B$2:$B$51,MATCH(1,INDEX((Data!$C$2:$C$51=Q23)*(Data!$R$2:$R$51=A23),0),0)) -> New Jersey | S23: =SUMPRODUCT((Data!$B$2:$B$51=R23)*(Data!$C$2:$C$51=Q23)*(Data!$L$2:$L$51)) -> 0.084
A24: 3 | B24: The North-East | C24: =INDEX(Data!$B$2:$B$51,MATCH(1,INDEX((Data!$C$2:$C$51=B24)*(Data!$P$2:$P$51=A24),0),0)) -> Pennsylvania | D24: =SUMPRODUCT((Data!$B$2:$B$51=C24)*(Data!$C$2:$C$51=B24)*(Data!$D$2:$D$51)) -> 832389.7015 | E24: =SUMPRODUCT((Data!$B$2:$B$51=$C24)*(Data!$C$2:$C$51=$B24)*(Data!E$2:E$51)) -> 1089615.15 | F24: =SUMPRODUCT((Data!$B$2:$B$51=$C24)*(Data!$C$2:$C$51=$B24)*(Data!F$2:F$51)) -> 1035134.392 | G24: =SUMPRODUCT((Data!$B$2:$B$51=$C24)*(Data!$C$2:$C$51=$B24)*(Data!G$2:G$51)) -> 1107593.8 | H24: The North-East | I24: =INDEX(Data!$B$2:$B$51,MATCH(1,INDEX((Data!$C$2:$C$51=B24)*(Data!$Q$2:$Q$51=A24),0),0)) -> New Jersey | J24: =SUMPRODUCT((Data!$B$2:$B$51=$I24)*(Data!$C$2:$C$51=$H24)*(Data!H$2:H$51)) -> 410628.0285 | K24: =SUMPRODUCT((Data!$B$2:$B$51=$I24)*(Data!$C$2:$C$51=$H24)*(Data!I$2:I$51)) -> 390096.6271 | L24: =SUMPRODUCT((Data!$B$2:$B$51=$I24)*(Data!$C$2:$C$51=$H24)*(Data!J$2:J$51)) -> 427155.8067 | M24: =SUMPRODUCT((Data!$B$2:$B$51=$I24)*(Data!$C$2:$C$51=$H24)*(Data!K$2:K$51)) -> 405798.0163 | N24: The North-East | O24: =INDEX(Data!$B$2:$B$51,MATCH(1,INDEX((Data!$C$2:$C$51=N24)*(Data!$O$2:$O$51=A24),0),0)) -> Maryland | P24: =SUMPRODUCT((Data!$B$2:$B$51=O24)*(Data!$C$2:$C$51=N24)*(Data!$M$2:$M$51)) -> 606.2 | Q24: The North-East | R24: =INDEX(Data!$B$2:$B$51,MATCH(1,INDEX((Data!$C$2:$C$51=Q24)*(Data!$R$2:$R$51=A24),0),0)) -> Connecticut | S24: =SUMPRODUCT((Data!$B$2:$B$51=R24)*(Data!$C$2:$C$51=Q24)*(Data!$L$2:$L$51)) -> 0.079
A25: 4 | B25: The North-East | C25: =INDEX(Data!$B$2:$B$51,MATCH(1,INDEX((Data!$C$2:$C$51=B25)*(Data!$P$2:$P$51=A25),0),0)) -> Massachusetts | D25: =SUMPRODUCT((Data!$B$2:$B$51=C25)*(Data!$C$2:$C$51=B25)*(Data!$D$2:$D$51)) -> 624326.7793 | E25: =SUMPRODUCT((Data!$B$2:$B$51=$C25)*(Data!$C$2:$C$51=$B25)*(Data!E$2:E$51)) -> 798269.76 | F25: =SUMPRODUCT((Data!$B$2:$B$51=$C25)*(Data!$C$2:$C$51=$B25)*(Data!F$2:F$51)) -> 758356.272 | G25: =SUMPRODUCT((Data!$B$2:$B$51=$C25)*(Data!$C$2:$C$51=$B25)*(Data!G$2:G$51)) -> 781106.9602 | H25: The North-East | I25: =INDEX(Data!$B$2:$B$51,MATCH(1,INDEX((Data!$C$2:$C$51=B25)*(Data!$Q$2:$Q$51=A25),0),0)) -> Massachusetts | J25: =SUMPRODUCT((Data!$B$2:$B$51=$I25)*(Data!$C$2:$C$51=$H25)*(Data!H$2:H$51)) -> 305413.7294 | K25: =SUMPRODUCT((Data!$B$2:$B$51=$I25)*(Data!$C$2:$C$51=$H25)*(Data!I$2:I$51)) -> 290143.0429 | L25: =SUMPRODUCT((Data!$B$2:$B$51=$I25)*(Data!$C$2:$C$51=$H25)*(Data!J$2:J$51)) -> 298847.3342 | M25: =SUMPRODUCT((Data!$B$2:$B$51=$I25)*(Data!$C$2:$C$51=$H25)*(Data!K$2:K$51)) -> 283904.9675 | N25: The North-East | O25: =INDEX(Data!$B$2:$B$51,MATCH(1,INDEX((Data!$C$2:$C$51=N25)*(Data!$O$2:$O$51=A25),0),0)) -> Delaware | P25: =SUMPRODUCT((Data!$B$2:$B$51=O25)*(Data!$C$2:$C$51=N25)*(Data!$M$2:$M$51)) -> 470.7 | Q25: The North-East | R25: =INDEX(Data!$B$2:$B$51,MATCH(1,INDEX((Data!$C$2:$C$51=Q25)*(Data!$R$2:$R$51=A25),0),0)) -> New York | S25: =SUMPRODUCT((Data!$B$2:$B$51=R25)*(Data!$C$2:$C$51=Q25)*(Data!$L$2:$L$51)) -> 0.077
A26: 5 | B26: The North-East | C26: =INDEX(Data!$B$2:$B$51,MATCH(1,INDEX((Data!$C$2:$C$51=B26)*(Data!$P$2:$P$51=A26),0),0)) -> Connecticut | D26: =SUMPRODUCT((Data!$B$2:$B$51=C26)*(Data!$C$2:$C$51=B26)*(Data!$D$2:$D$51)) -> 365907.8389 | E26: =SUMPRODUCT((Data!$B$2:$B$51=$C26)*(Data!$C$2:$C$51=$B26)*(Data!E$2:E$51)) -> 472627.02 | F26: =SUMPRODUCT((Data!$B$2:$B$51=$C26)*(Data!$C$2:$C$51=$B26)*(Data!F$2:F$51)) -> 517526.5869 | G26: =SUMPRODUCT((Data!$B$2:$B$51=$C26)*(Data!$C$2:$C$51=$B26)*(Data!G$2:G$51)) -> 533052.3845 | H26: The North-East | I26: =INDEX(Data!$B$2:$B$51,MATCH(1,INDEX((Data!$C$2:$C$51=B26)*(Data!$Q$2:$Q$51=A26),0),0)) -> Maryland | J26: =SUMPRODUCT((Data!$B$2:$B$51=$I26)*(Data!$C$2:$C$51=$H26)*(Data!H$2:H$51)) -> 270342.2964 | K26: =SUMPRODUCT((Data!$B$2:$B$51=$I26)*(Data!$C$2:$C$51=$H26)*(Data!I$2:I$51)) -> 262232.0275 | L26: =SUMPRODUCT((Data!$B$2:$B$51=$I26)*(Data!$C$2:$C$51=$H26)*(Data!J$2:J$51)) -> 287144.0701 | M26: =SUMPRODUCT((Data!$B$2:$B$51=$I26)*(Data!$C$2:$C$51=$H26)*(Data!K$2:K$51)) -> 278529.748 | N26: The North-East | O26: =INDEX(Data!$B$2:$B$51,MATCH(1,INDEX((Data!$C$2:$C$51=N26)*(Data!$O$2:$O$51=A26),0),0)) -> New York | P26: =SUMPRODUCT((Data!$B$2:$B$51=O26)*(Data!$C$2:$C$51=N26)*(Data!$M$2:$M$51)) -> 415.3 | Q26: The North-East | R26: =INDEX(Data!$B$2:$B$51,MATCH(1,INDEX((Data!$C$2:$C$51=Q26)*(Data!$R$2:$R$51=A26),0),0)) -> Pennsylvania | S26: =SUMPRODUCT((Data!$B$2:$B$51=R26)*(Data!$C$2:$C$51=Q26)*(Data!$L$2:$L$51)) -> 0.075
A27: 6 | B27: The North-East | C27: =INDEX(Data!$B$2:$B$51,MATCH(1,INDEX((Data!$C$2:$C$51=B27)*(Data!$P$2:$P$51=A27),0),0)) -> Maryland | D27: =SUMPRODUCT((Data!$B$2:$B$51=C27)*(Data!$C$2:$C$51=B27)*(Data!$D$2:$D$51)) -> 376244.8626 | E27: =SUMPRODUCT((Data!$B$2:$B$51=$C27)*(Data!$C$2:$C$51=$B27)*(Data!E$2:E$51)) -> 481070.02 | F27: =SUMPRODUCT((Data!$B$2:$B$51=$C27)*(Data!$C$2:$C$51=$B27)*(Data!F$2:F$51)) -> 466637.9194 | G27: =SUMPRODUCT((Data!$B$2:$B$51=$C27)*(Data!$C$2:$C$51=$B27)*(Data!G$2:G$51)) -> 510968.5217 | H27: The North-East | I27: =INDEX(Data!$B$2:$B$51,MATCH(1,INDEX((Data!$C$2:$C$51=B27)*(Data!$Q$2:$Q$51=A27),0),0)) -> Connecticut | J27: =SUMPRODUCT((Data!$B$2:$B$51=$I27)*(Data!$C$2:$C$51=$H27)*(Data!H$2:H$51)) -> 166589.3069 | K27: =SUMPRODUCT((Data!$B$2:$B$51=$I27)*(Data!$C$2:$C$51=$H27)*(Data!I$2:I$51)) -> 182415.2911 | L27: =SUMPRODUCT((Data!$B$2:$B$51=$I27)*(Data!$C$2:$C$51=$H27)*(Data!J$2:J$51)) -> 187887.7498 | M27: =SUMPRODUCT((Data!$B$2:$B$51=$I27)*(Data!$C$2:$C$51=$H27)*(Data!K$2:K$51)) -> 178493.3623 | N27: The North-East | O27: =INDEX(Data!$B$2:$B$51,MATCH(1,INDEX((Data!$C$2:$C$51=N27)*(Data!$O$2:$O$51=A27),0),0)) -> Pennsylvania | P27: =SUMPRODUCT((Data!$B$2:$B$51=O27)*(Data!$C$2:$C$51=N27)*(Data!$M$2:$M$51)) -> 285.3 | Q27: The North-East | R27: =INDEX(Data!$B$2:$B$51,MATCH(1,INDEX((Data!$C$2:$C$51=Q27)*(Data!$R$2:$R$51=A27),0),0)) -> Massachusetts | S27: =SUMPRODUCT((Data!$B$2:$B$51=R27)*(Data!$C$2:$C$51=Q27)*(Data!$L$2:$L$51)) -> 0.072
A28: 7 | B28: The North-East | C28: =INDEX(Data!$B$2:$B$51,MATCH(1,INDEX((Data!$C$2:$C$51=B28)*(Data!$P$2:$P$51=A28),0),0)) -> Delaware | D28: =SUMPRODUCT((Data!$B$2:$B$51=C28)*(Data!$C$2:$C$51=B28)*(Data!$D$2:$D$51)) -> 175949.7499 | E28: =SUMPRODUCT((Data!$B$2:$B$51=$C28)*(Data!$C$2:$C$51=$B28)*(Data!E$2:E$51)) -> 218354.12 | F28: =SUMPRODUCT((Data!$B$2:$B$51=$C28)*(Data!$C$2:$C$51=$B28)*(Data!F$2:F$51)) -> 207436.414 | G28: =SUMPRODUCT((Data!$B$2:$B$51=$C28)*(Data!$C$2:$C$51=$B28)*(Data!G$2:G$51)) -> 201213.3216 | H28: The North-East | I28: =INDEX(Data!$B$2:$B$51,MATCH(1,INDEX((Data!$C$2:$C$51=B28)*(Data!$Q$2:$Q$51=A28),0),0)) -> New Hampshire | J28: =SUMPRODUCT((Data!$B$2:$B$51=$I28)*(Data!$C$2:$C$51=$H28)*(Data!H$2:H$51)) -> 61375.00782 | K28: =SUMPRODUCT((Data!$B$2:$B$51=$I28)*(Data!$C$2:$C$51=$H28)*(Data!I$2:I$51)) -> 63216.25805 | L28: =SUMPRODUCT((Data!$B$2:$B$51=$I28)*(Data!$C$2:$C$51=$H28)*(Data!J$2:J$51)) -> 65112.7458 | M28: =SUMPRODUCT((Data!$B$2:$B$51=$I28)*(Data!$C$2:$C$51=$H28)*(Data!K$2:K$51)) -> 67066.12817 | N28: The North-East | O28: =INDEX(Data!$B$2:$B$51,MATCH(1,INDEX((Data!$C$2:$C$51=N28)*(Data!$O$2:$O$51=A28),0),0)) -> New Jersey | P28: =SUMPRODUCT((Data!$B$2:$B$51=O28)*(Data!$C$2:$C$51=N28)*(Data!$M$2:$M$51)) -> 204 | Q28: The North-East | R28: =INDEX(Data!$B$2:$B$51,MATCH(1,INDEX((Data!$C$2:$C$51=Q28)*(Data!$R$2:$R$51=A28),0),0)) -> Delaware | S28: =SUMPRODUCT((Data!$B$2:$B$51=R28)*(Data!$C$2:$C$51=Q28)*(Data!$L$2:$L$51)) -> 0.068
A29: 8 | B29: The North-East | C29: =INDEX(Data!$B$2:$B$51,MATCH(1,INDEX((Data!$C$2:$C$51=B29)*(Data!$P$2:$P$51=A29),0),0)) -> Rhode Island | D29: =SUMPRODUCT((Data!$B$2:$B$51=C29)*(Data!$C$2:$C$51=B29)*(Data!$D$2:$D$51)) -> 88576.2596 | E29: =SUMPRODUCT((Data!$B$2:$B$51=$C29)*(Data!$C$2:$C$51=$B29)*(Data!E$2:E$51)) -> 109923.38 | F29: =SUMPRODUCT((Data!$B$2:$B$51=$C29)*(Data!$C$2:$C$51=$B29)*(Data!F$2:F$51)) -> 113221.0814 | G29: =SUMPRODUCT((Data!$B$2:$B$51=$C29)*(Data!$C$2:$C$51=$B29)*(Data!G$2:G$51)) -> 116617.7138 | H29: The North-East | I29: =INDEX(Data!$B$2:$B$51,MATCH(1,INDEX((Data!$C$2:$C$51=B29)*(Data!$Q$2:$Q$51=A29),0),0)) -> Maine | J29: =SUMPRODUCT((Data!$B$2:$B$51=$I29)*(Data!$C$2:$C$51=$H29)*(Data!H$2:H$51)) -> 61375.00782 | K29: =SUMPRODUCT((Data!$B$2:$B$51=$I29)*(Data!$C$2:$C$51=$H29)*(Data!I$2:I$51)) -> 63216.25805 | L29: =SUMPRODUCT((Data!$B$2:$B$51=$I29)*(Data!$C$2:$C$51=$H29)*(Data!J$2:J$51)) -> 60055.44515 | M29: =SUMPRODUCT((Data!$B$2:$B$51=$I29)*(Data!$C$2:$C$51=$H29)*(Data!K$2:K$51)) -> 65760.71244 | N29: The North-East | O29: =INDEX(Data!$B$2:$B$51,MATCH(1,INDEX((Data!$C$2:$C$51=N29)*(Data!$O$2:$O$51=A29),0),0)) -> New Hampshire | P29: =SUMPRODUCT((Data!$B$2:$B$51=O29)*(Data!$C$2:$C$51=N29)*(Data!$M$2:$M$51)) -> 147 | Q29: The North-East | R29: =INDEX(Data!$B$2:$B$51,MATCH(1,INDEX((Data!$C$2:$C$51=Q29)*(Data!$R$2:$R$51=A29),0),0)) -> Maryland | S29: =SUMPRODUCT((Data!$B$2:$B$51=R29)*(Data!$C$2:$C$51=Q29)*(Data!$L$2:$L$51)) -> 0.067
A30: 9 | B30: The North-East | C30: =INDEX(Data!$B$2:$B$51,MATCH(1,INDEX((Data!$C$2:$C$51=B30)*(Data!$P$2:$P$51=A30),0),0)) -> New Hampshire | D30: =SUMPRODUCT((Data!$B$2:$B$51=C30)*(Data!$C$2:$C$51=B30)*(Data!$D$2:$D$51)) -> 70972.37408 | E30: =SUMPRODUCT((Data!$B$2:$B$51=$C30)*(Data!$C$2:$C$51=$B30)*(Data!E$2:E$51)) -> 88076.91 | F30: =SUMPRODUCT((Data!$B$2:$B$51=$C30)*(Data!$C$2:$C$51=$B30)*(Data!F$2:F$51)) -> 90719.2173 | G30: =SUMPRODUCT((Data!$B$2:$B$51=$C30)*(Data!$C$2:$C$51=$B30)*(Data!G$2:G$51)) -> 93440.79382 | H30: The North-East | I30: =INDEX(Data!$B$2:$B$51,MATCH(1,INDEX((Data!$C$2:$C$51=B30)*(Data!$Q$2:$Q$51=A30),0),0)) -> Rhode Island | J30: =SUMPRODUCT((Data!$B$2:$B$51=$I30)*(Data!$C$2:$C$51=$H30)*(Data!H$2:H$51)) -> 49684.53014 | K30: =SUMPRODUCT((Data!$B$2:$B$51=$I30)*(Data!$C$2:$C$51=$H30)*(Data!I$2:I$51)) -> 51175.06604 | L30: =SUMPRODUCT((Data!$B$2:$B$51=$I30)*(Data!$C$2:$C$51=$H30)*(Data!J$2:J$51)) -> 52710.31803 | M30: =SUMPRODUCT((Data!$B$2:$B$51=$I30)*(Data!$C$2:$C$51=$H30)*(Data!K$2:K$51)) -> 50074.80212 | N30: The North-East | O30: =INDEX(Data!$B$2:$B$51,MATCH(1,INDEX((Data!$C$2:$C$51=N30)*(Data!$O$2:$O$51=A30),0),0)) -> Rhode Island | P30: =SUMPRODUCT((Data!$B$2:$B$51=O30)*(Data!$C$2:$C$51=N30)*(Data!$M$2:$M$51)) -> 100.6 | Q30: The North-East | R30: =INDEX(Data!$B$2:$B$51,MATCH(1,INDEX((Data!$C$2:$C$51=Q30)*(Data!$R$2:$R$51=A30),0),0)) -> Maine | S30: =SUMPRODUCT((Data!$B$2:$B$51=R30)*(Data!$C$2:$C$51=Q30)*(Data!$L$2:$L$51)) -> 0.067
A31: 10 | B31: The North-East | C31: =INDEX(Data!$B$2:$B$51,MATCH(1,INDEX((Data!$C$2:$C$51=B31)*(Data!$P$2:$P$51=A31),0),0)) -> Maine | D31: =SUMPRODUCT((Data!$B$2:$B$51=C31)*(Data!$C$2:$C$51=B31)*(Data!$D$2:$D$51)) -> 50194.80496 | E31: =SUMPRODUCT((Data!$B$2:$B$51=$C31)*(Data!$C$2:$C$51=$B31)*(Data!E$2:E$51)) -> 62291.89 | F31: =SUMPRODUCT((Data!$B$2:$B$51=$C31)*(Data!$C$2:$C$51=$B31)*(Data!F$2:F$51)) -> 64160.6467 | G31: =SUMPRODUCT((Data!$B$2:$B$51=$C31)*(Data!$C$2:$C$51=$B31)*(Data!G$2:G$51)) -> 70255.90814 | H31: The North-East | I31: =INDEX(Data!$B$2:$B$51,MATCH(1,INDEX((Data!$C$2:$C$51=B31)*(Data!$Q$2:$Q$51=A31),0),0)) -> Delaware | J31: =SUMPRODUCT((Data!$B$2:$B$51=$I31)*(Data!$C$2:$C$51=$H31)*(Data!H$2:H$51)) -> 42377.98159 | K31: =SUMPRODUCT((Data!$B$2:$B$51=$I31)*(Data!$C$2:$C$51=$H31)*(Data!I$2:I$51)) -> 40259.08251 | L31: =SUMPRODUCT((Data!$B$2:$B$51=$I31)*(Data!$C$2:$C$51=$H31)*(Data!J$2:J$51)) -> 39051.31004 | M31: =SUMPRODUCT((Data!$B$2:$B$51=$I31)*(Data!$C$2:$C$51=$H31)*(Data!K$2:K$51)) -> 37098.74453 | N31: The North-East | O31: =INDEX(Data!$B$2:$B$51,MATCH(1,INDEX((Data!$C$2:$C$51=N31)*(Data!$O$2:$O$51=A31),0),0)) -> Vermont | P31: =SUMPRODUCT((Data!$B$2:$B$51=O31)*(Data!$C$2:$C$51=N31)*(Data!$M$2:$M$51)) -> 67.73 | Q31: The North-East | R31: =INDEX(Data!$B$2:$B$51,MATCH(1,INDEX((Data!$C$2:$C$51=Q31)*(Data!$R$2:$R$51=A31),0),0)) -> New Hampshire | S31: =SUMPRODUCT((Data!$B$2:$B$51=R31)*(Data!$C$2:$C$51=Q31)*(Data!$L$2:$L$51)) -> 0.051
A32: 1 | B32: The Mid-West | C32: =INDEX(Data!$B$2:$B$51,MATCH(1,INDEX((Data!$C$2:$C$51=B32)*(Data!$P$2:$P$51=A32),0),0)) -> Illinois | D32: =SUMPRODUCT((Data!$B$2:$B$51=C32)*(Data!$C$2:$C$51=B32)*(Data!$D$2:$D$51)) -> 950567.4724 | E32: =SUMPRODUCT((Data!$B$2:$B$51=$C32)*(Data!$C$2:$C$51=$B32)*(Data!E$2:E$51)) -> 1244312.27 | F32: =SUMPRODUCT((Data!$B$2:$B$51=$C32)*(Data!$C$2:$C$51=$B32)*(Data!F$2:F$51)) -> 1182096.657 | G32: =SUMPRODUCT((Data!$B$2:$B$51=$C32)*(Data!$C$2:$C$51=$B32)*(Data!G$2:G$51)) -> 1264843.422 | H32: The Mid-West | I32: =INDEX(Data!$B$2:$B$51,MATCH(1,INDEX((Data!$C$2:$C$51=B32)*(Data!$Q$2:$Q$51=A32),0),0)) -> Illinois | J32: =SUMPRODUCT((Data!$B$2:$B$51=$I32)*(Data!$C$2:$C$51=$H32)*(Data!H$2:H$51)) -> 599136.9811 | K32: =SUMPRODUCT((Data!$B$2:$B$51=$I32)*(Data!$C$2:$C$51=$H32)*(Data!I$2:I$51)) -> 569180.132 | L32: =SUMPRODUCT((Data!$B$2:$B$51=$I32)*(Data!$C$2:$C$51=$H32)*(Data!J$2:J$51)) -> 609022.7413 | M32: =SUMPRODUCT((Data!$B$2:$B$51=$I32)*(Data!$C$2:$C$51=$H32)*(Data!K$2:K$51)) -> 666879.9017 | N32: The Mid-West | O32: =INDEX(Data!$B$2:$B$51,MATCH(1,INDEX((Data!$C$2:$C$51=N32)*(Data!$O$2:$O$51=A32),0),0)) -> Ohio | P32: =SUMPRODUCT((Data!$B$2:$B$51=O32)*(Data!$C$2:$C$51=N32)*(Data!$M$2:$M$51)) -> 282.5 | Q32: The Mid-West | R32: =INDEX(Data!$B$2:$B$51,MATCH(1,INDEX((Data!$C$2:$C$51=Q32)*(Data!$R$2:$R$51=A32),0),0)) -> Michigan | S32: =SUMPRODUCT((Data!$B$2:$B$51=R32)*(Data!$C$2:$C$51=Q32)*(Data!$L$2:$L$51)) -> 0.09
A33: 2 | B33: The Mid-West | C33: =INDEX(Data!$B$2:$B$51,MATCH(1,INDEX((Data!$C$2:$C$51=B33)*(Data!$P$2:$P$51=A33),0),0)) -> Ohio | D33: =SUMPRODUCT((Data!$B$2:$B$51=C33)*(Data!$C$2:$C$51=B33)*(Data!$D$2:$D$51)) -> 848682.5026 | E33: =SUMPRODUCT((Data!$B$2:$B$51=$C33)*(Data!$C$2:$C$51=$B33)*(Data!E$2:E$51)) -> 1110942.76 | F33: =SUMPRODUCT((Data!$B$2:$B$51=$C33)*(Data!$C$2:$C$51=$B33)*(Data!F$2:F$51)) -> 1055395.622 | G33: =SUMPRODUCT((Data!$B$2:$B$51=$C33)*(Data!$C$2:$C$51=$B33)*(Data!G$2:G$51)) -> 1002625.841 | H33: The Mid-West | I33: =INDEX(Data!$B$2:$B$51,MATCH(1,INDEX((Data!$C$2:$C$51=B33)*(Data!$Q$2:$Q$51=A33),0),0)) -> Michigan | J33: =SUMPRODUCT((Data!$B$2:$B$51=$I33)*(Data!$C$2:$C$51=$H33)*(Data!H$2:H$51)) -> 461773.8684 | K33: =SUMPRODUCT((Data!$B$2:$B$51=$I33)*(Data!$C$2:$C$51=$H33)*(Data!I$2:I$51)) -> 447920.6523 | L33: =SUMPRODUCT((Data!$B$2:$B$51=$I33)*(Data!$C$2:$C$51=$H33)*(Data!J$2:J$51)) -> 430003.8262 | M33: =SUMPRODUCT((Data!$B$2:$B$51=$I33)*(Data!$C$2:$C$51=$H33)*(Data!K$2:K$51)) -> 470854.1897 | N33: The Mid-West | O33: =INDEX(Data!$B$2:$B$51,MATCH(1,INDEX((Data!$C$2:$C$51=N33)*(Data!$O$2:$O$51=A33),0),0)) -> Illinois | P33: =SUMPRODUCT((Data!$B$2:$B$51=O33)*(Data!$C$2:$C$51=N33)*(Data!$M$2:$M$51)) -> 231.9 | Q33: The Mid-West | R33: =INDEX(Data!$B$2:$B$51,MATCH(1,INDEX((Data!$C$2:$C$51=Q33)*(Data!$R$2:$R$51=A33),0),0)) -> Illinois | S33: =SUMPRODUCT((Data!$B$2:$B$51=R33)*(Data!$C$2:$C$51=Q33)*(Data!$L$2:$L$51)) -> 0.089
A34: 3 | B34: The Mid-West | C34: =INDEX(Data!$B$2:$B$51,MATCH(1,INDEX((Data!$C$2:$C$51=B34)*(Data!$P$2:$P$51=A34),0),0)) -> Minnesota | D34: =SUMPRODUCT((Data!$B$2:$B$51=C34)*(Data!$C$2:$C$51=B34)*(Data!$D$2:$D$51)) -> 615398.529 | E34: =SUMPRODUCT((Data!$B$2:$B$51=$C34)*(Data!$C$2:$C$51=$B34)*(Data!E$2:E$51)) -> 786854.02 | F34: =SUMPRODUCT((Data!$B$2:$B$51=$C34)*(Data!$C$2:$C$51=$B34)*(Data!F$2:F$51)) -> 810459.6406 | G34: =SUMPRODUCT((Data!$B$2:$B$51=$C34)*(Data!$C$2:$C$51=$B34)*(Data!G$2:G$51)) -> 769936.6586 | H34: The Mid-West | I34: =INDEX(Data!$B$2:$B$51,MATCH(1,INDEX((Data!$C$2:$C$51=B34)*(Data!$Q$2:$Q$51=A34),0),0)) -> Ohio | J34: =SUMPRODUCT((Data!$B$2:$B$51=$I34)*(Data!$C$2:$C$51=$H34)*(Data!H$2:H$51)) -> 539223.283 | K34: =SUMPRODUCT((Data!$B$2:$B$51=$I34)*(Data!$C$2:$C$51=$H34)*(Data!I$2:I$51)) -> 512262.1188 | L34: =SUMPRODUCT((Data!$B$2:$B$51=$I34)*(Data!$C$2:$C$51=$H34)*(Data!J$2:J$51)) -> 486649.0129 | M34: =SUMPRODUCT((Data!$B$2:$B$51=$I34)*(Data!$C$2:$C$51=$H34)*(Data!K$2:K$51)) -> 467183.0524 | N34: The Mid-West | O34: =INDEX(Data!$B$2:$B$51,MATCH(1,INDEX((Data!$C$2:$C$51=N34)*(Data!$O$2:$O$51=A34),0),0)) -> Indiana | P34: =SUMPRODUCT((Data!$B$2:$B$51=O34)*(Data!$C$2:$C$51=N34)*(Data!$M$2:$M$51)) -> 182.5 | Q34: The Mid-West | R34: =INDEX(Data!$B$2:$B$51,MATCH(1,INDEX((Data!$C$2:$C$51=Q34)*(Data!$R$2:$R$51=A34),0),0)) -> Ohio | S34: =SUMPRODUCT((Data!$B$2:$B$51=R34)*(Data!$C$2:$C$51=Q34)*(Data!$L$2:$L$51)) -> 0.075
A35: 4 | B35: The Mid-West | C35: =INDEX(Data!$B$2:$B$51,MATCH(1,INDEX((Data!$C$2:$C$51=B35)*(Data!$P$2:$P$51=A35),0),0)) -> Michigan | D35: =SUMPRODUCT((Data!$B$2:$B$51=C35)*(Data!$C$2:$C$51=B35)*(Data!$D$2:$D$51)) -> 452324.16 | E35: =SUMPRODUCT((Data!$B$2:$B$51=$C35)*(Data!$C$2:$C$51=$B35)*(Data!E$2:E$51)) -> 592101.58 | F35: =SUMPRODUCT((Data!$B$2:$B$51=$C35)*(Data!$C$2:$C$51=$B35)*(Data!F$2:F$51)) -> 574338.5326 | G35: =SUMPRODUCT((Data!$B$2:$B$51=$C35)*(Data!$C$2:$C$51=$B35)*(Data!G$2:G$51)) -> 551364.9913 | H35: The Mid-West | I35: =INDEX(Data!$B$2:$B$51,MATCH(1,INDEX((Data!$C$2:$C$51=B35)*(Data!$Q$2:$Q$51=A35),0),0)) -> Wisconsin | J35: =SUMPRODUCT((Data!$B$2:$B$51=$I35)*(Data!$C$2:$C$51=$H35)*(Data!H$2:H$51)) -> 265958.3672 | K35: =SUMPRODUCT((Data!$B$2:$B$51=$I35)*(Data!$C$2:$C$51=$H35)*(Data!I$2:I$51)) -> 291224.4121 | L35: =SUMPRODUCT((Data!$B$2:$B$51=$I35)*(Data!$C$2:$C$51=$H35)*(Data!J$2:J$51)) -> 276663.1915 | M35: =SUMPRODUCT((Data!$B$2:$B$51=$I35)*(Data!$C$2:$C$51=$H35)*(Data!K$2:K$51)) -> 302946.1947 | N35: The Mid-West | O35: =INDEX(Data!$B$2:$B$51,MATCH(1,INDEX((Data!$C$2:$C$51=N35)*(Data!$O$2:$O$51=A35),0),0)) -> Michigan | P35: =SUMPRODUCT((Data!$B$2:$B$51=O35)*(Data!$C$2:$C$51=N35)*(Data!$M$2:$M$51)) -> 174.8 | Q35: The Mid-West | R35: =INDEX(Data!$B$2:$B$51,MATCH(1,INDEX((Data!$C$2:$C$51=Q35)*(Data!$R$2:$R$51=A35),0),0)) -> Indiana | S35: =SUMPRODUCT((Data!$B$2:$B$51=R35)*(Data!$C$2:$C$51=Q35)*(Data!$L$2:$L$51)) -> 0.075
A36: 5 | B36: The Mid-West | C36: =INDEX(Data!$B$2:$B$51,MATCH(1,INDEX((Data!$C$2:$C$51=B36)*(Data!$P$2:$P$51=A36),0),0)) -> Wisconsin | D36: =SUMPRODUCT((Data!$B$2:$B$51=C36)*(Data!$C$2:$C$51=B36)*(Data!$D$2:$D$51)) -> 324556.1161 | E36: =SUMPRODUCT((Data!$B$2:$B$51=$C36)*(Data!$C$2:$C$51=$B36)*(Data!E$2:E$51)) -> 414980.33 | F36: =SUMPRODUCT((Data!$B$2:$B$51=$C36)*(Data!$C$2:$C$51=$B36)*(Data!F$2:F$51)) -> 454403.4613 | G36: =SUMPRODUCT((Data!$B$2:$B$51=$C36)*(Data!$C$2:$C$51=$B36)*(Data!G$2:G$51)) -> 468035.5652 | H36: The Mid-West | I36: =INDEX(Data!$B$2:$B$51,MATCH(1,INDEX((Data!$C$2:$C$51=B36)*(Data!$Q$2:$Q$51=A36),0),0)) -> Indiana | J36: =SUMPRODUCT((Data!$B$2:$B$51=$I36)*(Data!$C$2:$C$51=$H36)*(Data!H$2:H$51)) -> 302491.11 | K36: =SUMPRODUCT((Data!$B$2:$B$51=$I36)*(Data!$C$2:$C$51=$H36)*(Data!I$2:I$51)) -> 287366.5545 | L36: =SUMPRODUCT((Data!$B$2:$B$51=$I36)*(Data!$C$2:$C$51=$H36)*(Data!J$2:J$51)) -> 272998.2267 | M36: =SUMPRODUCT((Data!$B$2:$B$51=$I36)*(Data!$C$2:$C$51=$H36)*(Data!K$2:K$51)) -> 264808.2799 | N36: The Mid-West | O36: =INDEX(Data!$B$2:$B$51,MATCH(1,INDEX((Data!$C$2:$C$51=N36)*(Data!$O$2:$O$51=A36),0),0)) -> Wisconsin | P36: =SUMPRODUCT((Data!$B$2:$B$51=O36)*(Data!$C$2:$C$51=N36)*(Data!$M$2:$M$51)) -> 105.2 | Q36: The Mid-West | R36: =INDEX(Data!$B$2:$B$51,MATCH(1,INDEX((Data!$C$2:$C$51=Q36)*(Data!$R$2:$R$51=A36),0),0)) -> Missouri | S36: =SUMPRODUCT((Data!$B$2:$B$51=R36)*(Data!$C$2:$C$51=Q36)*(Data!$L$2:$L$51)) -> 0.065
A37: 6 | B37: The Mid-West | C37: =INDEX(Data!$B$2:$B$51,MATCH(1,INDEX((Data!$C$2:$C$51=B37)*(Data!$P$2:$P$51=A37),0),0)) -> Indiana | D37: =SUMPRODUCT((Data!$B$2:$B$51=C37)*(Data!$C$2:$C$51=B37)*(Data!$D$2:$D$51)) -> 400736.4024 | E37: =SUMPRODUCT((Data!$B$2:$B$51=$C37)*(Data!$C$2:$C$51=$B37)*(Data!E$2:E$51)) -> 512385.12 | F37: =SUMPRODUCT((Data!$B$2:$B$51=$C37)*(Data!$C$2:$C$51=$B37)*(Data!F$2:F$51)) -> 486765.864 | G37: =SUMPRODUCT((Data!$B$2:$B$51=$C37)*(Data!$C$2:$C$51=$B37)*(Data!G$2:G$51)) -> 462427.5708 | H37: The Mid-West | I37: =INDEX(Data!$B$2:$B$51,MATCH(1,INDEX((Data!$C$2:$C$51=B37)*(Data!$Q$2:$Q$51=A37),0),0)) -> Missouri | J37: =SUMPRODUCT((Data!$B$2:$B$51=$I37)*(Data!$C$2:$C$51=$H37)*(Data!H$2:H$51)) -> 279110.1546 | K37: =SUMPRODUCT((Data!$B$2:$B$51=$I37)*(Data!$C$2:$C$51=$H37)*(Data!I$2:I$51)) -> 267945.7484 | L37: =SUMPRODUCT((Data!$B$2:$B$51=$I37)*(Data!$C$2:$C$51=$H37)*(Data!J$2:J$51)) -> 259907.376 | M37: =SUMPRODUCT((Data!$B$2:$B$51=$I37)*(Data!$C$2:$C$51=$H37)*(Data!K$2:K$51)) -> 246912.0072 | N37: The Mid-West | O37: =INDEX(Data!$B$2:$B$51,MATCH(1,INDEX((Data!$C$2:$C$51=N37)*(Data!$O$2:$O$51=A37),0),0)) -> Missouri | P37: =SUMPRODUCT((Data!$B$2:$B$51=O37)*(Data!$C$2:$C$51=N37)*(Data!$M$2:$M$51)) -> 87.26 | Q37: The Mid-West | R37: =INDEX(Data!$B$2:$B$51,MATCH(1,INDEX((Data!$C$2:$C$51=Q37)*(Data!$R$2:$R$51=A37),0),0)) -> Wisconsin | S37: =SUMPRODUCT((Data!$B$2:$B$51=R37)*(Data!$C$2:$C$51=Q37)*(Data!$L$2:$L$51)) -> 0.065
A38: 7 | B38: The Mid-West | C38: =INDEX(Data!$B$2:$B$51,MATCH(1,INDEX((Data!$C$2:$C$51=B38)*(Data!$P$2:$P$51=A38),0),0)) -> Missouri | D38: =SUMPRODUCT((Data!$B$2:$B$51=C38)*(Data!$C$2:$C$51=B38)*(Data!$D$2:$D$51)) -> 378640.0048 | E38: =SUMPRODUCT((Data!$B$2:$B$51=$C38)*(Data!$C$2:$C$51=$B38)*(Data!E$2:E$51)) -> 484132.47 | F38: =SUMPRODUCT((Data!$B$2:$B$51=$C38)*(Data!$C$2:$C$51=$B38)*(Data!F$2:F$51)) -> 464767.1712 | G38: =SUMPRODUCT((Data!$B$2:$B$51=$C38)*(Data!$C$2:$C$51=$B38)*(Data!G$2:G$51)) -> 450824.1561 | H38: The Mid-West | I38: =INDEX(Data!$B$2:$B$51,MATCH(1,INDEX((Data!$C$2:$C$51=B38)*(Data!$Q$2:$Q$51=A38),0),0)) -> Minnesota | J38: =SUMPRODUCT((Data!$B$2:$B$51=$I38)*(Data!$C$2:$C$51=$H38)*(Data!H$2:H$51)) -> 248422.6507 | K38: =SUMPRODUCT((Data!$B$2:$B$51=$I38)*(Data!$C$2:$C$51=$H38)*(Data!I$2:I$51)) -> 255875.3302 | L38: =SUMPRODUCT((Data!$B$2:$B$51=$I38)*(Data!$C$2:$C$51=$H38)*(Data!J$2:J$51)) -> 243081.5637 | M38: =SUMPRODUCT((Data!$B$2:$B$51=$I38)*(Data!$C$2:$C$51=$H38)*(Data!K$2:K$51)) -> 230927.4855 | N38: The Mid-West | O38: =INDEX(Data!$B$2:$B$51,MATCH(1,INDEX((Data!$C$2:$C$51=N38)*(Data!$O$2:$O$51=A38),0),0)) -> Minnesota | P38: =SUMPRODUCT((Data!$B$2:$B$51=O38)*(Data!$C$2:$C$51=N38)*(Data!$M$2:$M$51)) -> 67.14 | Q38: The Mid-West | R38: =INDEX(Data!$B$2:$B$51,MATCH(1,INDEX((Data!$C$2:$C$51=Q38)*(Data!$R$2:$R$51=A38),0),0)) -> Kansas | S38: =SUMPRODUCT((Data!$B$2:$B$51=R38)*(Data!$C$2:$C$51=Q38)*(Data!$L$2:$L$51)) -> 0.056
A39: 8 | B39: The Mid-West | C39: =INDEX(Data!$B$2:$B$51,MATCH(1,INDEX((Data!$C$2:$C$51=B39)*(Data!$P$2:$P$51=A39),0),0)) -> Kansas | D39: =SUMPRODUCT((Data!$B$2:$B$51=C39)*(Data!$C$2:$C$51=B39)*(Data!$D$2:$D$51)) -> 169585.5293 | E39: =SUMPRODUCT((Data!$B$2:$B$51=$C39)*(Data!$C$2:$C$51=$B39)*(Data!E$2:E$51)) -> 219046.15 | F39: =SUMPRODUCT((Data!$B$2:$B$51=$C39)*(Data!$C$2:$C$51=$B39)*(Data!F$2:F$51)) -> 225617.5345 | G39: =SUMPRODUCT((Data!$B$2:$B$51=$C39)*(Data!$C$2:$C$51=$B39)*(Data!G$2:G$51)) -> 232386.0605 | H39: The Mid-West | I39: =INDEX(Data!$B$2:$B$51,MATCH(1,INDEX((Data!$C$2:$C$51=B39)*(Data!$Q$2:$Q$51=A39),0),0)) -> Iowa | J39: =SUMPRODUCT((Data!$B$2:$B$51=$I39)*(Data!$C$2:$C$51=$H39)*(Data!H$2:H$51)) -> 141747.0419 | K39: =SUMPRODUCT((Data!$B$2:$B$51=$I39)*(Data!$C$2:$C$51=$H39)*(Data!I$2:I$51)) -> 145999.4531 | L39: =SUMPRODUCT((Data!$B$2:$B$51=$I39)*(Data!$C$2:$C$51=$H39)*(Data!J$2:J$51)) -> 150379.4367 | M39: =SUMPRODUCT((Data!$B$2:$B$51=$I39)*(Data!$C$2:$C$51=$H39)*(Data!K$2:K$51)) -> 144364.2593 | N39: The Mid-West | O39: =INDEX(Data!$B$2:$B$51,MATCH(1,INDEX((Data!$C$2:$C$51=N39)*(Data!$O$2:$O$51=A39),0),0)) -> Iowa | P39: =SUMPRODUCT((Data!$B$2:$B$51=O39)*(Data!$C$2:$C$51=N39)*(Data!$M$2:$M$51)) -> 54.81 | Q39: The Mid-West | R39: =INDEX(Data!$B$2:$B$51,MATCH(1,INDEX((Data!$C$2:$C$51=Q39)*(Data!$R$2:$R$51=A39),0),0)) -> Minnesota | S39: =SUMPRODUCT((Data!$B$2:$B$51=R39)*(Data!$C$2:$C$51=Q39)*(Data!$L$2:$L$51)) -> 0.048
A40: 9 | B40: The Mid-West | C40: =INDEX(Data!$B$2:$B$51,MATCH(1,INDEX((Data!$C$2:$C$51=B40)*(Data!$P$2:$P$51=A40),0),0)) -> Iowa | D40: =SUMPRODUCT((Data!$B$2:$B$51=C40)*(Data!$C$2:$C$51=B40)*(Data!$D$2:$D$51)) -> 145190.3402 | E40: =SUMPRODUCT((Data!$B$2:$B$51=$C40)*(Data!$C$2:$C$51=$B40)*(Data!E$2:E$51)) -> 187535.96 | F40: =SUMPRODUCT((Data!$B$2:$B$51=$C40)*(Data!$C$2:$C$51=$B40)*(Data!F$2:F$51)) -> 193162.0388 | G40: =SUMPRODUCT((Data!$B$2:$B$51=$C40)*(Data!$C$2:$C$51=$B40)*(Data!G$2:G$51)) -> 198956.9 | H40: The Mid-West | I40: =INDEX(Data!$B$2:$B$51,MATCH(1,INDEX((Data!$C$2:$C$51=B40)*(Data!$Q$2:$Q$51=A40),0),0)) -> Kansas | J40: =SUMPRODUCT((Data!$B$2:$B$51=$I40)*(Data!$C$2:$C$51=$H40)*(Data!H$2:H$51)) -> 132979.1836 | K40: =SUMPRODUCT((Data!$B$2:$B$51=$I40)*(Data!$C$2:$C$51=$H40)*(Data!I$2:I$51)) -> 136968.5591 | L40: =SUMPRODUCT((Data!$B$2:$B$51=$I40)*(Data!$C$2:$C$51=$H40)*(Data!J$2:J$51)) -> 141077.6159 | M40: =SUMPRODUCT((Data!$B$2:$B$51=$I40)*(Data!$C$2:$C$51=$H40)*(Data!K$2:K$51)) -> 112862.0927 | N40: The Mid-West | O40: =INDEX(Data!$B$2:$B$51,MATCH(1,INDEX((Data!$C$2:$C$51=N40)*(Data!$O$2:$O$51=A40),0),0)) -> Kansas | P40: =SUMPRODUCT((Data!$B$2:$B$51=O40)*(Data!$C$2:$C$51=N40)*(Data!$M$2:$M$51)) -> 35.09 | Q40: The Mid-West | R40: =INDEX(Data!$B$2:$B$51,MATCH(1,INDEX((Data!$C$2:$C$51=Q40)*(Data!$R$2:$R$51=A40),0),0)) -> Iowa | S40: =SUMPRODUCT((Data!$B$2:$B$51=R40)*(Data!$C$2:$C$51=Q40)*(Data!$L$2:$L$51)) -> 0.046
A41: 10 | B41: The Mid-West | C41: =INDEX(Data!$B$2:$B$51,MATCH(1,INDEX((Data!$C$2:$C$51=B41)*(Data!$P$2:$P$51=A41),0),0)) -> Nebraska | D41: =SUMPRODUCT((Data!$B$2:$B$51=C41)*(Data!$C$2:$C$51=B41)*(Data!$D$2:$D$51)) -> 153254.8565 | E41: =SUMPRODUCT((Data!$B$2:$B$51=$C41)*(Data!$C$2:$C$51=$B41)*(Data!E$2:E$51)) -> 197952.54 | F41: =SUMPRODUCT((Data!$B$2:$B$51=$C41)*(Data!$C$2:$C$51=$B41)*(Data!F$2:F$51)) -> 188054.913 | G41: =SUMPRODUCT((Data!$B$2:$B$51=$C41)*(Data!$C$2:$C$51=$B41)*(Data!G$2:G$51)) -> 178652.1674 | H41: The Mid-West | I41: =INDEX(Data!$B$2:$B$51,MATCH(1,INDEX((Data!$C$2:$C$51=B41)*(Data!$Q$2:$Q$51=A41),0),0)) -> Nebraska | J41: =SUMPRODUCT((Data!$B$2:$B$51=$I41)*(Data!$C$2:$C$51=$H41)*(Data!H$2:H$51)) -> 84755.96318 | K41: =SUMPRODUCT((Data!$B$2:$B$51=$I41)*(Data!$C$2:$C$51=$H41)*(Data!I$2:I$51)) -> 80518.16502 | L41: =SUMPRODUCT((Data!$B$2:$B$51=$I41)*(Data!$C$2:$C$51=$H41)*(Data!J$2:J$51)) -> 76492.25677 | M41: =SUMPRODUCT((Data!$B$2:$B$51=$I41)*(Data!$C$2:$C$51=$H41)*(Data!K$2:K$51)) -> 72667.64393 | N41: The Mid-West | O41: =INDEX(Data!$B$2:$B$51,MATCH(1,INDEX((Data!$C$2:$C$51=N41)*(Data!$O$2:$O$51=A41),0),0)) -> Nebraska | P41: =SUMPRODUCT((Data!$B$2:$B$51=O41)*(Data!$C$2:$C$51=N41)*(Data!$M$2:$M$51)) -> 23.97 | Q41: The Mid-West | R41: =INDEX(Data!$B$2:$B$51,MATCH(1,INDEX((Data!$C$2:$C$51=Q41)*(Data!$R$2:$R$51=A41),0),0)) -> Nebraska | S41: =SUMPRODUCT((Data!$B$2:$B$51=R41)*(Data!$C$2:$C$51=Q41)*(Data!$L$2:$L$51)) -> 0.039
A42: 1 | B42: All Regions | C42: =INDEX(C$2:C$41,MATCH(VLOOKUP(LARGE(G$2:G$41,A42),G$2:G$41,1,0),G$2:G$41,0),1) -> California | D42: =SUMPRODUCT((($C$2:$C$41=$C42)*(D$2:D$41))) -> 1787984.729 | E42: =SUMPRODUCT((($C$2:$C$41=$C42)*(E$2:E$41))) -> 2340508.592 | F42: 2410723.85 | G42: 2483045.565 | H42: All Regions | I42: =INDEX(I$2:I$41,MATCH(VLOOKUP(LARGE(M$2:M$41,A42),M$2:M$41,1,0),M$2:M$41,0),1) -> California | J42: =SUMPRODUCT((($I$2:$I$41=$I42)*(J$2:J$41))) -> 1089787.013 | K42: =SUMPRODUCT((($I$2:$I$41=$I42)*(K$2:K$41))) -> 1122480.624 | L42: 1156155.042 | M42: 1167716.593 | N42: All Regions | O42: =INDEX(O$2:O$41,MATCH(VLOOKUP(LARGE(P$2:P$41,$A42),P$2:P$41,1,0),P$2:P$41,0),1) -> Massachusetts | P42: =VLOOKUP(LARGE(P$2:P$41,$A42),P$2:P$41,1,0) -> 852.1 | Q42: All Regions | R42: =INDEX(R$2:R$41,MATCH(VLOOKUP(LARGE(S$2:S$41,$A42),S$2:S$41,1,0),S$2:S$41,0),1) -> Nevada | S42: =VLOOKUP(LARGE(S$2:S$41,A42),S$2:S$41,1,0) -> 0.093
A43: 2 | B43: All Regions | C43: =INDEX(C$2:C$41,MATCH(VLOOKUP(LARGE(G$2:G$41,A43),G$2:G$41,1,0),G$2:G$41,0),1) -> Texas | D43: =SUMPRODUCT((($C$2:$C$41=$C43)*(D$2:D$41))) -> 1676519.846 | E43: 2194598.78 | F43: 2084868.841 | G43: 2147414.906 | H43: All Regions | I43: =INDEX(I$2:I$41,MATCH(VLOOKUP(LARGE(M$2:M$41,A43),M$2:M$41,1,0),M$2:M$41,0),1) -> Texas | J43: =SUMPRODUCT((($I$2:$I$41=$I43)*(J$2:J$41))) -> 1174893.007 | K43: 1116148.356 | L43: 1149632.807 | M43: 1161129.135 | N43: All Regions | O43: Connecticut | P43: 741.4 | Q43: All Regions | R43: Rhode Island | S43: 0.092
A44: 3 | B44: All Regions | C44: New York | D44: 1536782.351 | E44: 2011679.54 | F44: 1911095.563 | G44: 2044872.252 | H44: All Regions | I44: New York | J44: 904550.7105 | K44: 859323.175 | L44: 919475.7972 | M44: 928670.5552 | N44: All Regions | O44: Maryland | P44: 606.2 | Q44: All Regions | R44: Michigan | S44: 0.09
A45: 4 | B45: All Regions | C45: Illinois | D45: 950567.4724 | E45: 1244312.27 | F45: 1182096.657 | G45: 1264843.422 | H45: All Regions | I45: Florida | J45: 878247.1357 | K45: 834334.7789 | L45: 892738.2134 | M45: 901665.5956 | N45: All Regions | O45: Delaware | P45: 470.7 | Q45: All Regions | R45: Illinois | S45: 0.089
A46: 5 | B46: All Regions | C46: Florida | D46: 933901.6367 | E46: 1222496.35 | F46: 1161371.532 | G46: 1242667.54 | H46: All Regions | I46: Illinois | J46: 599136.9811 | K46: 569180.132 | L46: 609022.7413 | M46: 666879.9017 | N46: All Regions | O46: New York | P46: 415.3 | Q46: All Regions | R46: California | S46: 0.087
A47: 6 | B47: All Regions | C47: New Jersey | D47: 871083.3493 | E47: 1113774.9 | F47: 1058086.155 | G47: 1158604.34 | H47: All Regions | I47: Washington | J47: 628363.1753 | K47: 596945.0165 | L47: 638731.1677 | M47: 606794.6093 | N47: All Regions | O47: Florida | P47: 360.2 | Q47: All Regions | R47: Mississippi | S47: 0.085
A48: 7 | B48: All Regions | C48: Pennsylvania | D48: 832389.7015 | E48: 1089615.15 | F48: 1035134.392 | G48: 1107593.8 | H48: All Regions | I48: Pennsylvania | J48: 593291.7423 | K48: 563627.1551 | L48: 603081.056 | M48: 482464.8448 | N48: All Regions | O48: Pennsylvania | P48: 285.3 | Q48: All Regions | R48: Tennessee | S48: 0.084
A49: 8 | B49: All Regions | C49: Washington | D49: 820326.8894 | E49: 1048877.24 | F49: 996433.378 | G49: 1066183.714 | H49: All Regions | I49: Michigan | J49: 461773.8684 | K49: 447920.6523 | L49: 430003.8262 | M49: 470854.1897 | N49: All Regions | O49: Ohio | P49: 282.5 | Q49: All Regions | R49: Tennessee | S49: 0.084
A50: 9 | B50: All Regions | C50: Ohio | D50: 848682.5026 | E50: 1110942.76 | F50: 1055395.622 | G50: 1002625.841 | H50: All Regions | I50: Ohio | J50: 539223.283 | K50: 512262.1188 | L50: 486649.0129 | M50: 467183.0524 | N50: All Regions | O50: California | P50: 244.2 | Q50: All Regions | R50: Tennessee | S50: 0.084
A51: 10 | B51: All Regions | C51: Colorado | D51: 645274.749 | E51: 825054.02 | F51: 849805.6406 | G51: 807315.3586 | H51: All Regions | I51: Arizona | J51: 596214.3617 | K51: 614100.7925 | L51: 583395.7529 | M51: 466716.6023 | N51: All Regions | O51: Illinois | P51: 231.9 | Q51: All Regions | R51: Arizona | S51: 0.082
A53: Table & Chart | B53: Region | C53: State | D53: 2010 | E53: 2011 | F53: 2012 | G53: 2013 | H53: Region | I53: State | J53: 2010 | K53: 2011 | L53: 2012 | M53: 2013 | N53: Region | O53: Staff | P53: FTE | Q53: Region | R53: State | S53: Late Debt | U53: Revenue | V53: =Dash!$B$1 -> 2010 | W53: Expenses | X53: =Dash!$B$1 -> 2010 | Y53: Chart 1
A54: 1 | B54: =Dash!$T$11 -> The Mid-West | C54: =INDEX(C$2:C$51,MATCH(1,INDEX(($A$2:$A$51=$A54)*(B$2:B$51=B54),0),0)) -> Illinois | D54: =SUMPRODUCT(($B$2:$B$51=$B54)*($C$2:$C$51=$C54)*(D$2:D$51))/1000 -> 950.5674724 | E54: 1244.31227 | F54: 1182.096657 | G54: =SUMPRODUCT(($B$2:$B$51=$B54)*($C$2:$C$51=$C54)*(G$2:G$51))/1000 -> 1264.843422 | H54: =Dash!$T$11 -> The Mid-West | I54: =INDEX(I$2:I$51,MATCH(1,INDEX(($A$2:$A$51=$A54)*(H$2:H$51=H54),0),0)) -> Illinois | J54: =SUMPRODUCT(($H$2:$H$51=$H54)*($I$2:$I$51=$I54)*(J$2:J$51))/1000 -> 599.1369811 | K54: =SUMPRODUCT(($H$2:$H$51=$H54)*($I$2:$I$51=$I54)*(K$2:K$51))/1000 -> 569.180132 | L54: 609.0227413 | M54: 666.8799017 | N54: =$B54 -> The Mid-West | O54: =INDEX(O$2:O$51,MATCH(1,INDEX(($A$2:$A$51=$A54)*(N$2:N$51=N54),0),0)) -> Ohio | P54: =SUMPRODUCT((N$2:N$51=N54)*(O$2:O$51=O54)*(P$2:P$51)) -> 282.5 | Q54: =$B54 -> The Mid-West | R54: =INDEX(R$2:R$51,MATCH(1,INDEX(($A$2:$A$51=$A54)*(Q$2:Q$51=Q54),0),0)) -> Michigan | S54: =SUMPRODUCT((Q$2:Q$51=Q54)*(R$2:R$51=R54)*(S$2:S$51)) -> 0.09 | U54: =C54 -> Illinois | V54: =HLOOKUP(Dash!$B$1,$D$53:$G$58,ROW(A2),0) -> 950.5674724 | W54: =I54 -> Illinois | X54: =HLOOKUP(Dash!$B$1,$J$53:$M$58,ROW(A2),0) -> 599.1369811
A55: 2 | B55: =Dash!$T$11 -> The Mid-West | C55: =INDEX(C$2:C$51,MATCH(1,INDEX(($A$2:$A$51=$A55)*(B$2:B$51=B55),0),0)) -> Ohio | D55: 848.6825026 | E55: 1110.94276 | F55: 1055.395622 | G55: =SUMPRODUCT(($B$2:$B$51=$B55)*($C$2:$C$51=$C55)*(G$2:G$51))/1000 -> 1002.625841 | H55: =Dash!$T$11 -> The Mid-West | I55: =INDEX(I$2:I$51,MATCH(1,INDEX(($A$2:$A$51=$A55)*(H$2:H$51=H55),0),0)) -> Michigan | J55: =SUMPRODUCT(($H$2:$H$51=$H55)*($I$2:$I$51=$I55)*(J$2:J$51))/1000 -> 461.7738684 | K55: 447.9206523 | L55: 430.0038262 | M55: 470.8541897 | N55: =$B55 -> The Mid-West | O55: =INDEX(O$2:O$51,MATCH(1,INDEX(($A$2:$A$51=$A55)*(N$2:N$51=N55),0),0)) -> Illinois | P55: =SUMPRODUCT((N$2:N$51=N55)*(O$2:O$51=O55)*(P$2:P$51)) -> 231.9 | Q55: =$B55 -> The Mid-West | R55: =INDEX(R$2:R$51,MATCH(1,INDEX(($A$2:$A$51=$A55)*(Q$2:Q$51=Q55),0),0)) -> Illinois | S55: =SUMPRODUCT((Q$2:Q$51=Q55)*(R$2:R$51=R55)*(S$2:S$51)) -> 0.089 | U55: =C55 -> Ohio | V55: =HLOOKUP(Dash!$B$1,$D$53:$G$58,ROW(A3),0) -> 848.6825026 | W55: =I55 -> Michigan | X55: =HLOOKUP(Dash!$B$1,$J$53:$M$58,ROW(A3),0) -> 461.7738684
A56: 3 | B56: =Dash!$T$11 -> The Mid-West | C56: =INDEX(C$2:C$51,MATCH(1,INDEX(($A$2:$A$51=$A56)*(B$2:B$51=B56),0),0)) -> Minnesota | D56: 615.398529 | E56: 786.85402 | F56: 810.4596406 | G56: 769.9366586 | H56: =Dash!$T$11 -> The Mid-West | I56: Ohio | J56: =SUMPRODUCT(($H$2:$H$51=$H56)*($I$2:$I$51=$I56)*(J$2:J$51))/1000 -> 539.223283 | K56: 512.2621188 | L56: 486.6490129 | M56: 467.1830524 | N56: =$B56 -> The Mid-West | O56: =INDEX(O$2:O$51,MATCH(1,INDEX(($A$2:$A$51=$A56)*(N$2:N$51=N56),0),0)) -> Indiana | P56: =SUMPRODUCT((N$2:N$51=N56)*(O$2:O$51=O56)*(P$2:P$51)) -> 182.5 | Q56: =$B56 -> The Mid-West | R56: =INDEX(R$2:R$51,MATCH(1,INDEX(($A$2:$A$51=$A56)*(Q$2:Q$51=Q56),0),0)) -> Ohio | S56: =SUMPRODUCT((Q$2:Q$51=Q56)*(R$2:R$51=R56)*(S$2:S$51)) -> 0.075 | U56: Minnesota | V56: =HLOOKUP(Dash!$B$1,$D$53:$G$58,ROW(A4),0) -> 615.398529 | W56: =I56 -> Ohio | X56: =HLOOKUP(Dash!$B$1,$J$53:$M$58,ROW(A4),0) -> 539.223283
A57: 4 | B57: =Dash!$T$11 -> The Mid-West | C57: =INDEX(C$2:C$51,MATCH(1,INDEX(($A$2:$A$51=$A57)*(B$2:B$51=B57),0),0)) -> Michigan | D57: 452.32416 | E57: 592.10158 | F57: 574.3385326 | G57: 551.3649913 | H57: =Dash!$T$11 -> The Mid-West | I57: Wisconsin | J57: =SUMPRODUCT(($H$2:$H$51=$H57)*($I$2:$I$51=$I57)*(J$2:J$51))/1000 -> 265.9583672 | K57: 291.2244121 | L57: 276.6631915 | M57: 302.9461947 | N57: =$B57 -> The Mid-West | O57: =INDEX(O$2:O$51,MATCH(1,INDEX(($A$2:$A$51=$A57)*(N$2:N$51=N57),0),0)) -> Michigan | P57: =SUMPRODUCT((N$2:N$51=N57)*(O$2:O$51=O57)*(P$2:P$51)) -> 174.8 | Q57: =$B57 -> The Mid-West | R57: =INDEX(R$2:R$51,MATCH(1,INDEX(($A$2:$A$51=$A57)*(Q$2:Q$51=Q57),0),0)) -> Indiana | S57: =SUMPRODUCT((Q$2:Q$51=Q57)*(R$2:R$51=R57)*(S$2:S$51)) -> 0.075 | U57: Michigan | V57: =HLOOKUP(Dash!$B$1,$D$53:$G$58,ROW(A5),0) -> 452.32416 | W57: =I57 -> Wisconsin | X57: =HLOOKUP(Dash!$B$1,$J$53:$M$58,ROW(A5),0) -> 265.9583672
A58: 5 | B58: =Dash!$T$11 -> The Mid-West | C58: =INDEX(C$2:C$51,MATCH(1,INDEX(($A$2:$A$51=$A58)*(B$2:B$51=B58),0),0)) -> Wisconsin | D58: 324.5561161 | E58: 414.98033 | F58: 454.4034613 | G58: 468.0355652 | H58: =Dash!$T$11 -> The Mid-West | I58: Indiana | J58: =SUMPRODUCT(($H$2:$H$51=$H58)*($I$2:$I$51=$I58)*(J$2:J$51))/1000 -> 302.49111 | K58: 287.3665545 | L58: 272.9982267 | M58: 264.8082799 | N58: =$B58 -> The Mid-West | O58: =INDEX(O$2:O$51,MATCH(1,INDEX(($A$2:$A$51=$A58)*(N$2:N$51=N58),0),0)) -> Wisconsin | P58: =SUMPRODUCT((N$2:N$51=N58)*(O$2:O$51=O58)*(P$2:P$51)) -> 105.2 | Q58: =$B58 -> The Mid-West | R58: =INDEX(R$2:R$51,MATCH(1,INDEX(($A$2:$A$51=$A58)*(Q$2:Q$51=Q58),0),0)) -> Missouri | S58: =SUMPRODUCT((Q$2:Q$51=Q58)*(R$2:R$51=R58)*(S$2:S$51)) -> 0.065 | U58: Wisconsin | V58: =HLOOKUP(Dash!$B$1,$D$53:$G$58,ROW(A6),0) -> 324.5561161 | W58: =I58 -> Indiana | X58: =HLOOKUP(Dash!$B$1,$J$53:$M$58,ROW(A6),0) -> 302.49111
A60: Top 10 All Regions | B60: Region | C60: State | D60: 2010 | E60: 2011 | F60: 2012 | G60: 2013 | H60: Region | I60: State | J60: 2010 | K60: 2011 | L60: 2012 | M60: 2013 | U60: Revenue | V60: =Dash!$B$1 -> 2010 | W60: Expenses | X60: =Dash!$B$1 -> 2010 | Y60: Chart 2
A61: 1 | B61: =Dash!$T$11 -> The Mid-West | C61: =INDEX(C$2:C$51,MATCH(1,INDEX(($A$2:$A$51=$A61)*(B$2:B$51=B61),0),0)) -> Illinois | D61: =SUMPRODUCT(($B$2:$B$51=$B61)*($C$2:$C$51=$C61)*(D$2:D$51))/1000 -> 950.5674724 | E61: 1244.31227 | F61: 1182.096657 | G61: =SUMPRODUCT(($B$2:$B$51=$B61)*($C$2:$C$51=$C61)*(G$2:G$51))/1000 -> 1264.843422 | H61: All Regions | I61: =INDEX(I$2:I$51,MATCH(1,INDEX(($A$2:$A$51=$A61)*(H$2:H$51=H61),0),0)) -> California | J61: =SUMPRODUCT(($B$2:$B$51=$B61)*($C$2:$C$51=$C61)*(J$2:J$51))/1000 -> 599.1369811 | K61: =SUMPRODUCT(($B$2:$B$51=$B61)*($C$2:$C$51=$C61)*(K$2:K$51))/1000 -> 569.180132 | L61: 609.0227413 | M61: =SUMPRODUCT(($B$2:$B$51=$B61)*($C$2:$C$51=$C61)*(M$2:M$51))/1000 -> 666.8799017 | N61: =$B61 -> The Mid-West | O61: =INDEX(O$2:O$51,MATCH(1,INDEX(($A$2:$A$51=$A61)*(N$2:N$51=N61),0),0)) -> Ohio | P61: =SUMPRODUCT((N$2:N$51=N61)*(O$2:O$51=O61)*(P$2:P$51)) -> 282.5 | Q61: =$B61 -> The Mid-West | R61: =INDEX(R$2:R$51,MATCH(1,INDEX(($A$2:$A$51=$A61)*(Q$2:Q$51=Q61),0),0)) -> Michigan | S61: =SUMPRODUCT((Q$2:Q$51=Q61)*(R$2:R$51=R61)*(S$2:S$51)) -> 0.09 | U61: =C61 -> Illinois | V61: =HLOOKUP(Dash!$B$1,$D$60:$G$70,ROW(A2),0) -> 950.5674724 | W61: =I61 -> California | X61: =HLOOKUP(Dash!$B$1,$J$60:$M$70,ROW(A2),0) -> 599.1369811
A62: 2 | B62: =Dash!$T$11 -> The Mid-West | C62: Ohio | D62: 848.6825026 | E62: 1110.94276 | F62: 1055.395622 | G62: =SUMPRODUCT(($B$2:$B$51=$B62)*($C$2:$C$51=$C62)*(G$2:G$51))/1000 -> 1002.625841 | H62: All Regions | I62: =INDEX(I$2:I$51,MATCH(1,INDEX(($A$2:$A$51=$A62)*(H$2:H$51=H62),0),0)) -> Texas | J62: =SUMPRODUCT(($B$2:$B$51=$B62)*($C$2:$C$51=$C62)*(J$2:J$51))/1000 -> 461.7738684 | K62: 447.9206523 | L62: 430.0038262 | M62: 470.8541897 | N62: The Mid-West | O62: Illinois | P62: 231.9 | Q62: The Mid-West | R62: Illinois | S62: 0.089 | U62: =C62 -> Ohio | V62: =HLOOKUP(Dash!$B$1,$D$60:$G$70,ROW(A3),0) -> 848.6825026 | W62: =I62 -> Texas | X62: =HLOOKUP(Dash!$B$1,$J$60:$M$70,ROW(A3),0) -> 461.7738684
A63: 3 | B63: =Dash!$T$11 -> The Mid-West | C63: Minnesota | D63: 615.398529 | E63: 786.85402 | F63: 810.4596406 | G63: 769.9366586 | H63: All Regions | I63: New York | J63: 539.223283 | K63: 512.2621188 | L63: 486.6490129 | M63: 467.1830524 | N63: The Mid-West | O63: Indiana | P63: 182.5 | Q63: The Mid-West | R63: Ohio | S63: 0.075 | U63: Minnesota | V63: =HLOOKUP(Dash!$B$1,$D$60:$G$70,ROW(A4),0) -> 615.398529 | W63: New York | X63: =HLOOKUP(Dash!$B$1,$J$60:$M$70,ROW(A4),0) -> 539.223283
A64: 4 | B64: =Dash!$T$11 -> The Mid-West | C64: Michigan | D64: 452.32416 | E64: 592.10158 | F64: 574.3385326 | G64: 551.3649913 | H64: All Regions | I64: Florida | J64: 265.9583672 | K64: 291.2244121 | L64: 276.6631915 | M64: 302.9461947 | N64: The Mid-West | O64: Michigan | P64: 174.8 | Q64: The Mid-West | R64: Indiana | S64: 0.075 | U64: Michigan | V64: =HLOOKUP(Dash!$B$1,$D$60:$G$70,ROW(A5),0) -> 452.32416 | W64: Florida | X64: =HLOOKUP(Dash!$B$1,$J$60:$M$70,ROW(A5),0) -> 265.9583672
A65: 5 | B65: =Dash!$T$11 -> The Mid-West | C65: Wisconsin | D65: 324.5561161 | E65: 414.98033 | F65: 454.4034613 | G65: 468.0355652 | H65: All Regions | I65: Illinois | J65: 302.49111 | K65: 287.3665545 | L65: 272.9982267 | M65: 264.8082799 | N65: The Mid-West | O65: Wisconsin | P65: 105.2 | Q65: The Mid-West | R65: Missouri | S65: 0.065 | U65: Wisconsin | V65: =HLOOKUP(Dash!$B$1,$D$60:$G$70,ROW(A6),0) -> 324.5561161 | W65: Illinois | X65: =HLOOKUP(Dash!$B$1,$J$60:$M$70,ROW(A6),0) -> 302.49111
A66: 6 | B66: =Dash!$T$11 -> The Mid-West | C66: Indiana | D66: 400.7364024 | E66: 512.38512 | F66: 486.765864 | G66: 462.4275708 | H66: All Regions | I66: Washington | J66: 279.1101546 | K66: 267.9457484 | L66: 259.907376 | M66: 246.9120072 | N66: The Mid-West | O66: Missouri | P66: 87.26 | Q66: The Mid-West | R66: Wisconsin | S66: 0.065 | U66: Indiana | V66: =HLOOKUP(Dash!$B$1,$D$60:$G$70,ROW(A7),0) -> 400.7364024 | W66: Washington | X66: =HLOOKUP(Dash!$B$1,$J$60:$M$70,ROW(A7),0) -> 279.1101546
A67: 7 | B67: =Dash!$T$11 -> The Mid-West | C67: Missouri | D67: 378.6400048 | E67: 484.13247 | F67: 464.7671712 | G67: 450.8241561 | H67: All Regions | I67: Pennsylvania | J67: 248.4226507 | K67: 255.8753302 | L67: 243.0815637 | M67: 230.9274855 | N67: The Mid-West | O67: Minnesota | P67: 67.14 | Q67: The Mid-West | R67: Kansas | S67: 0.056 | U67: Missouri | V67: =HLOOKUP(Dash!$B$1,$D$60:$G$70,ROW(A8),0) -> 378.6400048 | W67: Pennsylvania | X67: =HLOOKUP(Dash!$B$1,$J$60:$M$70,ROW(A8),0) -> 248.4226507
A68: 8 | B68: =Dash!$T$11 -> The Mid-West | C68: Kansas | D68: 169.5855293 | E68: 219.04615 | F68: 225.6175345 | G68: 232.3860605 | H68: All Regions | I68: Michigan | J68: 141.7470419 | K68: 145.9994531 | L68: 150.3794367 | M68: 144.3642593 | N68: The Mid-West | O68: Iowa | P68: 54.81 | Q68: The Mid-West | R68: Minnesota | S68: 0.048 | U68: Kansas | V68: =HLOOKUP(Dash!$B$1,$D$60:$G$70,ROW(A9),0) -> 169.5855293 | W68: Michigan | X68: =HLOOKUP(Dash!$B$1,$J$60:$M$70,ROW(A9),0) -> 141.7470419
A69: 9 | B69: =Dash!$T$11 -> The Mid-West | C69: Iowa | D69: 145.1903402 | E69: 187.53596 | F69: 193.1620388 | G69: 198.9569 | H69: All Regions | I69: Ohio | J69: 132.9791836 | K69: 136.9685591 | L69: 141.0776159 | M69: 112.8620927 | N69: The Mid-West | O69: Kansas | P69: 35.09 | Q69: The Mid-West | R69: Iowa | S69: 0.046 | U69: Iowa | V69: =HLOOKUP(Dash!$B$1,$D$60:$G$70,ROW(A10),0) -> 145.1903402 | W69: Ohio | X69: =HLOOKUP(Dash!$B$1,$J$60:$M$70,ROW(A10),0) -> 132.9791836
A70: 10 | B70: =Dash!$T$11 -> The Mid-West | C70: Nebraska | D70: 153.2548565 | E70: 197.95254 | F70: 188.054913 | G70: 178.6521674 | H70: All Regions | I70: Arizona | J70: 84.75596318 | K70: 80.51816502 | L70: 76.49225677 | M70: 72.66764393 | N70: The Mid-West | O70: Nebraska | P70: 23.97 | Q70: The Mid-West | R70: Nebraska | S70: 0.039 | U70: Nebraska | V70: =HLOOKUP(Dash!$B$1,$D$60:$G$70,ROW(A11),0) -> 153.2548565 | W70: Arizona | X70: =HLOOKUP(Dash!$B$1,$J$60:$M$70,ROW(A11),0) -> 84.75596318
C72: Revenue | D72: 2010 | E72: 2011 | F72: 2012 | G72: 2013 | I72: Expenses | J72: 2010 | K72: 2011 | L72: 2012 | M72: 2013 | O72: =Dash!B1 -> 2010
B73: =Dash!$T$11 -> The Mid-West | D73: =SUM(D61:D70) -> 4438.935913 | E73: =SUM(E61:E70) -> 5750.2432 | F73: 5635.061435 | G73: 5580.053333 | H73: =Dash!$T$11 -> The Mid-West | J73: =SUM(J61:J70) -> 3055.598604 | K73: =SUM(K61:K70) -> 2995.261126 | L73: 2946.275248 | M73: 2980.405107 | N73: Expenses | O73: =HLOOKUP(O72,$J$72:$M$74,3,0) -> 0.4077102583
B74: =Dash!$T$11 -> The Mid-West | D74: =D73/(D73+J73) -> 0.5922897417 | E74: =E73/(E73+K73) -> 0.6575084736 | F74: 0.6566647648 | G74: 0.6518404794 | H74: =Dash!$T$11 -> The Mid-West | J74: =J73/(D73+J73) -> 0.4077102583 | K74: =K73/(E73+K73) -> 0.3424915264 | L74: 0.3433352352 | M74: 0.3481595206 | N74: Revenue | O74: =HLOOKUP(O72,$D$72:$G$74,3,0) -> 0.5922897417
B76: Region | D76: 2010 | E76: 2011 | F76: 2012 | G76: 2013 | H76: Region | J76: 2010 | K76: 2011 | L76: 2012 | M76: 2013
B77: The West | D77: =SUMIF($B$2:$B$41,$B77,D$2:D$41)/1000 -> 5174.660474 | E77: 6641.068202 | F77: 6679.425202 | G77: 6710.242583 | H77: The West | J77: =SUMIF($B$2:$B$41,$H77,J$2:J$41)/1000 -> 3394.272426 | K77: 3412.769412 | L77: 3463.320899 | M77: 3300.929651
B78: The South | D78: 5325.936056 | E78: 6923.99569 | F78: 6699.323147 | G78: 6862.574537 | H78: The South | J78: 4449.688067 | K78: 4335.055627 | L78: 4388.634474 | M78: 4380.385259
B79: The North-East | D79: 4992.428071 | E79: 6445.68269 | F79: 6222.374248 | G79: 6617.725996 | H79: The North-East | J79: 2865.628341 | K79: 2765.703983 | L79: 2940.521633 | M79: 2777.861881
B80: The Mid-West | D80: 4438.935913 | E80: 5750.2432 | F80: 5635.061435 | G80: 5580.053333 | H80: The Mid-West | J80: 3055.598604 | K80: 2995.261126 | L80: 2946.275248 | M80: 2980.405107
B82: Country | C82: Year | D82: Facebook | E82: Twitter | F82: Google + | G82: Linkedin | H82: YouTube | I82: Page Views | J82: Avg Visitors Per Day | K82: Average Visit Duration | L82: Returning Visitors
B83: =Dash!$T$32 -> Australia | C83: 2010 | D83: =SUMPRODUCT((SocialData!$A$2:$A$81=$B88)*(SocialData!$B$2:$B$81=$C88)*(SocialData!C$2:C$81)) -> 581.8 | E83: =SUMPRODUCT((SocialData!$A$2:$A$81=$B83)*(SocialData!$B$2:$B$81=$C83)*(SocialData!D$2:D$81)) -> 494 | F83: =SUMPRODUCT((SocialData!$A$2:$A$81=$B83)*(SocialData!$B$2:$B$81=$C83)*(SocialData!E$2:E$81)) -> 666 | G83: =SUMPRODUCT((SocialData!$A$2:$A$81=$B83)*(SocialData!$B$2:$B$81=$C83)*(SocialData!F$2:F$81)) -> 486 | H83: =SUMPRODUCT((SocialData!$A$2:$A$81=$B83)*(SocialData!$B$2:$B$81=$C83)*(SocialData!G$2:G$81)) -> 989 | I83: =SUMPRODUCT((SocialData!$A$2:$A$81=$B83)*(SocialData!$B$2:$B$81=$C83)*(SocialData!H$2:H$81)) -> 5323 | J83: =SUMPRODUCT((SocialData!$A$2:$A$81=$B83)*(SocialData!$B$2:$B$81=$C83)*(SocialData!I$2:I$81)) -> 14 | K83: =SUMPRODUCT((SocialData!$A$2:$A$81=$B83)*(SocialData!$B$2:$B$81=$C83)*(SocialData!J$2:J$81)) -> 2.03 | L83: =SUMPRODUCT((SocialData!$A$2:$A$81=$B83)*(SocialData!$B$2:$B$81=$C83)*(SocialData!K$2:K$81)) -> 3140
B84: =Dash!$T$32 -> Australia | C84: 2011 | D84: =SUMPRODUCT((SocialData!$A$2:$A$81=$B84)*(SocialData!$B$2:$B$81=$C84)*(SocialData!C$2:C$81)) -> 596 | E84: =SUMPRODUCT((SocialData!$A$2:$A$81=$B84)*(SocialData!$B$2:$B$81=$C84)*(SocialData!D$2:D$81)) -> 516 | F84: =SUMPRODUCT((SocialData!$A$2:$A$81=$B84)*(SocialData!$B$2:$B$81=$C84)*(SocialData!E$2:E$81)) -> 675 | G84: =SUMPRODUCT((SocialData!$A$2:$A$81=$B84)*(SocialData!$B$2:$B$81=$C84)*(SocialData!F$2:F$81)) -> 522 | H84: =SUMPRODUCT((SocialData!$A$2:$A$81=$B84)*(SocialData!$B$2:$B$81=$C84)*(SocialData!G$2:G$81)) -> 1003 | I84: =SUMPRODUCT((SocialData!$A$2:$A$81=$B84)*(SocialData!$B$2:$B$81=$C84)*(SocialData!H$2:H$81)) -> 5453 | J84: =SUMPRODUCT((SocialData!$A$2:$A$81=$B84)*(SocialData!$B$2:$B$81=$C84)*(SocialData!I$2:I$81)) -> 14 | K84: =SUMPRODUCT((SocialData!$A$2:$A$81=$B84)*(SocialData!$B$2:$B$81=$C84)*(SocialData!J$2:J$81)) -> 2 | L84: =SUMPRODUCT((SocialData!$A$2:$A$81=$B84)*(SocialData!$B$2:$B$81=$C84)*(SocialData!K$2:K$81)) -> 2126
B85: =Dash!$T$32 -> Australia | C85: 2012 | D85: =SUMPRODUCT((SocialData!$A$2:$A$81=$B85)*(SocialData!$B$2:$B$81=$C85)*(SocialData!C$2:C$81)) -> 610 | E85: =SUMPRODUCT((SocialData!$A$2:$A$81=$B85)*(SocialData!$B$2:$B$81=$C85)*(SocialData!D$2:D$81)) -> 539 | F85: =SUMPRODUCT((SocialData!$A$2:$A$81=$B85)*(SocialData!$B$2:$B$81=$C85)*(SocialData!E$2:E$81)) -> 685 | G85: =SUMPRODUCT((SocialData!$A$2:$A$81=$B85)*(SocialData!$B$2:$B$81=$C85)*(SocialData!F$2:F$81)) -> 561 | H85: =SUMPRODUCT((SocialData!$A$2:$A$81=$B85)*(SocialData!$B$2:$B$81=$C85)*(SocialData!G$2:G$81)) -> 1018 | I85: =SUMPRODUCT((SocialData!$A$2:$A$81=$B85)*(SocialData!$B$2:$B$81=$C85)*(SocialData!H$2:H$81)) -> 5581 | J85: =SUMPRODUCT((SocialData!$A$2:$A$81=$B85)*(SocialData!$B$2:$B$81=$C85)*(SocialData!I$2:I$81)) -> 15 | K85: =SUMPRODUCT((SocialData!$A$2:$A$81=$B85)*(SocialData!$B$2:$B$81=$C85)*(SocialData!J$2:J$81)) -> 1.91 | L85: =SUMPRODUCT((SocialData!$A$2:$A$81=$B85)*(SocialData!$B$2:$B$81=$C85)*(SocialData!K$2:K$81)) -> 1897
B86: =Dash!$T$32 -> Australia | C86: 2013 | D86: =SUMPRODUCT((SocialData!$A$2:$A$81=$B86)*(SocialData!$B$2:$B$81=$C86)*(SocialData!C$2:C$81)) -> 494.53 | E86: =SUMPRODUCT((SocialData!$A$2:$A$81=$B86)*(SocialData!$B$2:$B$81=$C86)*(SocialData!D$2:D$81)) -> 419.9 | F86: =SUMPRODUCT((SocialData!$A$2:$A$81=$B86)*(SocialData!$B$2:$B$81=$C86)*(SocialData!E$2:E$81)) -> 566.1 | G86: =SUMPRODUCT((SocialData!$A$2:$A$81=$B86)*(SocialData!$B$2:$B$81=$C86)*(SocialData!F$2:F$81)) -> 413.1 | H86: =SUMPRODUCT((SocialData!$A$2:$A$81=$B86)*(SocialData!$B$2:$B$81=$C86)*(SocialData!G$2:G$81)) -> 840.65 | I86: =SUMPRODUCT((SocialData!$A$2:$A$81=$B86)*(SocialData!$B$2:$B$81=$C86)*(SocialData!H$2:H$81)) -> 4524.55 | J86: =SUMPRODUCT((SocialData!$A$2:$A$81=$B86)*(SocialData!$B$2:$B$81=$C86)*(SocialData!I$2:I$81)) -> 15 | K86: =SUMPRODUCT((SocialData!$A$2:$A$81=$B86)*(SocialData!$B$2:$B$81=$C86)*(SocialData!J$2:J$81)) -> 1.82 | L86: =SUMPRODUCT((SocialData!$A$2:$A$81=$B86)*(SocialData!$B$2:$B$81=$C86)*(SocialData!K$2:K$81)) -> 3373
B88: =Dash!T32 -> Australia | C88: 2010 | D88: 2011 | E88: 2012 | F88: 2013 | H88: Search Engines | I88: =Dash!$B$1 -> 2010
B89: Facebook | C89: =SUMPRODUCT((SocialData!$A$2:$A$81=$B88)*(SocialData!$B$2:$B$81=C$88)*(SocialData!$C$2:$C$81)) -> 581.8 | D89: =SUMPRODUCT((SocialData!$A$2:$A$81=$B88)*(SocialData!$B$2:$B$81=D$88)*(SocialData!$C$2:$C$81)) -> 596 | E89: =SUMPRODUCT((SocialData!$A$2:$A$81=$B88)*(SocialData!$B$2:$B$81=E$88)*(SocialData!$C$2:$C$81)) -> 610 | F89: =SUMPRODUCT((SocialData!$A$2:$A$81=$B88)*(SocialData!$B$2:$B$81=F$88)*(SocialData!$C$2:$C$81)) -> 494.53 | H89: Google | I89: =SUMIFS(SocialData!$N$2:$N$13,SocialData!$L$2:$L$13,$I$88,SocialData!$M$2:$M$13,H89) -> 0.6
B90: Twitter | C90: =SUMPRODUCT((SocialData!$A$2:$A$81=$B$88)*(SocialData!$B$2:$B$81=C$88)*(SocialData!$D$2:$D$81)) -> 494 | D90: =SUMPRODUCT((SocialData!$A$2:$A$81=$B$88)*(SocialData!$B$2:$B$81=D$88)*(SocialData!$D$2:$D$81)) -> 516 | E90: =SUMPRODUCT((SocialData!$A$2:$A$81=$B$88)*(SocialData!$B$2:$B$81=E$88)*(SocialData!$D$2:$D$81)) -> 539 | F90: =SUMPRODUCT((SocialData!$A$2:$A$81=$B$88)*(SocialData!$B$2:$B$81=F$88)*(SocialData!$D$2:$D$81)) -> 419.9 | H90: Bing | I90: =SUMIFS(SocialData!$N$2:$N$13,SocialData!$L$2:$L$13,$I$88,SocialData!$M$2:$M$13,H90) -> 0.26
B91: Google + | C91: =SUMPRODUCT((SocialData!$A$2:$A$81=$B$88)*(SocialData!$B$2:$B$81=C$88)*(SocialData!$E$2:$E$81)) -> 666 | D91: =SUMPRODUCT((SocialData!$A$2:$A$81=$B$88)*(SocialData!$B$2:$B$81=D$88)*(SocialData!$E$2:$E$81)) -> 675 | E91: =SUMPRODUCT((SocialData!$A$2:$A$81=$B$88)*(SocialData!$B$2:$B$81=E$88)*(SocialData!$E$2:$E$81)) -> 685 | F91: =SUMPRODUCT((SocialData!$A$2:$A$81=$B$88)*(SocialData!$B$2:$B$81=F$88)*(SocialData!$E$2:$E$81)) -> 566.1 | H91: Other | I91: =SUMIFS(SocialData!$N$2:$N$13,SocialData!$L$2:$L$13,$I$88,SocialData!$M$2:$M$13,H91) -> 0.14
B92: Linkedin | C92: =SUMPRODUCT((SocialData!$A$2:$A$81=$B$88)*(SocialData!$B$2:$B$81=C$88)*(SocialData!$F$2:$F$81)) -> 486 | D92: =SUMPRODUCT((SocialData!$A$2:$A$81=$B$88)*(SocialData!$B$2:$B$81=D$88)*(SocialData!$F$2:$F$81)) -> 522 | E92: =SUMPRODUCT((SocialData!$A$2:$A$81=$B$88)*(SocialData!$B$2:$B$81=E$88)*(SocialData!$F$2:$F$81)) -> 561 | F92: =SUMPRODUCT((SocialData!$A$2:$A$81=$B$88)*(SocialData!$B$2:$B$81=F$88)*(SocialData!$F$2:$F$81)) -> 413.1
B93: YouTube | C93: =SUMPRODUCT((SocialData!$A$2:$A$81=$B$88)*(SocialData!$B$2:$B$81=C$88)*(SocialData!$G$2:$G$81)) -> 989 | D93: =SUMPRODUCT((SocialData!$A$2:$A$81=$B$88)*(SocialData!$B$2:$B$81=D$88)*(SocialData!$G$2:$G$81)) -> 1003 | E93: =SUMPRODUCT((SocialData!$A$2:$A$81=$B$88)*(SocialData!$B$2:$B$81=E$88)*(SocialData!$G$2:$G$81)) -> 1018 | F93: =SUMPRODUCT((SocialData!$A$2:$A$81=$B$88)*(SocialData!$B$2:$B$81=F$88)*(SocialData!$G$2:$G$81)) -> 840.65
B94: Page Views | C94: =SUMPRODUCT((SocialData!$A$2:$A$81=$B$88)*(SocialData!$B$2:$B$81=C$88)*(SocialData!$H$2:$H$81)) -> 5323 | D94: =SUMPRODUCT((SocialData!$A$2:$A$81=$B$88)*(SocialData!$B$2:$B$81=D$88)*(SocialData!$H$2:$H$81)) -> 5453 | E94: =SUMPRODUCT((SocialData!$A$2:$A$81=$B$88)*(SocialData!$B$2:$B$81=E$88)*(SocialData!$H$2:$H$81)) -> 5581 | F94: =SUMPRODUCT((SocialData!$A$2:$A$81=$B$88)*(SocialData!$B$2:$B$81=F$88)*(SocialData!$H$2:$H$81)) -> 4524.55
B95: Avg Visitors Per Day | C95: =SUMPRODUCT((SocialData!$A$2:$A$81=$B$88)*(SocialData!$B$2:$B$81=C$88)*(SocialData!$I$2:$I$81)) -> 14 | D95: =SUMPRODUCT((SocialData!$A$2:$A$81=$B$88)*(SocialData!$B$2:$B$81=D$88)*(SocialData!$I$2:$I$81)) -> 14 | E95: =SUMPRODUCT((SocialData!$A$2:$A$81=$B$88)*(SocialData!$B$2:$B$81=E$88)*(SocialData!$I$2:$I$81)) -> 15 | F95: =SUMPRODUCT((SocialData!$A$2:$A$81=$B$88)*(SocialData!$B$2:$B$81=F$88)*(SocialData!$I$2:$I$81)) -> 15
B96: Average Visit Duration | C96: =SUMPRODUCT((SocialData!$A$2:$A$81=$B$88)*(SocialData!$B$2:$B$81=C$88)*(SocialData!$J$2:$J$81)) -> 2.03 | D96: =SUMPRODUCT((SocialData!$A$2:$A$81=$B$88)*(SocialData!$B$2:$B$81=D$88)*(SocialData!$J$2:$J$81)) -> 2 | E96: =SUMPRODUCT((SocialData!$A$2:$A$81=$B$88)*(SocialData!$B$2:$B$81=E$88)*(SocialData!$J$2:$J$81)) -> 1.91 | F96: =SUMPRODUCT((SocialData!$A$2:$A$81=$B$88)*(SocialData!$B$2:$B$81=F$88)*(SocialData!$J$2:$J$81)) -> 1.82
B97: Returning Visitors | C97: =SUMPRODUCT((SocialData!$A$2:$A$81=$B$88)*(SocialData!$B$2:$B$81=C$88)*(SocialData!$K$2:$K$81)) -> 3140 | D97: =SUMPRODUCT((SocialData!$A$2:$A$81=$B$88)*(SocialData!$B$2:$B$81=D$88)*(SocialData!$K$2:$K$81)) -> 2126 | E97: =SUMPRODUCT((SocialData!$A$2:$A$81=$B$88)*(SocialData!$B$2:$B$81=E$88)*(SocialData!$K$2:$K$81)) -> 1897 | F97: =SUMPRODUCT((SocialData!$A$2:$A$81=$B$88)*(SocialData!$B$2:$B$81=F$88)*(SocialData!$K$2:$K$81)) -> 3373

Sheet Dash
B1: 2010
B2: =$B$1 & " Rev Exp Split" -> 2010 Rev Exp Split
N10: 2010 | O10: 2011 | P10: 2012 | Q10: 2013
N11: =IFERROR(HYPERLINK(yr(N10),N10),N10) -> 2010 | O11: =IFERROR(HYPERLINK(yr(O10),O10),O10) -> 2011 | P11: =IFERROR(HYPERLINK(yr(P10),P10),P10) -> 2012 | Q11: =IFERROR(HYPERLINK(yr(Q10),Q10),Q10) -> 2013 | T11: The Mid-West
N12: Ú | O12: Ú | P12: Ú | Q12: Ú
N13: Revenue | R13: Expenses
N14: =Calcs!C54 -> Illinois | R14: =Calcs!W54 -> Illinois
N15: =Calcs!C55 -> Ohio | R15: =Calcs!W55 -> Michigan
N16: =Calcs!C56 -> Minnesota | R16: =Calcs!W56 -> Ohio
N17: =Calcs!C57 -> Michigan | R17: =Calcs!W57 -> Wisconsin
N18: =Calcs!C58 -> Wisconsin | R18: =Calcs!W58 -> Indiana
N23: Late Debt % | R23: =Calcs!P53 -> FTE
N24: =Calcs!R54 -> Michigan | R24: =Calcs!O54 -> Ohio
N25: =Calcs!R55 -> Illinois | R25: =Calcs!O55 -> Illinois
N26: =Calcs!R56 -> Ohio | R26: =Calcs!O56 -> Indiana
N27: =Calcs!R57 -> Indiana | R27: =Calcs!O57 -> Michigan
N28: =Calcs!R58 -> Missouri | R28: =Calcs!O58 -> Wisconsin
D32: 2010 | E32: 2011 | F32: 2012 | G32: 2013 | H32: Trend | M32: 2010 | N32: 2011 | O32: 2012 | P32: 2013 | Q32: Trend | T32: Australia
C33: Revenue | D33: Ú | E33: Ú | F33: Ú | G33: Ú | M33: Ú | N33: Ú | O33: Ú | P33: Ú
C34: The West | D34: =Calcs!D77 -> 5174.660474 | E34: =Calcs!E77 -> 6641.068202 | F34: =Calcs!F77 -> 6679.425202 | G34: =Calcs!G77 -> 6710.242583 | J34: Page Views | M34: =Calcs!C94 -> 5323 | N34: =Calcs!D94 -> 5453 | O34: =Calcs!E94 -> 5581 | P34: =Calcs!F94 -> 4524.55
C35: The South | D35: =Calcs!D78 -> 5325.936056 | E35: =Calcs!E78 -> 6923.99569 | F35: =Calcs!F78 -> 6699.323147 | G35: =Calcs!G78 -> 6862.574537 | J35: Avg Visitors Per Day | M35: =Calcs!C95 -> 14 | N35: =Calcs!D95 -> 14 | O35: =Calcs!E95 -> 15 | P35: =Calcs!F95 -> 15
C36: The North-East | D36: =Calcs!D79 -> 4992.428071 | E36: =Calcs!E79 -> 6445.68269 | F36: =Calcs!F79 -> 6222.374248 | G36: =Calcs!G79 -> 6617.725996 | J36: Average Visit Duration | M36: =Calcs!C96 -> 2.03 | N36: =Calcs!D96 -> 2 | O36: =Calcs!E96 -> 1.91 | P36: =Calcs!F96 -> 1.82
C37: The Mid-West | D37: =Calcs!D80 -> 4438.935913 | E37: =Calcs!E80 -> 5750.2432 | F37: =Calcs!F80 -> 5635.061435 | G37: =Calcs!G80 -> 5580.053333 | J37: Returning Visitors | M37: =Calcs!C97 -> 3140 | N37: =Calcs!D97 -> 2126 | O37: =Calcs!E97 -> 1897 | P37: =Calcs!F97 -> 3373
D39: 2010 | E39: 2011 | F39: 2012 | G39: 2013 | H39: Trend | M39: 2010 | N39: 2011 | O39: 2012 | P39: 2013 | Q39: Trend
D40: Ú | E40: Ú | F40: Ú | G40: Ú | M40: Ú | N40: Ú | O40: Ú | P40: Ú
J41: Facebook | M41: =Calcs!C89 -> 581.8 | N41: =Calcs!D89 -> 596 | O41: =Calcs!E89 -> 610 | P41: =Calcs!F89 -> 494.53
C42: The West | D42: =Calcs!J77 -> 3394.272426 | E42: =Calcs!K77 -> 3412.769412 | F42: =Calcs!L77 -> 3463.320899 | G42: =Calcs!M77 -> 3300.929651 | J42: Twitter | M42: =Calcs!C90 -> 494 | N42: =Calcs!D90 -> 516 | O42: =Calcs!E90 -> 539 | P42: =Calcs!F90 -> 419.9
C43: The South | D43: =Calcs!J78 -> 4449.688067 | E43: =Calcs!K78 -> 4335.055627 | F43: =Calcs!L78 -> 4388.634474 | G43: =Calcs!M78 -> 4380.385259 | J43: Google + | M43: =Calcs!C91 -> 666 | N43: =Calcs!D91 -> 675 | O43: =Calcs!E91 -> 685 | P43: =Calcs!F91 -> 566.1
C44: The North-East | D44: =Calcs!J79 -> 2865.628341 | E44: =Calcs!K79 -> 2765.703983 | F44: =Calcs!L79 -> 2940.521633 | G44: =Calcs!M79 -> 2777.861881 | J44: Linkedin | M44: =Calcs!C92 -> 486 | N44: =Calcs!D92 -> 522 | O44: =Calcs!E92 -> 561 | P44: =Calcs!F92 -> 413.1
C45: The Mid-West | D45: =Calcs!J80 -> 3055.598604 | E45: =Calcs!K80 -> 2995.261126 | F45: =Calcs!L80 -> 2946.275248 | G45: =Calcs!M80 -> 2980.405107 | J45: YouTube | M45: =Calcs!C93 -> 989 | N45: =Calcs!D93 -> 1003 | O45: =Calcs!E93 -> 1018 | P45: =Calcs!F93 -> 840.65
